Workbook

Sheet Main
B10: 2020-07-14
B12: Sheet No. | C12: Template Name | D12: Summary
B13: 1 | C13: Future Intra | D13: For Intraday trading in F&O segment
B14: 2 | C14: Cash Intra | D14: For Intraday trading in cash market segment
B15: 3 | C15: Mid-cap Intra | D15: For Intraday trading in Mid-cap stocks
B16: 4 | C16: Bulk Deals | D16: Reveals Bulk Deals carried on NSE & BSE
B17: 5 | C17: Call Tracker
K27: `

Sheet Future Intra
M5: Back to Main Page
A6: FOR INTRA DAY TRADING | L6: =Main!B10 -> 2020-07-14
A9: Sr.no | B9: Sector | C9: Scrip | D9: CLOSE RATE | E9: Pivot Point | F9: Supports | I9: Resistances
B10: Sector | D10: Point | E10: Point | F10: S1 | G10: S2 | H10: S3 | I10: R1 | J10: R2 | K10: R3 | L10: HIGH | M10: LOW | N10: OI | O10: % Change in OI
A11: 1 | B11: Index | C11: BANKNIFTY | D11: 22174.55 | E11: 22288.98 | F11: 21913.57 | G11: 21652.58 | H11: 21277.17 | I11: 22549.97 | J11: 22925.38 | K11: 23186.37 | L11: 22664.4 | M11: 22028 | N11: 1899750 | O11: 7.57%
A12: 2 | B12: Index | C12: NIFTY | D12: 10807.55 | E12: 10812.00 | F12: 10744.60 | G12: 10681.65 | H12: 10614.25 | I12: 10874.95 | J12: 10942.35 | K12: 11005.30 | L12: 10879.4 | M12: 10749.05 | N12: 13168275 | O12: -2.01%
A13: 3 | B13: Cement | C13: ACC | D13: 1347.90 | E13: 1338.80 | F13: 1324.60 | G13: 1301.30 | H13: 1287.10 | I13: 1362.10 | J13: 1376.30 | K13: 1399.60 | L13: 1353 | M13: 1315.5 | N13: 2352000 | O13: 1.84%
A14: 4 | B14: Others | C14: ADANIENT | D14: 156.45 | E14: 157.83 | F14: 153.02 | G14: 149.58 | H14: 144.77 | I14: 161.27 | J14: 166.08 | K14: 169.52 | L14: 162.65 | M14: 154.4 | N14: 19048000 | O14: -1.49%
A15: 5 | B15: Others | C15: ADANIPORTS | D15: 333.45 | E15: 335.55 | F15: 330.75 | G15: 328.05 | H15: 323.25 | I15: 338.25 | J15: 343.05 | K15: 345.75 | L15: 340.35 | M15: 332.85 | N15: 31107500 | O15: -1.12%
A16: 6 | B16: Automobile | C16: AMARAJABAT | D16: 700.90 | E16: 703.10 | F16: 694.00 | G16: 687.10 | H16: 678.00 | I16: 710.00 | J16: 719.10 | K16: 726.00 | L16: 712.2 | M16: 696.2 | N16: 1562000 | O16: 4.90%
A17: 7 | B17: Cement | C17: AMBUJACEM | D17: 199.15 | E17: 198.03 | F17: 195.72 | G17: 192.28 | H17: 189.97 | I17: 201.47 | J17: 203.78 | K17: 207.22 | L17: 200.35 | M17: 194.6 | N17: 18411000 | O17: -1.51%
A18: 8 | B18: Others | C18: APOLLOHOSP | D18: 1436.00 | E18: 1430.67 | F18: 1413.43 | G18: 1390.87 | H18: 1373.63 | I18: 1453.23 | J18: 1470.47 | K18: 1493.03 | L18: 1447.9 | M18: 1408.1 | N18: 906500 | O18: 0.06%
A19: 9 | B19: Automobile | C19: APOLLOTYRE | D19: 114.40 | E19: 114.08 | F19: 112.92 | G19: 111.43 | H19: 110.27 | I19: 115.57 | J19: 116.73 | K19: 118.22 | L19: 115.25 | M19: 112.6 | N19: 9450000 | O19: 0.64%
A20: 10 | B20: Automobile | C20: ASHOKLEY | D20: 51.00 | E20: 51.48 | F20: 50.37 | G20: 49.73 | H20: 48.62 | I20: 52.12 | J20: 53.23 | K20: 53.87 | L20: 52.6 | M20: 50.85 | N20: 45297000 | O20: 0.72%
A21: 11 | B21: FMCG | C21: ASIANPAINT | D21: 1709.00 | E21: 1715.13 | F21: 1698.32 | G21: 1687.63 | H21: 1670.82 | I21: 1725.82 | J21: 1742.63 | K21: 1753.32 | L21: 1731.95 | M21: 1704.45 | N21: 5372700 | O21: -0.41%
A22: 12 | B22: Pharma | C22: AUROPHARMA | D22: 812.60 | E22: 817.17 | F22: 805.43 | G22: 798.27 | H22: 786.53 | I22: 824.33 | J22: 836.07 | K22: 843.23 | L22: 828.9 | M22: 810 | N22: 13013000 | O22: -2.05%
A23: 13 | B23: Banking | C23: AXISBANK | D23: 441.90 | E23: 440.87 | F23: 434.53 | G23: 427.17 | H23: 420.83 | I23: 448.23 | J23: 454.57 | K23: 461.93 | L23: 447.2 | M23: 433.5 | N23: 60014400 | O23: 0.82%
A24: 14 | B24: Automobile | C24: BAJAJ-AUTO | D24: 2902.25 | E24: 2900.23 | F24: 2884.67 | G24: 2867.08 | H24: 2851.52 | I24: 2917.82 | J24: 2933.38 | K24: 2950.97 | L24: 2915.8 | M24: 2882.65 | N24: 1725500 | O24: -1.07%
A25: 15 | B25: Finance | C25: BAJAJFINSV | D25: 6473.50 | E25: 6484.82 | F25: 6381.63 | G25: 6289.77 | H25: 6186.58 | I25: 6576.68 | J25: 6679.87 | K25: 6771.73 | L25: 6588 | M25: 6392.95 | N25: 727750 | O25: -0.95%
A26: 16 | B26: Finance | C26: BAJFINANCE | D26: 3237.90 | E26: 3273.80 | F26: 3180.10 | G26: 3122.30 | H26: 3028.60 | I26: 3331.60 | J26: 3425.30 | K26: 3483.10 | L26: 3367.5 | M26: 3216 | N26: 7249500 | O26: -0.59%
A27: 17 | B27: Automobile | C27: BALKRISIND | D27: 1281.25 | E27: 1281.47 | F27: 1263.93 | G27: 1246.62 | H27: 1229.08 | I27: 1298.78 | J27: 1316.32 | K27: 1333.63 | L27: 1299 | M27: 1264.15 | N27: 1465600 | O27: -1.40%
A28: 18 | B28: Banking | C28: BANDHANBNK | D28: 371.10 | E28: 374.38 | F28: 365.72 | G28: 360.33 | H28: 351.67 | I28: 379.77 | J28: 388.43 | K28: 393.82 | L28: 383.05 | M28: 369 | N28: 11820600 | O28: 3.99%
A29: 19 | B29: Banking | C29: BANKBARODA | D29: 50.65 | E29: 51.13 | F29: 49.72 | G29: 48.78 | H29: 47.37 | I29: 52.07 | J29: 53.48 | K29: 54.42 | L29: 52.55 | M29: 50.2 | N29: 43353400 | O29: 3.75%
A30: 20 | B30: FMCG | C30: BATAINDIA | D30: 1253.85 | E30: 1259.95 | F30: 1240.05 | G30: 1226.25 | H30: 1206.35 | I30: 1273.75 | J30: 1293.65 | K30: 1307.45 | L30: 1279.85 | M30: 1246.15 | N30: 2167550 | O30: 5.52%
A31: 21 | B31: Capital_Goods | C31: BEL | D31: 98.80 | E31: 99.45 | F31: 97.35 | G31: 95.90 | H31: 93.80 | I31: 100.90 | J31: 103.00 | K31: 104.45 | L31: 101.55 | M31: 98 | N31: 23286400 | O31: -0.23%
A32: 22 | B32: FMCG | C32: BERGEPAINT | D32: 501.20 | E32: 503.37 | F32: 497.23 | G32: 493.27 | H32: 487.13 | I32: 507.33 | J32: 513.47 | K32: 517.43 | L32: 509.5 | M32: 499.4 | N32: 4492400 | O32: -0.83%
A33: 23 | B33: Automobile | C33: BHARATFORG | D33: 370.45 | E33: 369.87 | F33: 360.33 | G33: 350.22 | H33: 340.68 | I33: 379.98 | J33: 389.52 | K33: 399.63 | L33: 379.4 | M33: 359.75 | N33: 6583500 | O33: -1.44%
A34: 24 | B34: Telecom | C34: BHARTIARTL | D34: 588.60 | E34: 583.33 | F34: 575.97 | G34: 563.33 | H34: 555.97 | I34: 595.97 | J34: 603.33 | K34: 615.97 | L34: 590.7 | M34: 570.7 | N34: 84337113 | O34: 0.57%
A35: 25 | B35: Capital_Goods | C35: BHEL | D35: 42.75 | E35: 42.77 | F35: 41.98 | G35: 41.22 | H35: 40.43 | I35: 43.53 | J35: 44.32 | K35: 45.08 | L35: 43.55 | M35: 42 | N35: 47565000 | O35: -2.87%
A36: 26 | B36: Pharma | C36: BIOCON | D36: 415.65 | E36: 425.13 | F36: 404.52 | G36: 393.38 | H36: 372.77 | I36: 436.27 | J36: 456.88 | K36: 468.02 | L36: 445.75 | M36: 414 | N36: 15396200 | O36: -2.86%
A37: 27 | B37: Automobile | C37: BOSCHLTD | D37: 13877.25 | E37: 13726.28 | F37: 13487.37 | G37: 13097.48 | H37: 12858.57 | I37: 14116.17 | J37: 14355.08 | K37: 14744.97 | L37: 13965.2 | M37: 13336.4 | N37: 113900 | O37: -3.68%
A38: 28 | B38: Oil_Gas | C38: BPCL | D38: 380.55 | E38: 380.78 | F38: 376.12 | G38: 371.68 | H38: 367.02 | I38: 385.22 | J38: 389.88 | K38: 394.32 | L38: 385.45 | M38: 376.35 | N38: 19027800 | O38: -1.88%
A39: 29 | B39: FMCG | C39: BRITANNIA | D39: 3811.65 | E39: 3803.47 | F39: 3764.08 | G39: 3716.52 | H39: 3677.13 | I39: 3851.03 | J39: 3890.42 | K39: 3937.98 | L39: 3842.85 | M39: 3755.9 | N39: 1718000 | O39: 2.25%
A40: 30 | B40: Pharma | C40: CADILAHC | D40: 359.50 | E40: 359.52 | F40: 357.28 | G40: 355.07 | H40: 352.83 | I40: 361.73 | J40: 363.97 | K40: 366.18 | L40: 361.75 | M40: 357.3 | N40: 7308400 | O40: 3.65%
A41: 31 | B41: Banking | C41: CANBK | D41: 103.40 | E41: 104.02 | F41: 101.88 | G41: 100.37 | H41: 98.23 | I41: 105.53 | J41: 107.67 | K41: 109.18 | L41: 106.15 | M41: 102.5 | N41: 12475000 | O41: 2.76%
A42: 32 | B42: Textile | C42: CENTURYTEX | D42: 314.90 | E42: 311.40 | F42: 303.80 | G42: 292.70 | H42: 285.10 | I42: 322.50 | J42: 330.10 | K42: 341.20 | L42: 319 | M42: 300.3 | N42: 3403400 | O42: -6.28%
A43: 33 | B43: Finance | C43: CHOLAFIN | D43: 204.75 | E43: 206.68 | F43: 201.87 | G43: 198.98 | H43: 194.17 | I43: 209.57 | J43: 214.38 | K43: 217.27 | L43: 211.5 | M43: 203.8 | N43: 6932500 | O43: 0.80%
A44: 34 | B44: Pharma | C44: CIPLA | D44: 640.85 | E44: 642.77 | F44: 637.03 | G44: 633.22 | H44: 627.48 | I44: 646.58 | J44: 652.32 | K44: 656.13 | L44: 648.5 | M44: 638.95 | N44: 12538500 | O44: 3.23%
A45: 35 | B45: Others | C45: COALINDIA | D45: 130.95 | E45: 131.40 | F45: 130.20 | G45: 129.45 | H45: 128.25 | I45: 132.15 | J45: 133.35 | K45: 134.10 | L45: 132.6 | M45: 130.65 | N45: 38132200 | O45: 0.17%
A46: 36 | B46: FMCG | C46: COLPAL | D46: 1435.65 | E46: 1423.20 | F46: 1407.90 | G46: 1380.15 | H46: 1364.85 | I46: 1450.95 | J46: 1466.25 | K46: 1494.00 | L46: 1438.5 | M46: 1395.45 | N46: 2809100 | O46: 3.70%
A47: 37 | B47: Others | C47: CONCOR | D47: 427.00 | E47: 430.27 | F47: 421.88 | G47: 416.77 | H47: 408.38 | I47: 435.38 | J47: 443.77 | K47: 448.88 | L47: 438.65 | M47: 425.15 | N47: 5382972 | O47: -0.29%
A48: 38 | B48: Capital_Goods | C48: CUMMINSIND | D48: 390.00 | E48: 392.70 | F48: 386.05 | G48: 382.10 | H48: 375.45 | I48: 396.65 | J48: 403.30 | K48: 407.25 | L48: 399.35 | M48: 388.75 | N48: 2013600 | O48: -1.24%
A49: 39 | B49: FMCG | C49: DABUR | D49: 485.65 | E49: 482.92 | F49: 478.98 | G49: 472.32 | H49: 468.38 | I49: 489.58 | J49: 493.52 | K49: 500.18 | L49: 486.85 | M49: 476.25 | N49: 13778750 | O49: 2.61%
A50: 40 | B50: Pharma | C50: DIVISLAB | D50: 2241.60 | E50: 2229.58 | F50: 2212.57 | G50: 2183.53 | H50: 2166.52 | I50: 2258.62 | J50: 2275.63 | K50: 2304.67 | L50: 2246.6 | M50: 2200.55 | N50: 4625200 | O50: -0.20%
A51: 41 | B51: Realty | C51: DLF | D51: 143.45 | E51: 144.87 | F51: 140.38 | G51: 137.32 | H51: 132.83 | I51: 147.93 | J51: 152.42 | K51: 155.48 | L51: 149.35 | M51: 141.8 | N51: 30053100 | O51: 0.77%
A52: 42 | B52: Pharma | C52: DRREDDY | D52: 3909.25 | E52: 3902.75 | F52: 3881.50 | G52: 3853.75 | H52: 3832.50 | I52: 3930.50 | J52: 3951.75 | K52: 3979.50 | L52: 3924 | M52: 3875 | N52: 3630500 | O52: -0.51%
A53: 43 | B53: Automobile | C53: EICHERMOT | D53: 19730.25 | E53: 19673.42 | F53: 19511.83 | G53: 19293.42 | H53: 19131.83 | I53: 19891.83 | J53: 20053.42 | K53: 20271.83 | L53: 19835 | M53: 19455 | N53: 285845 | O53: 0.20%
A54: 44 | B54: Finance | C54: EQUITAS | D54: 58.40 | E54: 58.88 | F54: 57.02 | G54: 55.63 | H54: 53.77 | I54: 60.27 | J54: 62.13 | K54: 63.52 | L54: 60.75 | M54: 57.5 | N54: 12806000 | O54: -15.24%
A55: 45 | B55: Automobile | C55: ESCORTS | D55: 1132.30 | E55: 1137.65 | F55: 1121.70 | G55: 1111.10 | H55: 1095.15 | I55: 1148.25 | J55: 1164.20 | K55: 1174.80 | L55: 1153.6 | M55: 1127.05 | N55: 3312100 | O55: 5.76%
A56: 46 | B56: Automobile | C56: EXIDEIND | D56: 156.45 | E56: 155.85 | F56: 154.85 | G56: 153.25 | H56: 152.25 | I56: 157.45 | J56: 158.45 | K56: 160.05 | L56: 156.85 | M56: 154.25 | N56: 11332800 | O56: -1.47%
A57: 47 | B57: Banking | C57: FEDERALBNK | D57: 53.20 | E57: 53.67 | F57: 52.33 | G57: 51.47 | H57: 50.13 | I57: 54.53 | J57: 55.87 | K57: 56.73 | L57: 55 | M57: 52.8 | N57: 58531000 | O57: -2.84%
A58: 48 | B58: Oil_Gas | C58: GAIL | D58: 101.20 | E58: 101.93 | F58: 99.67 | G58: 98.13 | H58: 95.87 | I58: 103.47 | J58: 105.73 | K58: 107.27 | L58: 104.2 | M58: 100.4 | N58: 35965600 | O58: -1.16%
A59: 49 | B59: Pharma | C59: GLENMARK | D59: 417.90 | E59: 418.97 | F59: 412.93 | G59: 407.97 | H59: 401.93 | I59: 423.93 | J59: 429.97 | K59: 434.93 | L59: 425 | M59: 414 | N59: 5271600 | O59: -1.12%
A60: 50 | B60: Infrastructure | C60: GMRINFRA | D60: 20.10 | E60: 20.22 | F60: 19.88 | G60: 19.67 | H60: 19.33 | I60: 20.43 | J60: 20.77 | K60: 20.98 | L60: 20.55 | M60: 20 | N60: 100710000 | O60: 2.15%
A61: 51 | B61: FMCG | C61: GODREJCP | D61: 698.15 | E61: 699.30 | F61: 691.45 | G61: 684.75 | H61: 676.90 | I61: 706.00 | J61: 713.85 | K61: 720.55 | L61: 707.15 | M61: 692.6 | N61: 7156000 | O61: 0.63%
A62: 52 | B62: Others | C62: GODREJPROP | D62: 895.75 | E62: 896.72 | F62: 886.53 | G62: 877.32 | H62: 867.13 | I62: 905.93 | J62: 916.12 | K62: 925.33 | L62: 906.9 | M62: 887.5 | N62: 342550 | O62: -7.54%
A63: 53 | B63: Cement | C63: GRASIM | D63: 614.35 | E63: 614.47 | F63: 608.18 | G63: 602.02 | H63: 595.73 | I63: 620.63 | J63: 626.92 | K63: 633.08 | L63: 620.75 | M63: 608.3 | N63: 18501250 | O63: -0.68%
A64: 54 | B64: Others | C64: HAVELLS | D64: 588.35 | E64: 585.78 | F64: 581.62 | G64: 574.88 | H64: 570.72 | I64: 592.52 | J64: 596.68 | K64: 603.42 | L64: 589.95 | M64: 579.05 | N64: 5281000 | O64: -0.75%
A65: 55 | B65: Technology | C65: HCLTECH | D65: 602.35 | E65: 596.62 | F65: 589.48 | G65: 576.62 | H65: 569.48 | I65: 609.48 | J65: 616.62 | K65: 629.48 | L65: 603.75 | M65: 583.75 | N65: 21142800 | O65: 0.74%
A66: 56 | B66: Finance | C66: HDFC | D66: 1853.00 | E66: 1869.00 | F66: 1830.05 | G66: 1807.10 | H66: 1768.15 | I66: 1891.95 | J66: 1930.90 | K66: 1953.85 | L66: 1907.95 | M66: 1846.05 | N66: 29223300 | O66: 0.47%
A67: 57 | B67: Banking | C67: HDFCBANK | D67: 1082.40 | E67: 1088.83 | F67: 1065.82 | G67: 1049.23 | H67: 1026.22 | I67: 1105.42 | J67: 1128.43 | K67: 1145.02 | L67: 1111.85 | M67: 1072.25 | N67: 43014400 | O67: -3.13%
A68: 58 | B68: Finance | C68: HDFCLIFE | D68: 602.35 | E68: 597.23 | F68: 589.47 | G68: 576.58 | H68: 568.82 | I68: 610.12 | J68: 617.88 | K68: 630.77 | L68: 605 | M68: 584.35 | N68: 12771000 | O68: -1.17%
A69: 59 | B69: Automobile | C69: HEROMOTOCO | D69: 2674.90 | E69: 2676.28 | F69: 2655.67 | G69: 2636.43 | H69: 2615.82 | I69: 2695.52 | J69: 2716.13 | K69: 2735.37 | L69: 2696.9 | M69: 2657.05 | N69: 2456400 | O69: -0.90%
A70: 60 | B70: Metals | C70: HINDALCO | D70: 169.40 | E70: 168.17 | F70: 165.93 | G70: 162.47 | H70: 160.23 | I70: 171.63 | J70: 173.87 | K70: 177.33 | L70: 170.4 | M70: 164.7 | N70: 39211700 | O70: -0.62%
A71: 61 | B71: Oil_Gas | C71: HINDPETRO | D71: 211.65 | E71: 212.45 | F71: 209.10 | G71: 206.55 | H71: 203.20 | I71: 215.00 | J71: 218.35 | K71: 220.90 | L71: 215.8 | M71: 209.9 | N71: 26611200 | O71: 3.01%
A72: 62 | B72: FMCG | C72: HINDUNILVR | D72: 2257.20 | E72: 2251.08 | F72: 2235.17 | G72: 2213.13 | H72: 2197.22 | I72: 2273.12 | J72: 2289.03 | K72: 2311.07 | L72: 2267 | M72: 2229.05 | N72: 16726800 | O72: -4.68%
A73: 63 | B73: Finance | C73: IBULHSGFIN | D73: 239.00 | E73: 242.17 | F73: 232.88 | G73: 226.77 | H73: 217.48 | I73: 248.28 | J73: 257.57 | K73: 263.68 | L73: 251.45 | M73: 236.05 | N73: 12930100 | O73: 19.79%
A74: 64 | B74: Banking | C74: ICICIBANK | D74: 355.10 | E74: 358.95 | F74: 349.95 | G74: 344.80 | H74: 335.80 | I74: 364.10 | J74: 373.10 | K74: 378.25 | L74: 367.95 | M74: 353.8 | N74: 111009250 | O74: 0.63%
A75: 65 | B75: Finance | C75: ICICIPRULI | D75: 423.45 | E75: 422.07 | F75: 419.33 | G75: 415.22 | H75: 412.48 | I75: 426.18 | J75: 428.92 | K75: 433.03 | L75: 424.8 | M75: 417.95 | N75: 7890000 | O75: 0.82%
A76: 66 | B76: Telecom | C76: IDEA | D76: 9.85 | E76: 9.82 | F76: 9.53 | G76: 9.22 | H76: 8.93 | I76: 10.13 | J76: 10.42 | K76: 10.73 | L76: 10.1 | M76: 9.5 | N76: 384020000 | O76: -8.14%
A77: 67 | B77: Banking | C77: IDFCFIRSTB | D77: 26.95 | E77: 27.08 | F77: 26.47 | G77: 25.98 | H77: 25.37 | I77: 27.57 | J77: 28.18 | K77: 28.67 | L77: 27.7 | M77: 26.6 | N77: 120517000 | O77: 1.44%
A78: 68 | B78: Oil_Gas | C78: IGL | D78: 407.40 | E78: 408.05 | F78: 402.75 | G78: 398.10 | H78: 392.80 | I78: 412.70 | J78: 418.00 | K78: 422.65 | L78: 413.35 | M78: 403.4 | N78: 9824375 | O78: -0.72%
A79: 69 | B79: Others | C79: INDIGO | D79: 1015.15 | E79: 1017.27 | F79: 1004.53 | G79: 993.92 | H79: 981.18 | I79: 1027.88 | J79: 1040.62 | K79: 1051.23 | L79: 1030 | M79: 1006.65 | N79: 2813500 | O79: -0.76%
A80: 70 | B80: Banking | C80: INDUSINDBK | D80: 540.50 | E80: 543.75 | F80: 531.45 | G80: 522.40 | H80: 510.10 | I80: 552.80 | J80: 565.10 | K80: 574.15 | L80: 556.05 | M80: 534.7 | N80: 32041600 | O80: -0.86%
A81: 71 | B81: Telecom | C81: INFRATEL | D81: 211.70 | E81: 211.20 | F81: 208.95 | G81: 206.20 | H81: 203.95 | I81: 213.95 | J81: 216.20 | K81: 218.95 | L81: 213.45 | M81: 208.45 | N81: 12546800 | O81: -0.18%
A82: 72 | B82: Technology | C82: INFY | D82: 798.40 | E82: 795.37 | F82: 787.93 | G82: 777.47 | H82: 770.03 | I82: 805.83 | J82: 813.27 | K82: 823.73 | L82: 802.8 | M82: 784.9 | N82: 53374800 | O82: 2.11%
A83: 73 | B83: Oil_Gas | C83: IOC | D83: 87.45 | E83: 87.18 | F83: 86.57 | G83: 85.68 | H83: 85.07 | I83: 88.07 | J83: 88.68 | K83: 89.57 | L83: 87.8 | M83: 86.3 | N83: 54355200 | O83: -4.05%
A84: 74 | B84: FMCG | C84: ITC | D84: 197.80 | E84: 197.35 | F84: 195.70 | G84: 193.60 | H84: 191.95 | I84: 199.45 | J84: 201.10 | K84: 203.20 | L84: 199 | M84: 195.25 | N84: 89456000 | O84: -1.39%
A85: 75 | B85: Metals | C85: JINDALSTEL | D85: 170.15 | E85: 170.55 | F85: 168.05 | G85: 165.95 | H85: 163.45 | I85: 172.65 | J85: 175.15 | K85: 177.25 | L85: 173.05 | M85: 168.45 | N85: 18015000 | O85: -5.21%
A86: 76 | B86: Metals | C86: JSWSTEEL | D86: 199.30 | E86: 198.48 | F86: 196.67 | G86: 194.03 | H86: 192.22 | I86: 201.12 | J86: 202.93 | K86: 205.57 | L86: 200.3 | M86: 195.85 | N86: 46745100 | O86: 1.04%
A87: 77 | B87: Others | C87: JUBLFOOD | D87: 1641.90 | E87: 1633.33 | F87: 1610.62 | G87: 1579.33 | H87: 1556.62 | I87: 1664.62 | J87: 1687.33 | K87: 1718.62 | L87: 1656.05 | M87: 1602.05 | N87: 2239000 | O87: -5.59%
A88: 78 | B88: Others | C88: JUSTDIAL | D88: 371.30 | E88: 372.42 | F88: 365.13 | G88: 358.97 | H88: 351.68 | I88: 378.58 | J88: 385.87 | K88: 392.03 | L88: 379.7 | M88: 366.25 | N88: 1335600 | O88: 1.49%
A89: 79 | B89: Banking | C89: KOTAKBANK | D89: 1338.75 | E89: 1344.40 | F89: 1322.35 | G89: 1305.95 | H89: 1283.90 | I89: 1360.80 | J89: 1382.85 | K89: 1399.25 | L89: 1366.45 | M89: 1328 | N89: 8649200 | O89: 1.46%
A90: 80 | B90: Finance | C90: L&TFH | D90: 68.35 | E90: 68.85 | F90: 67.30 | G90: 66.25 | H90: 64.70 | I90: 69.90 | J90: 71.45 | K90: 72.50 | L90: 70.4 | M90: 67.8 | N90: 34231200 | O90: -1.95%
A91: 81 | B91: Finance | C91: LICHSGFIN | D91: 274.20 | E91: 276.30 | F91: 270.35 | G91: 266.50 | H91: 260.55 | I91: 280.15 | J91: 286.10 | K91: 289.95 | L91: 282.25 | M91: 272.45 | N91: 9506000 | O91: 0.13%
A92: 82 | B92: Capital_Goods | C92: LT | D92: 930.60 | E92: 934.07 | F92: 923.68 | G92: 916.77 | H92: 906.38 | I92: 940.98 | J92: 951.37 | K92: 958.28 | L92: 944.45 | M92: 927.15 | N92: 9706400 | O92: -2.20%
A93: 83 | B93: Pharma | C93: LUPIN | D93: 871.45 | E93: 868.73 | F93: 859.72 | G93: 847.98 | H93: 838.97 | I93: 880.47 | J93: 889.48 | K93: 901.22 | L93: 877.75 | M93: 857 | N93: 8737150 | O93: 2.19%
A94: 84 | B94: Automobile | C94: M&M | D94: 555.20 | E94: 554.35 | F94: 549.70 | G94: 544.20 | H94: 539.55 | I94: 559.85 | J94: 564.50 | K94: 570.00 | L94: 559 | M94: 548.85 | N94: 18282600 | O94: -0.79%
A95: 85 | B95: Finance | C95: M&MFIN | D95: 202.05 | E95: 203.63 | F95: 199.37 | G95: 196.68 | H95: 192.42 | I95: 206.32 | J95: 210.58 | K95: 213.27 | L95: 207.9 | M95: 200.95 | N95: 10760400 | O95: 0.73%
A96: 86 | B96: Finance | C96: MANAPPURAM | D96: 158.55 | E96: 159.55 | F96: 156.10 | G96: 153.65 | H96: 150.20 | I96: 162.00 | J96: 165.45 | K96: 167.90 | L96: 163 | M96: 157.1 | N96: 16380000 | O96: 3.57%
A97: 87 | B97: FMCG | C97: MARICO | D97: 347.70 | E97: 346.82 | F97: 344.53 | G97: 341.37 | H97: 339.08 | I97: 349.98 | J97: 352.27 | K97: 355.43 | L97: 349.1 | M97: 343.65 | N97: 11446000 | O97: -2.72%
A98: 88 | B98: Automobile | C98: MARUTI | D98: 6016.15 | E98: 6014.55 | F98: 5952.60 | G98: 5889.05 | H98: 5827.10 | I98: 6078.10 | J98: 6140.05 | K98: 6203.60 | L98: 6076.5 | M98: 5951 | N98: 2754000 | O98: -1.13%
A99: 89 | B99: FMCG | C99: MCDOWELL-N | D99: 631.70 | E99: 633.30 | F99: 621.60 | G99: 611.50 | H99: 599.80 | I99: 643.40 | J99: 655.10 | K99: 665.20 | L99: 645 | M99: 623.2 | N99: 16375000 | O99: -2.38%
A100: 90 | B100: Finance | C100: MFSL | D100: 562.55 | E100: 559.72 | F100: 554.58 | G100: 546.62 | H100: 541.48 | I100: 567.68 | J100: 572.82 | K100: 580.78 | L100: 564.85 | M100: 551.75 | N100: 1569100 | O100: -2.27%
A101: 91 | B101: Oil_Gas | C101: MGL | D101: 970.80 | E101: 972.42 | F101: 959.68 | G101: 948.57 | H101: 935.83 | I101: 983.53 | J101: 996.27 | K101: 1007.38 | L101: 985.15 | M101: 961.3 | N101: 1291200 | O101: -3.37%
A102: 92 | B102: Technology | C102: MINDTREE | D102: 1013.05 | E102: 1014.17 | F102: 1002.03 | G102: 991.02 | H102: 978.88 | I102: 1025.18 | J102: 1037.32 | K102: 1048.33 | L102: 1026.3 | M102: 1003.15 | N102: 1731200 | O102: 8.20%
A103: 93 | B103: Automobile | C103: MOTHERSUMI | D103: 96.55 | E103: 96.97 | F103: 95.38 | G103: 94.22 | H103: 92.63 | I103: 98.13 | J103: 99.72 | K103: 100.88 | L103: 98.55 | M103: 95.8 | N103: 28210000 | O103: -3.36%
A104: 94 | B104: Automobile | C104: MRF | D104: 64960.35 | E104: 65125.25 | F104: 64364.40 | G104: 63768.45 | H104: 63007.60 | I104: 65721.20 | J104: 66482.05 | K104: 67078.00 | L104: 65886.1 | M104: 64529.3 | N104: 13780 | O104: 2.23%
A105: 95 | B105: Finance | C105: MUTHOOTFIN | D105: 1113.55 | E105: 1108.37 | F105: 1089.88 | G105: 1066.22 | H105: 1047.73 | I105: 1132.03 | J105: 1150.52 | K105: 1174.18 | L105: 1126.85 | M105: 1084.7 | N105: 4179750 | O105: -1.14%
A106: 96 | B106: Metals | C106: NATIONALUM | D106: 35.90 | E106: 36.23 | F106: 35.17 | G106: 34.43 | H106: 33.37 | I106: 36.97 | J106: 38.03 | K106: 38.77 | L106: 37.3 | M106: 35.5 | N106: 38233000 | O106: 0.94%
A107: 97 | B107: Others | C107: NAUKRI | D107: 2845.25 | E107: 2868.77 | F107: 2812.53 | G107: 2779.82 | H107: 2723.58 | I107: 2901.48 | J107: 2957.72 | K107: 2990.43 | L107: 2925 | M107: 2836.05 | N107: 728750 | O107: 0.07%
A108: 98 | B108: Infrastructure | C108: NCC | D108: 33.00 | E108: 33.30 | F108: 32.50 | G108: 32.00 | H108: 31.20 | I108: 33.80 | J108: 34.60 | K108: 35.10 | L108: 34.1 | M108: 32.8 | N108: 22281000 | O108: -0.19%
A109: 99 | B109: FMCG | C109: NESTLEIND | D109: 17021.60 | E109: 17032.70 | F109: 16899.90 | G109: 16778.20 | H109: 16645.40 | I109: 17154.40 | J109: 17287.20 | K109: 17408.90 | L109: 17165.5 | M109: 16911 | N109: 610400 | O109: 0.95%
A110: 100 | B110: Technology | C110: NIITTECH | D110: 1592.00 | E110: 1601.63 | F110: 1574.32 | G110: 1556.63 | H110: 1529.32 | I110: 1619.32 | J110: 1646.63 | K110: 1664.32 | L110: 1628.95 | M110: 1583.95 | N110: 423750 | O110: -9.96%
A111: 101 | B111: Metals | C111: NMDC | D111: 85.75 | E111: 85.50 | F111: 84.55 | G111: 83.35 | H111: 82.40 | I111: 86.70 | J111: 87.65 | K111: 88.85 | L111: 86.45 | M111: 84.3 | N111: 31650800 | O111: -3.53%
A112: 102 | B112: Power | C112: NTPC | D112: 89.90 | E112: 90.80 | F112: 88.60 | G112: 87.30 | H112: 85.10 | I112: 92.10 | J112: 94.30 | K112: 95.60 | L112: 93 | M112: 89.5 | N112: 70919400 | O112: -2.22%
A113: 103 | B113: Oil_Gas | C113: ONGC | D113: 79.05 | E113: 79.15 | F113: 78.50 | G113: 77.95 | H113: 77.30 | I113: 79.70 | J113: 80.35 | K113: 80.90 | L113: 79.8 | M113: 78.6 | N113: 64472100 | O113: -0.10%
A114: 104 | B114: Textile | C114: PAGEIND | D114: 19889.05 | E114: 19900.30 | F114: 19652.90 | G114: 19416.75 | H114: 19169.35 | I114: 20136.45 | J114: 20383.85 | K114: 20620.00 | L114: 20147.7 | M114: 19664.15 | N114: 113010 | O114: -1.49%
A115: 105 | B115: Pharma | C115: PEL | D115: 1421.95 | E115: 1433.57 | F115: 1395.38 | G115: 1368.82 | H115: 1330.63 | I115: 1460.13 | J115: 1498.32 | K115: 1524.88 | L115: 1471.75 | M115: 1407 | N115: 3541450 | O115: -0.53%
A116: 106 | B116: Oil_Gas | C116: PETRONET | D116: 258.65 | E116: 259.02 | F116: 256.03 | G116: 253.42 | H116: 250.43 | I116: 261.63 | J116: 264.62 | K116: 267.23 | L116: 262 | M116: 256.4 | N116: 14187000 | O116: -0.55%
A117: 107 | B117: Finance | C117: PFC | D117: 83.80 | E117: 83.63 | F117: 82.67 | G117: 81.53 | H117: 80.57 | I117: 84.77 | J117: 85.73 | K117: 86.87 | L117: 84.6 | M117: 82.5 | N117: 48955200 | O117: -2.01%
A118: 108 | B118: FMCG | C118: PIDILITIND | D118: 1397.30 | E118: 1396.95 | F118: 1384.50 | G118: 1371.70 | H118: 1359.25 | I118: 1409.75 | J118: 1422.20 | K118: 1435.00 | L118: 1409.4 | M118: 1384.15 | N118: 3307000 | O118: -0.91%
A119: 109 | B119: Banking | C119: PNB | D119: 34.60 | E119: 34.82 | F119: 33.98 | G119: 33.37 | H119: 32.53 | I119: 35.43 | J119: 36.27 | K119: 36.88 | L119: 35.65 | M119: 34.2 | N119: 63700000 | O119: -6.26%
A120: 110 | B120: Power | C120: POWERGRID | D120: 169.30 | E120: 170.67 | F120: 166.88 | G120: 164.47 | H120: 160.68 | I120: 173.08 | J120: 176.87 | K120: 179.28 | L120: 174.45 | M120: 168.25 | N120: 31824000 | O120: -1.38%
A121: 111 | B121: Media | C121: PVR | D121: 1039.15 | E121: 1038.60 | F121: 1028.30 | G121: 1017.45 | H121: 1007.15 | I121: 1049.45 | J121: 1059.75 | K121: 1070.60 | L121: 1048.9 | M121: 1027.75 | N121: 1478631 | O121: -0.03%
A122: 112 | B122: Cement | C122: RAMCOCEM | D122: 665.65 | E122: 658.55 | F122: 647.10 | G122: 628.55 | H122: 617.10 | I122: 677.10 | J122: 688.55 | K122: 707.10 | L122: 670 | M122: 640 | N122: 1101600 | O122: 1.49%
A123: 113 | B123: Banking | C123: RBLBANK | D123: 178.35 | E123: 180.58 | F123: 175.32 | G123: 172.28 | H123: 167.02 | I123: 183.62 | J123: 188.88 | K123: 191.92 | L123: 185.85 | M123: 177.55 | N123: 21671000 | O123: 3.98%
A124: 114 | B124: Power | C124: RECLTD | D124: 104.85 | E124: 104.62 | F124: 103.63 | G124: 102.42 | H124: 101.43 | I124: 105.83 | J124: 106.82 | K124: 108.03 | L124: 105.6 | M124: 103.4 | N124: 18720000 | O124: 2.77%
A125: 115 | B125: Oil_Gas | C125: RELIANCE | D125: 1939.80 | E125: 1929.87 | F125: 1911.73 | G125: 1883.67 | H125: 1865.53 | I125: 1957.93 | J125: 1976.07 | K125: 2004.13 | L125: 1948 | M125: 1901.8 | N125: 45111145 | O125: 2.83%
A126: 116 | B126: Metals | C126: SAIL | D126: 35.85 | E126: 36.77 | F126: 34.68 | G126: 33.52 | H126: 31.43 | I126: 37.93 | J126: 40.02 | K126: 41.18 | L126: 38.85 | M126: 35.6 | N126: 50806000 | O126: 11.79%
A127: 117 | B127: Finance | C127: SBILIFE | D127: 866.35 | E127: 862.45 | F127: 855.05 | G127: 843.75 | H127: 836.35 | I127: 873.75 | J127: 881.15 | K127: 892.45 | L127: 869.85 | M127: 851.15 | N127: 6051750 | O127: 0.55%
A128: 118 | B128: Banking | C128: SBIN | D128: 193.00 | E128: 194.83 | F128: 189.77 | G128: 186.53 | H128: 181.47 | I128: 198.07 | J128: 203.13 | K128: 206.37 | L128: 199.9 | M128: 191.6 | N128: 117984000 | O128: -2.46%
A129: 119 | B129: Cement | C129: SHREECEM | D129: 22405.90 | E129: 22476.60 | F129: 22265.30 | G129: 22124.70 | H129: 21913.40 | I129: 22617.20 | J129: 22828.50 | K129: 22969.10 | L129: 22687.9 | M129: 22336 | N129: 143850 | O129: 0.00%
A130: 120 | B130: Capital_Goods | C130: SIEMENS | D130: 1146.90 | E130: 1141.15 | F130: 1132.75 | G130: 1118.60 | H130: 1110.20 | I130: 1155.30 | J130: 1163.70 | K130: 1177.85 | L130: 1149.55 | M130: 1127 | N130: 2286900 | O130: -1.68%
A131: 121 | B131: Textile | C131: SRF | D131: 3858.40 | E131: 3878.80 | F131: 3810.60 | G131: 3762.80 | H131: 3694.60 | I131: 3926.60 | J131: 3994.80 | K131: 4042.60 | L131: 3947 | M131: 3831 | N131: 644250 | O131: 6.40%
A132: 122 | B132: Finance | C132: SRTRANSFIN | D132: 689.30 | E132: 691.38 | F132: 675.52 | G132: 661.73 | H132: 645.87 | I132: 705.17 | J132: 721.03 | K132: 734.82 | L132: 707.25 | M132: 677.6 | N132: 3152909 | O132: 1.22%
A133: 123 | B133: Pharma | C133: SUNPHARMA | D133: 499.70 | E133: 498.55 | F133: 494.15 | G133: 488.60 | H133: 484.20 | I133: 504.10 | J133: 508.50 | K133: 514.05 | L133: 502.95 | M133: 493 | N133: 29097600 | O133: -0.58%
A134: 124 | B134: Media | C134: SUNTV | D134: 392.00 | E134: 393.35 | F134: 387.70 | G134: 383.40 | H134: 377.75 | I134: 397.65 | J134: 403.30 | K134: 407.60 | L134: 399 | M134: 389.05 | N134: 5854500 | O134: 4.95%
A135: 125 | B135: Fertilisers | C135: TATACHEM | D135: 299.55 | E135: 300.77 | F135: 297.73 | G135: 295.92 | H135: 292.88 | I135: 302.58 | J135: 305.62 | K135: 307.43 | L135: 303.8 | M135: 298.95 | N135: 4160000 | O135: 1.96%
A136: 126 | B136: Others | C136: TATACONSUM | D136: 425.80 | E136: 428.40 | F136: 420.90 | G136: 416.00 | H136: 408.50 | I136: 433.30 | J136: 440.80 | K136: 445.70 | L136: 435.9 | M136: 423.5 | N136: 15800400 | O136: -0.10%
A137: 127 | B137: Automobile | C137: TATAMOTORS | D137: 108.50 | E137: 109.40 | F137: 106.30 | G137: 104.10 | H137: 101.00 | I137: 111.60 | J137: 114.70 | K137: 116.90 | L137: 112.5 | M137: 107.2 | N137: 94278000 | O137: 3.26%
A138: 128 | B138: Power | C138: TATAPOWER | D138: 48.40 | E138: 48.57 | F138: 47.68 | G138: 46.97 | H138: 46.08 | I138: 49.28 | J138: 50.17 | K138: 50.88 | L138: 49.45 | M138: 47.85 | N138: 49302000 | O138: -0.16%
A139: 129 | B139: Metals | C139: TATASTEEL | D139: 343.50 | E139: 343.77 | F139: 339.33 | G139: 335.17 | H139: 330.73 | I139: 347.93 | J139: 352.37 | K139: 356.53 | L139: 348.2 | M139: 339.6 | N139: 16899700 | O139: -0.53%
A140: 130 | B140: Technology | C140: TCS | D140: 2223.90 | E140: 2227.77 | F140: 2209.83 | G140: 2195.77 | H140: 2177.83 | I140: 2241.83 | J140: 2259.77 | K140: 2273.83 | L140: 2245.7 | M140: 2213.7 | N140: 9591600 | O140: -1.56%
A141: 131 | B141: Technology | C141: TECHM | D141: 595.45 | E141: 586.77 | F141: 576.68 | G141: 557.92 | H141: 547.83 | I141: 605.53 | J141: 615.62 | K141: 634.38 | L141: 596.85 | M141: 568 | N141: 16694400 | O141: -2.49%
A142: 132 | B142: FMCG | C142: TITAN | D142: 969.95 | E142: 969.95 | F142: 962.60 | G142: 955.25 | H142: 947.90 | I142: 977.30 | J142: 984.65 | K142: 992.00 | L142: 977.3 | M142: 962.6 | N142: 7371750 | O142: -0.12%
A143: 133 | B143: Pharma | C143: TORNTPHARM | D143: 2365.85 | E143: 2365.23 | F143: 2345.62 | G143: 2325.38 | H143: 2305.77 | I143: 2385.47 | J143: 2405.08 | K143: 2425.32 | L143: 2384.85 | M143: 2345 | N143: 1460500 | O143: -2.11%
A144: 134 | B144: Power | C144: TORNTPOWER | D144: 330.05 | E144: 328.63 | F144: 325.87 | G144: 321.68 | H144: 318.92 | I144: 332.82 | J144: 335.58 | K144: 339.77 | L144: 331.4 | M144: 324.45 | N144: 1656000 | O144: -6.44%
A145: 135 | B145: Automobile | C145: TVSMOTOR | D145: 388.80 | E145: 387.42 | F145: 384.58 | G145: 380.37 | H145: 377.53 | I145: 391.63 | J145: 394.47 | K145: 398.68 | L145: 390.25 | M145: 383.2 | N145: 4704000 | O145: 1.33%
A146: 136 | B146: FMCG | C146: UBL | D146: 1011.85 | E146: 1020.92 | F146: 996.43 | G146: 981.02 | H146: 956.53 | I146: 1036.33 | J146: 1060.82 | K146: 1076.23 | L146: 1045.4 | M146: 1005.5 | N146: 1109500 | O146: 1.99%
A147: 137 | B147: Finance | C147: UJJIVAN | D147: 254.60 | E147: 254.90 | F147: 250.25 | G147: 245.90 | H147: 241.25 | I147: 259.25 | J147: 263.90 | K147: 268.25 | L147: 259.55 | M147: 250.55 | N147: 3205400 | O147: -3.83%
A148: 138 | B148: Cement | C148: ULTRACEMCO | D148: 3802.60 | E148: 3805.97 | F148: 3774.83 | G148: 3747.07 | H148: 3715.93 | I148: 3833.73 | J148: 3864.87 | K148: 3892.63 | L148: 3837.1 | M148: 3778.2 | N148: 2428400 | O148: 2.41%
A149: 139 | B149: Fertilisers | C149: UPL | D149: 440.80 | E149: 440.87 | F149: 436.73 | G149: 432.67 | H149: 428.53 | I149: 444.93 | J149: 449.07 | K149: 453.13 | L149: 445 | M149: 436.8 | N149: 11350300 | O149: 0.16%
A150: 140 | B150: Metals | C150: VEDL | D150: 112.85 | E150: 112.98 | F150: 111.37 | G150: 109.88 | H150: 108.27 | I150: 114.47 | J150: 116.08 | K150: 117.57 | L150: 114.6 | M150: 111.5 | N150: 105152000 | O150: 2.63%
A151: 141 | B151: Capital_Goods | C151: VOLTAS | D151: 555.40 | E151: 558.38 | F151: 546.97 | G151: 538.53 | H151: 527.12 | I151: 566.82 | J151: 578.23 | K151: 586.67 | L151: 569.8 | M151: 549.95 | N151: 3350000 | O151: -0.18%
A152: 142 | B152: Technology | C152: WIPRO | D152: 228.55 | E152: 227.28 | F152: 224.67 | G152: 220.78 | H152: 218.17 | I152: 231.17 | J152: 233.78 | K152: 237.67 | L152: 229.9 | M152: 223.4 | N152: 27945600 | O152: 1.63%
A153: 143 | B153: Media | C153: ZEEL | D153: 173.85 | E153: 173.25 | F153: 171.35 | G153: 168.85 | H153: 166.95 | I153: 175.75 | J153: 177.65 | K153: 180.15 | L153: 175.15 | M153: 170.75 | N153: 18996000 | O153: -5.83%
A154: 144
A155: 145
A156: 146
A157: 147
A175: Pivot Point: This is trigger point for intra day buy/sell based on the price range of the previous day
A176: As per the tool,the trader should take BUY position just above Pivot and keep the stop loss of pivot point and the first target would be Resistance 1(R1)
A177: If R1 is crossed then R2 becomes the next target with stop loss of at R1
A178: Similarly if price goes below pivot point then the trader should sell and keep a stop loss of pivot point and the first target would be S1
A179: If S1 is crossed then S2 becomes the next target with stop loss of at S1
A181: Disclaimer:
A182: This document has been prepared by the Retail Research Desk of Asit C Mehta
A183: Investment Intermediates Ltd. and is meant for use of the recipient only
A184: and is not for circulation. This document is not to be reported or
A185: copied or made available to others. It should not be considered to be
A186: taken as an offer to sell or a solicitation to buy any security. The
A187: information contained herein is from sources believed reliable. We do
A188: not represent that it is accurate or complete and it should not be
A189: relied upon as such. We may from time to time have positions in and buy
A190: and sell securities referred to herein

Sheet Cash Intra
M5: Back to Main Page
A6: FOR INTRA DAY TRADING | K6: =Main!B10 -> 2020-07-14
A8: Sr.no | B8: Scrip | C8: CLOSE RATE | D8: Pivot Point | E8: Supports | H8: Resistances
C9: Point | E9: S1 | F9: S2 | G9: S3 | H9: R1 | I9: R2 | J9: R3 | K9: HIGH | L9: LOW | M9: Total Trade Quanity in Lakhs
A10: 1 | B10: Nifty 50 | C10: 10802.7 | D10: 10817.60 | E10: 10741.15 | F10: 10679.60 | G10: 10603.15 | H10: 10879.15 | I10: 10955.60 | J10: 11017.15 | K10: 10894.05 | L10: 10756.05
A11: 2 | B11: Nifty Bank | C11: 22089.25 | D11: 22242.77 | E11: 21828.13 | F11: 21567.02 | G11: 21152.38 | H11: 22503.88 | I11: 22918.52 | J11: 23179.63 | K11: 22657.4 | L11: 21981.65
A12: 3 | B12: Nifty CPSE | C12: 1419.2 | D12: 1425.03 | E12: 1410.27 | F12: 1401.33 | G12: 1386.57 | H12: 1433.97 | I12: 1448.73 | J12: 1457.67 | K12: 1439.8 | L12: 1416.1
A13: 4 | B13: Nifty Infra | C13: 3111.95 | D13: 3109.68 | E13: 3095.52 | F13: 3079.08 | G13: 3064.92 | H13: 3126.12 | I13: 3140.28 | J13: 3156.72 | K13: 3123.85 | L13: 3093.25
A14: 5 | B14: Nifty IT | C14: 15819.2 | D14: 15776.52 | E14: 15667.48 | F14: 15515.77 | G14: 15406.73 | H14: 15928.23 | I14: 16037.27 | J14: 16188.98 | K14: 15885.55 | L14: 15624.8
A15: 6 | B15: Nifty PSE | C15: 2478.4 | D15: 2487.78 | E15: 2464.47 | F15: 2450.53 | G15: 2427.22 | H15: 2501.72 | I15: 2525.03 | J15: 2538.97 | K15: 2511.1 | L15: 2473.85
A16: 7 | B16: Nifty Midcap 50 | C16: 4256.3 | D16: 4271.55 | E16: 4224.80 | F16: 4193.30 | G16: 4146.55 | H16: 4303.05 | I16: 4349.80 | J16: 4381.30 | K16: 4318.3 | L16: 4240.05
A17: 8 | B17: ACC | C17: 1346 | D17: 1336.58 | E17: 1319.67 | F17: 1293.33 | G17: 1276.42 | H17: 1362.92 | I17: 1379.83 | J17: 1406.17 | K17: 1353.5 | L17: 1310.25 | M17: 17.07292
A18: 9 | B18: AUBANK | C18: 624.55 | D18: 629.18 | E18: 612.37 | F18: 600.18 | G18: 583.37 | H18: 641.37 | I18: 658.18 | J18: 670.37 | K18: 646 | L18: 617 | M18: 6.9628
A19: 10 | B19: ADANIPORTS | C19: 332.2 | D19: 334.45 | E19: 329.25 | F19: 326.30 | G19: 321.10 | H19: 337.40 | I19: 342.60 | J19: 345.55 | K19: 339.65 | L19: 331.5 | M19: 21.87706
A20: 11 | B20: ADANIPOWER | C20: 34.7 | D20: 34.68 | E20: 34.42 | F20: 34.13 | G20: 33.87 | H20: 34.97 | I20: 35.23 | J20: 35.52 | K20: 34.95 | L20: 34.4 | M20: 33.33128
A21: 12 | B21: ABCAPITAL | C21: 60.25 | D21: 60.88 | E21: 58.97 | F21: 57.68 | G21: 55.77 | H21: 62.17 | I21: 64.08 | J21: 65.37 | K21: 62.8 | L21: 59.6 | M21: 26.96934
A22: 13 | B22: ABFRL | C22: 120.2 | D22: 120.67 | E22: 118.83 | F22: 117.47 | G22: 115.63 | H22: 122.03 | I22: 123.87 | J22: 125.23 | K22: 122.5 | L22: 119.3 | M22: 14.05102
A23: 14 | B23: AJANTPHARM | C23: 1388.2 | D23: 1398.73 | E23: 1371.47 | F23: 1354.73 | G23: 1327.47 | H23: 1415.47 | I23: 1442.73 | J23: 1459.47 | K23: 1426 | L23: 1382 | M23: 1.44362
A24: 15 | B24: ALKEM | C24: 2407 | D24: 2400.98 | E24: 2357.02 | F24: 2307.03 | G24: 2263.07 | H24: 2450.97 | I24: 2494.93 | J24: 2544.92 | K24: 2444.95 | L24: 2351 | M24: 0.86902
A25: 16 | B25: AMARAJABAT | C25: 698.2 | D25: 701.57 | E25: 690.73 | F25: 683.27 | G25: 672.43 | H25: 709.03 | I25: 719.87 | J25: 727.33 | K25: 712.4 | L25: 694.1 | M25: 7.92988
A26: 17 | B26: AMBUJACEM | C26: 198.45 | D26: 197.30 | E26: 194.90 | F26: 191.35 | G26: 188.95 | H26: 200.85 | I26: 203.25 | J26: 206.80 | K26: 199.7 | L26: 193.75 | M26: 52.13446
A27: 18 | B27: APOLLOHOSP | C27: 1431.45 | D27: 1426.97 | E27: 1411.03 | F27: 1390.62 | G27: 1374.68 | H27: 1447.38 | I27: 1463.32 | J27: 1483.73 | K27: 1442.9 | L27: 1406.55 | M27: 7.69109
A28: 19 | B28: APOLLOTYRE | C28: 114.1 | D28: 113.87 | E28: 112.48 | F28: 110.87 | G28: 109.48 | H28: 115.48 | I28: 116.87 | J28: 118.48 | K28: 115.25 | L28: 112.25 | M28: 35.29042
A29: 20 | B29: ASHOKLEY | C29: 50.8 | D29: 51.28 | E29: 50.12 | F29: 49.43 | G29: 48.27 | H29: 51.97 | I29: 53.13 | J29: 53.82 | K29: 52.45 | L29: 50.6 | M29: 229.19466
A30: 21 | B30: ASIANPAINT | C30: 1705.65 | D30: 1712.85 | E30: 1692.80 | F30: 1679.95 | G30: 1659.90 | H30: 1725.70 | I30: 1745.75 | J30: 1758.60 | K30: 1732.9 | L30: 1700 | M30: 12.89791
A31: 22 | B31: AUROPHARMA | C31: 809.5 | D31: 814.60 | E31: 801.50 | F31: 793.50 | G31: 780.40 | H31: 822.60 | I31: 835.70 | J31: 843.70 | K31: 827.7 | L31: 806.6 | M31: 30.76468
A32: 23 | B32: DMART | C32: 2233.95 | D32: 2239.63 | E32: 2174.32 | F32: 2114.68 | G32: 2049.37 | H32: 2299.27 | I32: 2364.58 | J32: 2424.22 | K32: 2304.95 | L32: 2180 | M32: 17.54347
A33: 24 | B33: AXISBANK | C33: 440.05 | D33: 439.73 | E33: 433.07 | F33: 426.08 | G33: 419.42 | H33: 446.72 | I33: 453.38 | J33: 460.37 | K33: 446.4 | L33: 432.75 | M33: 213.26996
A34: 25 | B34: BAJAJ-AUTO | C34: 2900 | D34: 2895.60 | E34: 2881.20 | F34: 2862.40 | G34: 2848.00 | H34: 2914.40 | I34: 2928.80 | J34: 2947.60 | K34: 2910 | L34: 2876.8 | M34: 4.81614
A35: 26 | B35: BAJFINANCE | C35: 3234.6 | D35: 3276.27 | E35: 3174.53 | F35: 3114.47 | G35: 3012.73 | H35: 3336.33 | I35: 3438.07 | J35: 3498.13 | K35: 3378 | L35: 3216.2 | M35: 131.36482
A36: 27 | B36: BAJAJFINSV | C36: 6461.45 | D36: 6484.62 | E36: 6376.83 | F36: 6292.22 | G36: 6184.43 | H36: 6569.23 | I36: 6677.02 | J36: 6761.63 | K36: 6592.4 | L36: 6400 | M36: 8.10726
A37: 28 | B37: BAJAJHLDNG | C37: 2723.25 | D37: 2723.15 | E37: 2681.30 | F37: 2639.35 | G37: 2597.50 | H37: 2765.10 | I37: 2806.95 | J37: 2848.90 | K37: 2765 | L37: 2681.2 | M37: 1.28517
A38: 29 | B38: BALKRISIND | C38: 1277.45 | D38: 1278.13 | E38: 1260.32 | F38: 1243.18 | G38: 1225.37 | H38: 1295.27 | I38: 1313.08 | J38: 1330.22 | K38: 1295.95 | L38: 1261 | M38: 10.14046
A39: 30 | B39: BANDHANBNK | C39: 370.1 | D39: 373.40 | E39: 364.05 | F39: 358.00 | G39: 348.65 | H39: 379.45 | I39: 388.80 | J39: 394.85 | K39: 382.75 | L39: 367.35 | M39: 101.49824
A40: 31 | B40: BANKBARODA | C40: 50.55 | D40: 51.05 | E40: 49.65 | F40: 48.75 | G40: 47.35 | H40: 51.95 | I40: 53.35 | J40: 54.25 | K40: 52.45 | L40: 50.15 | M40: 313.68155
A41: 32 | B41: BANKINDIA | C41: 48.25 | D41: 48.72 | E41: 47.53 | F41: 46.82 | G41: 45.63 | H41: 49.43 | I41: 50.62 | J41: 51.33 | K41: 49.9 | L41: 48 | M41: 18.88289
A42: 33 | B42: BATAINDIA | C42: 1251.85 | D42: 1259.37 | E42: 1237.78 | F42: 1223.72 | G42: 1202.13 | H42: 1273.43 | I42: 1295.02 | J42: 1309.08 | K42: 1280.95 | L42: 1245.3 | M42: 12.66076
A43: 34 | B43: BERGEPAINT | C43: 499.75 | D43: 501.73 | E43: 495.52 | F43: 491.28 | G43: 485.07 | H43: 505.97 | I43: 512.18 | J43: 516.42 | K43: 507.95 | L43: 497.5 | M43: 8.58326
A44: 35 | B44: BEL | C44: 98.5 | D44: 99.18 | E44: 97.02 | F44: 95.53 | G44: 93.37 | H44: 100.67 | I44: 102.83 | J44: 104.32 | K44: 101.35 | L44: 97.7 | M44: 107.91094
A45: 36 | B45: BHARATFORG | C45: 369.05 | D45: 368.42 | E45: 358.93 | F45: 348.82 | G45: 339.33 | H45: 378.53 | I45: 388.02 | J45: 398.13 | K45: 377.9 | L45: 358.3 | M45: 86.21256
A46: 37 | B46: BHEL | C46: 42.6 | D46: 42.47 | E46: 41.93 | F46: 41.27 | G46: 40.73 | H46: 43.13 | I46: 43.67 | J46: 44.33 | K46: 43 | L46: 41.8 | M46: 448.13674
A47: 38 | B47: BPCL | C47: 379.95 | D47: 379.87 | E47: 375.53 | F47: 371.12 | G47: 366.78 | H47: 384.28 | I47: 388.62 | J47: 393.03 | K47: 384.2 | L47: 375.45 | M47: 51.39428
A48: 39 | B48: BHARTIARTL | C48: 586.8 | D48: 581.93 | E48: 574.87 | F48: 562.93 | G48: 555.87 | H48: 593.87 | I48: 600.93 | J48: 612.87 | K48: 589 | L48: 570 | M48: 163.53967
A49: 40 | B49: INFRATEL | C49: 211.7 | D49: 210.83 | E49: 208.92 | F49: 206.13 | G49: 204.22 | H49: 213.62 | I49: 215.53 | J49: 218.32 | K49: 212.75 | L49: 208.05 | M49: 50.91903
A50: 41 | B50: BIOCON | C50: 414.85 | D50: 424.85 | E50: 402.75 | F50: 390.65 | G50: 368.55 | H50: 436.95 | I50: 459.05 | J50: 471.15 | K50: 446.95 | L50: 412.75 | M50: 201.81221
A51: 42 | B51: BBTC | C51: 1231.1 | D51: 1240.70 | E51: 1211.40 | F51: 1191.70 | G51: 1162.40 | H51: 1260.40 | I51: 1289.70 | J51: 1309.40 | K51: 1270 | L51: 1221 | M51: 5.96133
A52: 43 | B52: BOSCHLTD | C52: 13858.9 | D52: 13717.97 | E52: 13475.93 | F52: 13092.97 | G52: 12850.93 | H52: 14100.93 | I52: 14342.97 | J52: 14725.93 | K52: 13960 | L52: 13335 | M52: 0.6139
A53: 44 | B53: BRITANNIA | C53: 3796.8 | D53: 3794.02 | E53: 3753.03 | F53: 3709.27 | G53: 3668.28 | H53: 3837.78 | I53: 3878.77 | J53: 3922.53 | K53: 3835 | L53: 3750.25 | M53: 11.08644
A54: 45 | B54: CESC | C54: 655.15 | D54: 648.43 | E54: 634.87 | F54: 614.58 | G54: 601.02 | H54: 668.72 | I54: 682.28 | J54: 702.57 | K54: 662 | L54: 628.15 | M54: 3.9607
A55: 46 | B55: CADILAHC | C55: 358.1 | D55: 358.08 | E55: 356.02 | F55: 353.93 | G55: 351.87 | H55: 360.17 | I55: 362.23 | J55: 364.32 | K55: 360.15 | L55: 356 | M55: 18.69088
A56: 47 | B56: CANBK | C56: 103.4 | D56: 104.10 | E56: 102.05 | F56: 100.70 | G56: 98.65 | H56: 105.45 | I56: 107.50 | J56: 108.85 | K56: 106.15 | L56: 102.75 | M56: 156.07691
A57: 48 | B57: CASTROLIND | C57: 121.95 | D57: 122.55 | E57: 121.10 | F57: 120.25 | G57: 118.80 | H57: 123.40 | I57: 124.85 | J57: 125.70 | K57: 124 | L57: 121.7 | M57: 6.78797
A58: 49 | B58: CHOLAFIN | C58: 205.25 | D58: 207.50 | E58: 202.10 | F58: 198.95 | G58: 193.55 | H58: 210.65 | I58: 216.05 | J58: 219.20 | K58: 212.9 | L58: 204.35 | M58: 56.81014
A59: 50 | B59: CIPLA | C59: 638.35 | D59: 640.32 | E59: 634.63 | F59: 630.92 | G59: 625.23 | H59: 644.03 | I59: 649.72 | J59: 653.43 | K59: 646 | L59: 636.6 | M59: 34.50074
A60: 51 | B60: CUB | C60: 127.75 | D60: 129.70 | E60: 125.40 | F60: 123.05 | G60: 118.75 | H60: 132.05 | I60: 136.35 | J60: 138.70 | K60: 134 | L60: 127.35 | M60: 20.93785
A61: 52 | B61: COALINDIA | C61: 130.5 | D61: 131.08 | E61: 129.72 | F61: 128.93 | G61: 127.57 | H61: 131.87 | I61: 133.23 | J61: 134.02 | K61: 132.45 | L61: 130.3 | M61: 77.48616
A62: 53 | B62: COLPAL | C62: 1432.15 | D62: 1421.33 | E62: 1405.82 | F62: 1379.48 | G62: 1363.97 | H62: 1447.67 | I62: 1463.18 | J62: 1489.52 | K62: 1436.85 | L62: 1395 | M62: 16.12858
A63: 54 | B63: CONCOR | C63: 425.45 | D63: 428.57 | E63: 419.28 | F63: 413.12 | G63: 403.83 | H63: 434.73 | I63: 444.02 | J63: 450.18 | K63: 437.85 | L63: 422.4 | M63: 12.75777
A64: 55 | B64: COROMANDEL | C64: 750.75 | D64: 757.08 | E64: 739.67 | F64: 728.58 | G64: 711.17 | H64: 768.17 | I64: 785.58 | J64: 796.67 | K64: 774.5 | L64: 746 | M64: 6.28123
A65: 56 | B65: CROMPTON | C65: 245.8 | D65: 246.23 | E65: 238.47 | F65: 231.13 | G65: 223.37 | H65: 253.57 | I65: 261.33 | J65: 268.67 | K65: 254 | L65: 238.9 | M65: 9.79806
A66: 57 | B66: CUMMINSIND | C66: 388.4 | D66: 391.75 | E66: 383.65 | F66: 378.90 | G66: 370.80 | H66: 396.50 | I66: 404.60 | J66: 409.35 | K66: 399.85 | L66: 387 | M66: 15.22264
A67: 58 | B67: DLF | C67: 142.9 | D67: 144.58 | E67: 139.97 | F67: 137.03 | G67: 132.42 | H67: 147.52 | I67: 152.13 | J67: 155.07 | K67: 149.2 | L67: 141.65 | M67: 136.87808
A68: 59 | B68: DABUR | C68: 484.5 | D68: 481.70 | E68: 477.40 | F68: 470.30 | G68: 466.00 | H68: 488.80 | I68: 493.10 | J68: 500.20 | K68: 486 | L68: 474.6 | M68: 31.08357
A69: 60 | B69: DALBHARAT | C69: 697.45 | D69: 698.95 | E69: 689.90 | F69: 682.35 | G69: 673.30 | H69: 706.50 | I69: 715.55 | J69: 723.10 | K69: 708 | L69: 691.4 | M69: 2.19503
A70: 61 | B70: DIVISLAB | C70: 2235.15 | D70: 2224.12 | E70: 2208.23 | F70: 2181.32 | G70: 2165.43 | H70: 2251.03 | I70: 2266.92 | J70: 2293.83 | K70: 2240 | L70: 2197.2 | M70: 6.00585
A71: 62 | B71: DRREDDY | C71: 3899.55 | D71: 3900.83 | E71: 3872.72 | F71: 3845.88 | G71: 3817.77 | H71: 3927.67 | I71: 3955.78 | J71: 3982.62 | K71: 3928.95 | L71: 3874 | M71: 5.3569
A72: 63 | B72: EDELWEISS | C72: 56.8 | D72: 56.67 | E72: 55.73 | F72: 54.67 | G72: 53.73 | H72: 57.73 | I72: 58.67 | J72: 59.73 | K72: 57.6 | L72: 55.6 | M72: 18.36284
A73: 64 | B73: EICHERMOT | C73: 19655 | D73: 19611.33 | E73: 19493.67 | F73: 19332.33 | G73: 19214.67 | H73: 19772.67 | I73: 19890.33 | J73: 20051.67 | K73: 19729 | L73: 19450 | M73: 1.33183
A74: 65 | B74: EMAMILTD | C74: 245.2 | D74: 240.42 | E74: 232.33 | F74: 219.47 | G74: 211.38 | H74: 253.28 | I74: 261.37 | J74: 274.23 | K74: 248.5 | L74: 227.55 | M74: 17.58932
A75: 66 | B75: ENDURANCE | C75: 913.25 | D75: 920.53 | E75: 895.77 | F75: 878.28 | G75: 853.52 | H75: 938.02 | I75: 962.78 | J75: 980.27 | K75: 945.3 | L75: 903.05 | M75: 0.86857
A76: 67 | B76: ENGINERSIN | C76: 72.2 | D76: 72.53 | E76: 71.67 | F76: 71.13 | G76: 70.27 | H76: 73.07 | I76: 73.93 | J76: 74.47 | K76: 73.4 | L76: 72 | M76: 12.08625
A77: 68 | B77: ESCORTS | C77: 1129.15 | D77: 1136.08 | E77: 1117.37 | F77: 1105.58 | G77: 1086.87 | H77: 1147.87 | I77: 1166.58 | J77: 1178.37 | K77: 1154.8 | L77: 1124.3 | M77: 19.42503
A78: 69 | B78: EXIDEIND | C78: 156.2 | D78: 155.58 | E78: 154.47 | F78: 152.73 | G78: 151.62 | H78: 157.32 | I78: 158.43 | J78: 160.17 | K78: 156.7 | L78: 153.85 | M78: 17.9955
A79: 70 | B79: FEDERALBNK | C79: 53.05 | D79: 53.57 | E79: 52.23 | F79: 51.42 | G79: 50.08 | H79: 54.38 | I79: 55.72 | J79: 56.53 | K79: 54.9 | L79: 52.75 | M79: 209.19444
A80: 71 | B80: FORTIS | C80: 123.15 | D80: 123.12 | E80: 121.83 | F80: 120.52 | G80: 119.23 | H80: 124.43 | I80: 125.72 | J80: 127.03 | K80: 124.4 | L80: 121.8 | M80: 14.35724
A81: 72 | B81: FCONSUMER | C81: 11.75 | D81: 11.42 | E81: 11.08 | F81: 10.42 | G81: 10.08 | H81: 12.08 | I81: 12.42 | J81: 13.08 | K81: 11.75 | L81: 10.75 | M81: 998.05158
A82: 73 | B82: FRETAIL | C82: 111.05 | D82: 109.03 | E82: 107.02 | F82: 102.98 | G82: 100.97 | H82: 113.07 | I82: 115.08 | J82: 119.12 | K82: 111.05 | L82: 105 | M82: 82.9513
A83: 74 | B83: GAIL | C83: 101.1 | D83: 101.78 | E83: 99.62 | F83: 98.13 | G83: 95.97 | H83: 103.27 | I83: 105.43 | J83: 106.92 | K83: 103.95 | L83: 100.3 | M83: 103.92495
A84: 75 | B84: GMRINFRA | C84: 19.95 | D84: 20.10 | E84: 19.75 | F84: 19.55 | G84: 19.20 | H84: 20.30 | I84: 20.65 | J84: 20.85 | K84: 20.45 | L84: 19.9 | M84: 75.80536
A85: 76 | B85: GICRE | C85: 153.15 | D85: 154.40 | E85: 151.25 | F85: 149.35 | G85: 146.20 | H85: 156.30 | I85: 159.45 | J85: 161.35 | K85: 157.55 | L85: 152.5 | M85: 2.20311
A86: 77 | B86: GLENMARK | C86: 415.5 | D86: 420.33 | E86: 408.67 | F86: 401.83 | G86: 390.17 | H86: 427.17 | I86: 438.83 | J86: 445.67 | K86: 432 | L86: 413.5 | M86: 31.09961
A87: 78 | B87: GODREJAGRO | C87: 451.45 | D87: 453.65 | E87: 445.30 | F87: 439.15 | G87: 430.80 | H87: 459.80 | I87: 468.15 | J87: 474.30 | K87: 462 | L87: 447.5 | M87: 1.77784
A88: 79 | B88: GODREJCP | C88: 695.1 | D88: 696.68 | E88: 688.42 | F88: 681.73 | G88: 673.47 | H88: 703.37 | I88: 711.63 | J88: 718.32 | K88: 704.95 | L88: 690 | M88: 14.86087
A89: 80 | B89: GODREJIND | C89: 364.65 | D89: 369.02 | E89: 356.58 | F89: 348.52 | G89: 336.08 | H89: 377.08 | I89: 389.52 | J89: 397.58 | K89: 381.45 | L89: 360.95 | M89: 1.8538
A90: 81 | B90: GODREJPROP | C90: 894.2 | D90: 895.85 | E90: 883.75 | F90: 873.30 | G90: 861.20 | H90: 906.30 | I90: 918.40 | J90: 928.85 | K90: 907.95 | L90: 885.4 | M90: 5.77851
A91: 82 | B91: GRAPHITE | C91: 177.75 | D91: 179.07 | E91: 175.68 | F91: 173.62 | G91: 170.23 | H91: 181.13 | I91: 184.52 | J91: 186.58 | K91: 182.45 | L91: 177 | M91: 3.29152
A92: 83 | B92: GRASIM | C92: 611.75 | D92: 612.42 | E92: 606.88 | F92: 602.02 | G92: 596.48 | H92: 617.28 | I92: 622.82 | J92: 627.68 | K92: 617.95 | L92: 607.55 | M92: 17.15549
A93: 84 | B93: GSPL | C93: 207.5 | D93: 210.15 | E93: 203.35 | F93: 199.20 | G93: 192.40 | H93: 214.30 | I93: 221.10 | J93: 225.25 | K93: 216.95 | L93: 206 | M93: 5.24501
A94: 85 | B94: HEG | C94: 774.4 | D94: 783.40 | E94: 761.35 | F94: 748.30 | G94: 726.25 | H94: 796.45 | I94: 818.50 | J94: 831.55 | K94: 805.45 | L94: 770.35 | M94: 2.24556
A95: 86 | B95: HCLTECH | C95: 602.6 | D95: 596.98 | E95: 588.97 | F95: 575.33 | G95: 567.32 | H95: 610.62 | I95: 618.63 | J95: 632.27 | K95: 605 | L95: 583.35 | M95: 54.43995
A96: 87 | B96: HDFCAMC | C96: 2445.7 | D96: 2447.58 | E96: 2416.42 | F96: 2387.13 | G96: 2355.97 | H96: 2476.87 | I96: 2508.03 | J96: 2537.32 | K96: 2478.75 | L96: 2418.3 | M96: 2.99121
A97: 88 | B97: HDFCBANK | C97: 1080.25 | D97: 1088.18 | E97: 1063.37 | F97: 1046.48 | G97: 1021.67 | H97: 1105.07 | I97: 1129.88 | J97: 1146.77 | K97: 1113 | L97: 1071.3 | M97: 149.61695
A98: 89 | B98: HDFCLIFE | C98: 600.3 | D98: 596.02 | E98: 588.28 | F98: 576.27 | G98: 568.53 | H98: 608.03 | I98: 615.77 | J98: 627.78 | K98: 603.75 | L98: 584 | M98: 28.54269
A99: 90 | B99: HAVELLS | C99: 587.1 | D99: 584.45 | E99: 579.65 | F99: 572.20 | G99: 567.40 | H99: 591.90 | I99: 596.70 | J99: 604.15 | K99: 589.25 | L99: 577 | M99: 9.39648
A100: 91 | B100: HEROMOTOCO | C100: 2689.7 | D100: 2691.47 | E100: 2668.58 | F100: 2647.47 | G100: 2624.58 | H100: 2712.58 | I100: 2735.47 | J100: 2756.58 | K100: 2714.35 | L100: 2670.35 | M100: 7.1359
A101: 92 | B101: HEXAWARE | C101: 346.1 | D101: 345.85 | E101: 343.30 | F101: 340.50 | G101: 337.95 | H101: 348.65 | I101: 351.20 | J101: 354.00 | K101: 348.4 | L101: 343.05 | M101: 9.12782
A102: 93 | B102: HINDALCO | C102: 169.25 | D102: 167.95 | E102: 165.40 | F102: 161.55 | G102: 159.00 | H102: 171.80 | I102: 174.35 | J102: 178.20 | K102: 170.5 | L102: 164.1 | M102: 218.94781
A103: 94 | B103: HINDPETRO | C103: 210.8 | D103: 211.65 | E103: 208.35 | F103: 205.90 | G103: 202.60 | H103: 214.10 | I103: 217.40 | J103: 219.85 | K103: 214.95 | L103: 209.2 | M103: 65.09815
A104: 95 | B104: HINDUNILVR | C104: 2265.25 | D104: 2258.42 | E104: 2241.83 | F104: 2218.42 | G104: 2201.83 | H104: 2281.83 | I104: 2298.42 | J104: 2321.83 | K104: 2275 | L104: 2235 | M104: 45.56688
A105: 96 | B105: HINDZINC | C105: 195.05 | D105: 193.85 | E105: 191.30 | F105: 187.55 | G105: 185.00 | H105: 197.60 | I105: 200.15 | J105: 203.90 | K105: 196.4 | L105: 190.1 | M105: 21.87263
A106: 97 | B106: HUDCO | C106: 36.45 | D106: 36.68 | E106: 35.92 | F106: 35.38 | G106: 34.62 | H106: 37.22 | I106: 37.98 | J106: 38.52 | K106: 37.45 | L106: 36.15 | M106: 19.57087
A107: 98 | B107: HDFC | C107: 1845.55 | D107: 1864.25 | E107: 1821.30 | F107: 1797.05 | G107: 1754.10 | H107: 1888.50 | I107: 1931.45 | J107: 1955.70 | K107: 1907.2 | L107: 1840 | M107: 34.03604
A108: 99 | B108: ICICIBANK | C108: 353.6 | D108: 357.70 | E108: 348.40 | F108: 343.20 | G108: 333.90 | H108: 362.90 | I108: 372.20 | J108: 377.40 | K108: 367 | L108: 352.5 | M108: 323.7995
A109: 100 | B109: ICICIGI | C109: 1273.85 | D109: 1270.97 | E109: 1253.93 | F109: 1234.02 | G109: 1216.98 | H109: 1290.88 | I109: 1307.92 | J109: 1327.83 | K109: 1288 | L109: 1251.05 | M109: 3.34234
A110: 101 | B110: ICICIPRULI | C110: 423.75 | D110: 422.67 | E110: 420.08 | F110: 416.42 | G110: 413.83 | H110: 426.33 | I110: 428.92 | J110: 432.58 | K110: 425.25 | L110: 419 | M110: 15.72733
A111: 102 | B111: IDBI | C111: 41.55 | D111: 42.15 | E111: 40.95 | F111: 40.35 | G111: 39.15 | H111: 42.75 | I111: 43.95 | J111: 44.55 | K111: 43.35 | L111: 41.55 | M111: 81.14719
A112: 103 | B112: IDFCFIRSTB | C112: 26.9 | D112: 27.05 | E112: 26.50 | F112: 26.10 | G112: 25.55 | H112: 27.45 | I112: 28.00 | J112: 28.40 | K112: 27.6 | L112: 26.65 | M112: 287.1121
A113: 104 | B113: ITC | C113: 197.55 | D113: 197.13 | E113: 195.52 | F113: 193.48 | G113: 191.87 | H113: 199.17 | I113: 200.78 | J113: 202.82 | K113: 198.75 | L113: 195.1 | M113: 202.98006
A114: 105 | B114: IBULHSGFIN | C114: 238.4 | D114: 241.60 | E114: 232.40 | F114: 226.40 | G114: 217.20 | H114: 247.60 | I114: 256.80 | J114: 262.80 | K114: 250.8 | L114: 235.6 | M114: 544.4228
A115: 106 | B115: IBVENTURES | C115: 128.2 | D115: 129.45 | E115: 124.90 | F115: 121.60 | G115: 117.05 | H115: 132.75 | I115: 137.30 | J115: 140.60 | K115: 134 | L115: 126.15 | M115: 17.12695
A116: 107 | B116: INDIANB | C116: 62.75 | D116: 63.28 | E116: 61.97 | F116: 61.18 | G116: 59.87 | H116: 64.07 | I116: 65.38 | J116: 66.17 | K116: 64.6 | L116: 62.5 | M116: 19.36594
A117: 108 | B117: INDHOTEL | C117: 80.05 | D117: 80.53 | E117: 79.12 | F117: 78.18 | G117: 76.77 | H117: 81.47 | I117: 82.88 | J117: 83.82 | K117: 81.95 | L117: 79.6 | M117: 10.51905
A118: 109 | B118: IOC | C118: 87.4 | D118: 87.12 | E118: 86.48 | F118: 85.57 | G118: 84.93 | H118: 88.03 | I118: 88.67 | J118: 89.58 | K118: 87.75 | L118: 86.2 | M118: 166.59178
A119: 110 | B119: IGL | C119: 405.85 | D119: 406.57 | E119: 401.28 | F119: 396.72 | G119: 391.43 | H119: 411.13 | I119: 416.42 | J119: 420.98 | K119: 411.85 | L119: 402 | M119: 35.2704
A120: 111 | B120: INDUSINDBK | C120: 539.65 | D120: 543.05 | E120: 531.10 | F120: 522.55 | G120: 510.60 | H120: 551.60 | I120: 563.55 | J120: 572.10 | K120: 555 | L120: 534.5 | M120: 165.08012
A121: 112 | B121: NAUKRI | C121: 2834.2 | D121: 2860.65 | E121: 2796.30 | F121: 2758.40 | G121: 2694.05 | H121: 2898.55 | I121: 2962.90 | J121: 3000.80 | K121: 2925 | L121: 2822.75 | M121: 1.60296
A122: 113 | B122: INFY | C122: 797.05 | D122: 796.15 | E122: 786.95 | F122: 776.85 | G122: 767.65 | H122: 806.25 | I122: 815.45 | J122: 825.55 | K122: 805.35 | L122: 786.05 | M122: 108.04911
A123: 114 | B123: INDIGO | C123: 1014.85 | D123: 1017.55 | E123: 1005.40 | F123: 995.95 | G123: 983.80 | H123: 1027.00 | I123: 1039.15 | J123: 1048.60 | K123: 1029.7 | L123: 1008.1 | M123: 6.77791
A124: 115 | B124: IPCALAB | C124: 1643.05 | D124: 1651.90 | E124: 1626.20 | F124: 1609.35 | G124: 1583.65 | H124: 1668.75 | I124: 1694.45 | J124: 1711.30 | K124: 1677.6 | L124: 1635.05 | M124: 1.18279
A125: 116 | B125: JSWENERGY | C125: 45.75 | D125: 45.80 | E125: 44.95 | F125: 44.15 | G125: 43.30 | H125: 46.60 | I125: 47.45 | J125: 48.25 | K125: 46.65 | L125: 45 | M125: 8.89949
A126: 117 | B126: JSWSTEEL | C126: 198.4 | D126: 197.82 | E126: 195.83 | F126: 193.27 | G126: 191.28 | H126: 200.38 | I126: 202.37 | J126: 204.93 | K126: 199.8 | L126: 195.25 | M126: 110.50735
A127: 118 | B127: JINDALSTEL | C127: 170.1 | D127: 170.38 | E127: 167.97 | F127: 165.83 | G127: 163.42 | H127: 172.52 | I127: 174.93 | J127: 177.07 | K127: 172.8 | L127: 168.25 | M127: 166.63165
A128: 119 | B128: JUBLFOOD | C128: 1634.65 | D128: 1626.57 | E128: 1604.13 | F128: 1573.62 | G128: 1551.18 | H128: 1657.08 | I128: 1679.52 | J128: 1710.03 | K128: 1649 | L128: 1596.05 | M128: 9.87263
A129: 120 | B129: JUBILANT | C129: 697.35 | D129: 703.10 | E129: 689.30 | F129: 681.25 | G129: 667.45 | H129: 711.15 | I129: 724.95 | J129: 733.00 | K129: 716.9 | L129: 695.05 | M129: 2.55859
A130: 121 | B130: KOTAKBANK | C130: 1335.55 | D130: 1341.52 | E130: 1318.13 | F130: 1300.72 | G130: 1277.33 | H130: 1358.93 | I130: 1382.32 | J130: 1399.73 | K130: 1364.9 | L130: 1324.1 | M130: 33.56703
A131: 122 | B131: L&TFH | C131: 68.25 | D131: 68.78 | E131: 67.27 | F131: 66.28 | G131: 64.77 | H131: 69.77 | I131: 71.28 | J131: 72.27 | K131: 70.3 | L131: 67.8 | M131: 146.20313
A132: 123 | B132: LTTS | C132: 1439 | D132: 1438.72 | E132: 1420.33 | F132: 1401.67 | G132: 1383.28 | H132: 1457.38 | I132: 1475.77 | J132: 1494.43 | K132: 1457.1 | L132: 1420.05 | M132: 1.53471
A133: 124 | B133: LICHSGFIN | C133: 274.85 | D133: 276.75 | E133: 271.60 | F133: 268.35 | G133: 263.20 | H133: 280.00 | I133: 285.15 | J133: 288.40 | K133: 281.9 | L133: 273.5 | M133: 26.3067
A134: 125 | B134: LTI | C134: 2196.05 | D134: 2180.85 | E134: 2131.70 | F134: 2067.35 | G134: 2018.20 | H134: 2245.20 | I134: 2294.35 | J134: 2358.70 | K134: 2230 | L134: 2116.5 | M134: 4.78574
A135: 126 | B135: LT | C135: 928.15 | D135: 932.65 | E135: 920.50 | F135: 912.85 | G135: 900.70 | H135: 940.30 | I135: 952.45 | J135: 960.10 | K135: 944.8 | L135: 925 | M135: 38.21343
A136: 127 | B136: LUPIN | C136: 869.8 | D136: 868.38 | E136: 859.77 | F136: 849.73 | G136: 841.12 | H136: 878.42 | I136: 887.03 | J136: 897.07 | K136: 877 | L136: 858.35 | M136: 19.10103
A137: 128 | B137: MRF | C137: 64673.45 | D137: 64907.45 | E137: 64116.00 | F137: 63558.55 | G137: 62767.10 | H137: 65464.90 | I137: 66256.35 | J137: 66813.80 | K137: 65698.9 | L137: 64350 | M137: 0.08443
A138: 129 | B138: MGL | C138: 969.95 | D138: 972.08 | E138: 960.77 | F138: 951.58 | G138: 940.27 | H138: 981.27 | I138: 992.58 | J138: 1001.77 | K138: 983.4 | L138: 962.9 | M138: 6.85399
A139: 130 | B139: M&MFIN | C139: 204 | D139: 205.22 | E139: 201.83 | F139: 199.67 | G139: 196.28 | H139: 207.38 | I139: 210.77 | J139: 212.93 | K139: 208.6 | L139: 203.05 | M139: 94.93979
A140: 131 | B140: M&M | C140: 555.85 | D140: 555.18 | E140: 549.87 | F140: 543.88 | G140: 538.57 | H140: 561.17 | I140: 566.48 | J140: 572.47 | K140: 560.5 | L140: 549.2 | M140: 31.67393
A141: 132 | B141: MANAPPURAM | C141: 157.8 | D141: 159.03 | E141: 155.42 | F141: 153.03 | G141: 149.42 | H141: 161.42 | I141: 165.03 | J141: 167.42 | K141: 162.65 | L141: 156.65 | M141: 49.28754
A142: 133 | B142: MRPL | C142: 35.85 | D142: 36.10 | E142: 35.25 | F142: 34.65 | G142: 33.80 | H142: 36.70 | I142: 37.55 | J142: 38.15 | K142: 36.95 | L142: 35.5 | M142: 6.45217
A143: 134 | B143: MARICO | C143: 347.2 | D143: 345.77 | E143: 343.53 | F143: 339.87 | G143: 337.63 | H143: 349.43 | I143: 351.67 | J143: 355.33 | K143: 348 | L143: 342.1 | M143: 13.01824
A144: 135 | B144: MARUTI | C144: 5988.85 | D144: 5991.97 | E144: 5924.68 | F144: 5860.52 | G144: 5793.23 | H144: 6056.13 | I144: 6123.42 | J144: 6187.58 | K144: 6059.25 | L144: 5927.8 | M144: 10.35124
A145: 136 | B145: MFSL | C145: 560.5 | D145: 558.93 | E145: 552.07 | F145: 543.63 | G145: 536.77 | H145: 567.37 | I145: 574.23 | J145: 582.67 | K145: 565.8 | L145: 550.5 | M145: 6.84025
A146: 137 | B146: MINDTREE | C146: 1007.8 | D146: 1011.98 | E146: 997.42 | F146: 987.03 | G146: 972.47 | H146: 1022.37 | I146: 1036.93 | J146: 1047.32 | K146: 1026.55 | L146: 1001.6 | M146: 7.94007
A147: 138 | B147: MOTHERSUMI | C147: 96.1 | D147: 96.62 | E147: 94.98 | F147: 93.87 | G147: 92.23 | H147: 97.73 | I147: 99.37 | J147: 100.48 | K147: 98.25 | L147: 95.5 | M147: 101.95902
A148: 139 | B148: MPHASIS | C148: 923.65 | D148: 922.55 | E148: 911.10 | F148: 898.55 | G148: 887.10 | H148: 935.10 | I148: 946.55 | J148: 959.10 | K148: 934 | L148: 910 | M148: 1.18826
A149: 140 | B149: MUTHOOTFIN | C149: 1110.75 | D149: 1104.02 | E149: 1087.03 | F149: 1063.32 | G149: 1046.33 | H149: 1127.73 | I149: 1144.72 | J149: 1168.43 | K149: 1121 | L149: 1080.3 | M149: 20.18309
A150: 141 | B150: NATCOPHARM | C150: 679.05 | D150: 679.05 | E150: 673.10 | F150: 667.15 | G150: 661.20 | H150: 685.00 | I150: 690.95 | J150: 696.90 | K150: 685 | L150: 673.1 | M150: 2.41228
A151: 142 | B151: NBCC | C151: 25.15 | D151: 25.52 | E151: 24.68 | F151: 24.22 | G151: 23.38 | H151: 25.98 | I151: 26.82 | J151: 27.28 | K151: 26.35 | L151: 25.05 | M151: 94.41069
A152: 143 | B152: NHPC | C152: 20.3 | D152: 20.33 | E152: 20.17 | F152: 20.03 | G152: 19.87 | H152: 20.47 | I152: 20.63 | J152: 20.77 | K152: 20.5 | L152: 20.2 | M152: 26.72625
A153: 144 | B153: NMDC | C153: 85.65 | D153: 85.33 | E153: 84.32 | F153: 82.98 | G153: 81.97 | H153: 86.67 | I153: 87.68 | J153: 89.02 | K153: 86.35 | L153: 84 | M153: 61.73352
A154: 145 | B154: NTPC | C154: 89.9 | D154: 90.75 | E154: 88.65 | F154: 87.40 | G154: 85.30 | H154: 92.00 | I154: 94.10 | J154: 95.35 | K154: 92.85 | L154: 89.5 | M154: 175.12895
A155: 146 | B155: NATIONALUM | C155: 35.7 | D155: 36.05 | E155: 34.95 | F155: 34.20 | G155: 33.10 | H155: 36.80 | I155: 37.90 | J155: 38.65 | K155: 37.15 | L155: 35.3 | M155: 160.16795
A156: 147 | B156: NESTLEIND | C156: 16956.85 | D156: 16976.63 | E156: 16855.27 | F156: 16753.68 | G156: 16632.32 | H156: 17078.22 | I156: 17199.58 | J156: 17301.17 | K156: 17098 | L156: 16875.05 | M156: 1.14029
A157: 148 | B157: NAM-INDIA | C157: 286.55 | D157: 289.72 | E157: 281.03 | F157: 275.52 | G157: 266.83 | H157: 295.23 | I157: 303.92 | J157: 309.43 | K157: 298.4 | L157: 284.2 | M157: 8.06644
A158: 149 | B158: OBEROIRLTY | C158: 367.1 | D158: 367.57 | E158: 359.63 | F158: 352.17 | G158: 344.23 | H158: 375.03 | I158: 382.97 | J158: 390.43 | K158: 375.5 | L158: 360.1 | M158: 7.768
A159: 150 | B159: ONGC | C159: 78.9 | D159: 78.95 | E159: 78.35 | F159: 77.80 | G159: 77.20 | H159: 79.50 | I159: 80.10 | J159: 80.65 | K159: 79.55 | L159: 78.4 | M159: 93.61006
A160: 151 | B160: OIL | C160: 97.6 | D160: 98.43 | E160: 96.27 | F160: 94.93 | G160: 92.77 | H160: 99.77 | I160: 101.93 | J160: 103.27 | K160: 100.6 | L160: 97.1 | M160: 8.29739
A161: 152 | B161: OFSS | C161: 2818.15 | D161: 2798.50 | E161: 2752.00 | F161: 2685.85 | G161: 2639.35 | H161: 2864.65 | I161: 2911.15 | J161: 2977.30 | K161: 2845 | L161: 2732.35 | M161: 0.40064
A162: 153 | B162: PIIND | C162: 1695.65 | D162: 1717.78 | E162: 1650.62 | F162: 1605.58 | G162: 1538.42 | H162: 1762.82 | I162: 1829.98 | J162: 1875.02 | K162: 1784.95 | L162: 1672.75 | M162: 2.9598
A163: 154 | B163: PNBHOUSING | C163: 209.55 | D163: 210.85 | E163: 206.70 | F163: 203.85 | G163: 199.70 | H163: 213.70 | I163: 217.85 | J163: 220.70 | K163: 215 | L163: 208 | M163: 2.78211
A164: 155 | B164: PAGEIND | C164: 19910.35 | D164: 19903.45 | E164: 19681.95 | F164: 19453.55 | G164: 19232.05 | H164: 20131.85 | I164: 20353.35 | J164: 20581.75 | K164: 20124.95 | L164: 19675.05 | M164: 0.15098
A165: 156 | B165: PETRONET | C165: 265.35 | D165: 265.42 | E165: 262.53 | F165: 259.72 | G165: 256.83 | H165: 268.23 | I165: 271.12 | J165: 273.93 | K165: 268.3 | L165: 262.6 | M165: 23.64528
A166: 157 | B166: PFIZER | C166: 4126.6 | D166: 4118.57 | E166: 4088.13 | F166: 4049.67 | G166: 4019.23 | H166: 4157.03 | I166: 4187.47 | J166: 4225.93 | K166: 4149 | L166: 4080.1 | M166: 0.63782
A167: 158 | B167: PIDILITIND | C167: 1395.35 | D167: 1394.45 | E167: 1383.90 | F167: 1372.45 | G167: 1361.90 | H167: 1405.90 | I167: 1416.45 | J167: 1427.90 | K167: 1405 | L167: 1383 | M167: 5.42091
A168: 159 | B168: PEL | C168: 1431.35 | D168: 1444.42 | E168: 1406.93 | F168: 1382.52 | G168: 1345.03 | H168: 1468.83 | I168: 1506.32 | J168: 1530.73 | K168: 1481.9 | L168: 1420 | M168: 14.20063
A169: 160 | B169: PFC | C169: 83.4 | D169: 83.43 | E169: 82.32 | F169: 81.23 | G169: 80.12 | H169: 84.52 | I169: 85.63 | J169: 86.72 | K169: 84.55 | L169: 82.35 | M169: 46.30049
A170: 161 | B170: POWERGRID | C170: 169.1 | D170: 170.50 | E170: 166.80 | F170: 164.50 | G170: 160.80 | H170: 172.80 | I170: 176.50 | J170: 178.80 | K170: 174.2 | L170: 168.2 | M170: 60.77163
A171: 162 | B171: PRESTIGE | C171: 189.15 | D171: 191.22 | E171: 185.43 | F171: 181.72 | G171: 175.93 | H171: 194.93 | I171: 200.72 | J171: 204.43 | K171: 197 | L171: 187.5 | M171: 3.80984
A172: 163 | B172: PGHH | C172: 10339.7 | D172: 10411.97 | E172: 10177.93 | F172: 10016.17 | G172: 9782.13 | H172: 10573.73 | I172: 10807.77 | J172: 10969.53 | K172: 10646 | L172: 10250.2 | M172: 0.05555
A173: 164 | B173: PNB | C173: 34.55 | D173: 34.77 | E173: 34.08 | F173: 33.62 | G173: 32.93 | H173: 35.23 | I173: 35.92 | J173: 36.38 | K173: 35.45 | L173: 34.3 | M173: 288.23774
A174: 165 | B174: QUESS | C174: 333.05 | D174: 336.68 | E174: 327.37 | F174: 321.68 | G174: 312.37 | H174: 342.37 | I174: 351.68 | J174: 357.37 | K174: 346 | L174: 331 | M174: 2.12012
A175: 166 | B175: RBLBANK | C175: 177.9 | D175: 180.30 | E175: 174.70 | F175: 171.50 | G175: 165.90 | H175: 183.50 | I175: 189.10 | J175: 192.30 | K175: 185.9 | L175: 177.1 | M175: 232.45904
A176: 167 | B176: RECLTD | C176: 104.5 | D176: 104.37 | E176: 103.13 | F176: 101.77 | G176: 100.53 | H176: 105.73 | I176: 106.97 | J176: 108.33 | K176: 105.6 | L176: 103 | M176: 42.53805
A177: 168 | B177: RAJESHEXPO | C177: 472.1 | D177: 474.85 | E177: 468.25 | F177: 464.40 | G177: 457.80 | H177: 478.70 | I177: 485.30 | J177: 489.15 | K177: 481.45 | L177: 471 | M177: 1.3434
A178: 169 | B178: RELIANCE | C178: 1935 | D178: 1927.57 | E178: 1907.43 | F178: 1879.87 | G178: 1859.73 | H178: 1955.13 | I178: 1975.27 | J178: 2002.83 | K178: 1947.7 | L178: 1900 | M178: 321.24397
A179: 170 | B179: SBILIFE | C179: 862.95 | D179: 859.65 | E179: 851.45 | F179: 839.95 | G179: 831.75 | H179: 871.15 | I179: 879.35 | J179: 890.85 | K179: 867.85 | L179: 848.15 | M179: 6.68675
A180: 171 | B180: SRF | C180: 3840.65 | D180: 3865.88 | E180: 3790.82 | F180: 3740.98 | G180: 3665.92 | H180: 3915.72 | I180: 3990.78 | J180: 4040.62 | K180: 3940.95 | L180: 3816.05 | M180: 1.95859
A181: 172 | B181: SHREECEM | C181: 22311.2 | D181: 22396.35 | E181: 22164.85 | F181: 22018.50 | G181: 21787.00 | H181: 22542.70 | I181: 22774.20 | J181: 22920.55 | K181: 22627.85 | L181: 22250 | M181: 0.52262
A182: 173 | B182: SRTRANSFIN | C182: 689.15 | D182: 694.67 | E182: 676.48 | F182: 663.82 | G182: 645.63 | H182: 707.33 | I182: 725.52 | J182: 738.18 | K182: 712.85 | L182: 682 | M182: 39.60319
A183: 174 | B183: SIEMENS | C183: 1143.65 | D183: 1138.37 | E183: 1126.98 | F183: 1110.32 | G183: 1098.93 | H183: 1155.03 | I183: 1166.42 | J183: 1183.08 | K183: 1149.75 | L183: 1121.7 | M183: 6.0646
A184: 175 | B184: SBIN | C184: 192.7 | D184: 194.70 | E184: 189.60 | F184: 186.50 | G184: 181.40 | H184: 197.80 | I184: 202.90 | J184: 206.00 | K184: 199.8 | L184: 191.6 | M184: 619.52344
A185: 176 | B185: SAIL | C185: 35.75 | D185: 36.65 | E185: 34.60 | F185: 33.45 | G185: 31.40 | H185: 37.80 | I185: 39.85 | J185: 41.00 | K185: 38.7 | L185: 35.5 | M185: 922.61841
A186: 177 | B186: STRTECH | C186: 137.65 | D186: 138.05 | E186: 136.35 | F186: 135.05 | G186: 133.35 | H186: 139.35 | I186: 141.05 | J186: 142.35 | K186: 139.75 | L186: 136.75 | M186: 12.30758
A187: 178 | B187: SUNPHARMA | C187: 499.7 | D187: 497.90 | E187: 494.10 | F187: 488.50 | G187: 484.70 | H187: 503.50 | I187: 507.30 | J187: 512.90 | K187: 501.7 | L187: 492.3 | M187: 75.04401
A188: 179 | B188: SUNTV | C188: 390.25 | D188: 391.60 | E188: 386.35 | F188: 382.45 | G188: 377.20 | H188: 395.50 | I188: 400.75 | J188: 404.65 | K188: 396.85 | L188: 387.7 | M188: 36.10859
A189: 180 | B189: SYNGENE | C189: 435.7 | D189: 438.95 | E189: 424.90 | F189: 414.10 | G189: 400.05 | H189: 449.75 | I189: 463.80 | J189: 474.60 | K189: 453 | L189: 428.15 | M189: 7.97772
A190: 181 | B190: TVSMOTOR | C190: 389.55 | D190: 388.45 | E190: 385.15 | F190: 380.75 | G190: 377.45 | H190: 392.85 | I190: 396.15 | J190: 400.55 | K190: 391.75 | L190: 384.05 | M190: 12.18951
A191: 182 | B191: TCS | C191: 2220 | D191: 2224.98 | E191: 2205.02 | F191: 2190.03 | G191: 2170.07 | H191: 2239.97 | I191: 2259.93 | J191: 2274.92 | K191: 2244.95 | L191: 2210 | M191: 29.63525
A192: 183 | B192: TATACONSUM | C192: 424.45 | D192: 426.67 | E192: 419.78 | F192: 415.12 | G192: 408.23 | H192: 431.33 | I192: 438.22 | J192: 442.88 | K192: 433.55 | L192: 422 | M192: 25.52387
A193: 184 | B193: TATAMTRDVR | C193: 42.45 | D193: 42.75 | E193: 41.80 | F193: 41.15 | G193: 40.20 | H193: 43.40 | I193: 44.35 | J193: 45.00 | K193: 43.7 | L193: 42.1 | M193: 48.55842
A194: 185 | B194: TATAMOTORS | C194: 108 | D194: 108.98 | E194: 105.87 | F194: 103.73 | G194: 100.62 | H194: 111.12 | I194: 114.23 | J194: 116.37 | K194: 112.1 | L194: 106.85 | M194: 819.00473
A195: 186 | B195: TATAPOWER | C195: 49.65 | D195: 49.97 | E195: 48.83 | F195: 48.02 | G195: 46.88 | H195: 50.78 | I195: 51.92 | J195: 52.73 | K195: 51.1 | L195: 49.15 | M195: 231.84293
A196: 187 | B196: TATASTEEL | C196: 342.1 | D196: 342.53 | E196: 338.07 | F196: 334.03 | G196: 329.57 | H196: 346.57 | I196: 351.03 | J196: 355.07 | K196: 347 | L196: 338.5 | M196: 121.15002
A197: 188 | B197: TECHM | C197: 600.05 | D197: 590.78 | E197: 579.77 | F197: 559.48 | G197: 548.47 | H197: 611.07 | I197: 622.08 | J197: 642.37 | K197: 601.8 | L197: 570.5 | M197: 110.08262
A198: 189 | B198: NIACL | C198: 113.7 | D198: 114.35 | E198: 112.50 | F198: 111.30 | G198: 109.45 | H198: 115.55 | I198: 117.40 | J198: 118.60 | K198: 116.2 | L198: 113.15 | M198: 1.66765
A199: 190 | B199: RAMCOCEM | C199: 667.25 | D199: 659.83 | E199: 647.67 | F199: 628.08 | G199: 615.92 | H199: 679.42 | I199: 691.58 | J199: 711.17 | K199: 672 | L199: 640.25 | M199: 8.86767
A200: 191 | B200: TITAN | C200: 966.35 | D200: 966.43 | E200: 958.92 | F200: 951.48 | G200: 943.97 | H200: 973.87 | I200: 981.38 | J200: 988.82 | K200: 973.95 | L200: 959 | M200: 27.60626
A201: 192 | B201: TORNTPHARM | C201: 2359.6 | D201: 2361.37 | E201: 2338.73 | F201: 2317.87 | G201: 2295.23 | H201: 2382.23 | I201: 2404.87 | J201: 2425.73 | K201: 2384 | L201: 2340.5 | M201: 1.78875
A202: 193 | B202: TORNTPOWER | C202: 329.5 | D202: 328.22 | E202: 325.18 | F202: 320.87 | G202: 317.83 | H202: 332.53 | I202: 335.57 | J202: 339.88 | K202: 331.25 | L202: 323.9 | M202: 5.68418
A203: 194 | B203: UPL | C203: 439.2 | D203: 439.88 | E203: 434.82 | F203: 430.43 | G203: 425.37 | H203: 444.27 | I203: 449.33 | J203: 453.72 | K203: 444.95 | L203: 435.5 | M203: 24.80373
A204: 195 | B204: ULTRACEMCO | C204: 3787.9 | D204: 3801.23 | E204: 3764.67 | F204: 3741.43 | G204: 3704.87 | H204: 3824.47 | I204: 3861.03 | J204: 3884.27 | K204: 3837.8 | L204: 3778 | M204: 3.02967
A205: 196 | B205: UNIONBANK | C205: 31.55 | D205: 31.78 | E205: 31.12 | F205: 30.68 | G205: 30.02 | H205: 32.22 | I205: 32.88 | J205: 33.32 | K205: 32.45 | L205: 31.35 | M205: 29.43967
... 30 more rows

Sheet MidCap Intra
L5: Back To Main Page
A6: FOR INTRA DAY TRADING | K6: =Main!B10 -> 2020-07-14
A9: Sr.no | B9: Scrip | C9: CLOSE RATE | D9: Pivot Point | E9: Supports | H9: Resistances
C10: Point | E10: S1 | F10: S2 | G10: S3 | H10: R1 | I10: R2 | J10: R3 | K10: HIGH | L10: LOW | M10: Total Trade Quanity in Lakhs
A11: 1 | B11: 3MINDIA | C11: 19936.2 | D11: 19812.07 | E11: 19524.13 | F11: 19112.07 | G11: 18824.13 | H11: 20224.13 | I11: 20512.07 | J11: 20924.13 | K11: 20100 | L11: 19400 | M11: 0.03557
A12: 2 | B12: AARTIIND | C12: 928.45 | D12: 934.17 | E12: 920.33 | F12: 912.22 | G12: 898.38 | H12: 942.28 | I12: 956.12 | J12: 964.23 | K12: 948 | L12: 926.05 | M12: 3.40589
A13: 3 | B13: AAVAS | C13: 1290.85 | D13: 1305.28 | E13: 1270.57 | F13: 1250.28 | G13: 1215.57 | H13: 1325.57 | I13: 1360.28 | J13: 1380.57 | K13: 1340 | L13: 1285 | M13: 0.43361
A14: 4 | B14: ABBOTINDIA | C14: 15493 | D14: 15531.00 | E14: 15412.00 | F14: 15331.00 | G14: 15212.00 | H14: 15612.00 | I14: 15731.00 | J14: 15812.00 | K14: 15650 | L14: 15450 | M14: 0.08464
A15: 5 | B15: ABCAPITAL | C15: 60.25 | D15: 60.88 | E15: 58.97 | F15: 57.68 | G15: 55.77 | H15: 62.17 | I15: 64.08 | J15: 65.37 | K15: 62.8 | L15: 59.6 | M15: 26.96934
A16: 6 | B16: ABFRL | C16: 120.2 | D16: 120.67 | E16: 118.83 | F16: 117.47 | G16: 115.63 | H16: 122.03 | I16: 123.87 | J16: 125.23 | K16: 122.5 | L16: 119.3 | M16: 14.05102
A17: 7 | B17: ACC | C17: 1346 | D17: 1336.58 | E17: 1319.67 | F17: 1293.33 | G17: 1276.42 | H17: 1362.92 | I17: 1379.83 | J17: 1406.17 | K17: 1353.5 | L17: 1310.25 | M17: 17.07292
A18: 8 | B18: ADANIGAS | C18: 153.85 | D18: 154.45 | E18: 151.40 | F18: 148.95 | G18: 145.90 | H18: 156.90 | I18: 159.95 | J18: 162.40 | K18: 157.5 | L18: 152 | M18: 13.66841
A19: 9 | B19: ADANIGREEN | C19: 364.75 | D19: 369.67 | E19: 356.68 | F19: 348.62 | G19: 335.63 | H19: 377.73 | I19: 390.72 | J19: 398.78 | K19: 382.65 | L19: 361.6 | M19: 8.55922
A20: 10 | B20: ADANIPORTS | C20: 332.2 | D20: 334.45 | E20: 329.25 | F20: 326.30 | G20: 321.10 | H20: 337.40 | I20: 342.60 | J20: 345.55 | K20: 339.65 | L20: 331.5 | M20: 21.87706
A21: 11 | B21: ADANIPOWER | C21: 34.7 | D21: 34.68 | E21: 34.42 | F21: 34.13 | G21: 33.87 | H21: 34.97 | I21: 35.23 | J21: 35.52 | K21: 34.95 | L21: 34.4 | M21: 33.33128
A22: 12 | B22: ADANITRANS | C22: 251.15 | D22: 248.13 | E22: 243.12 | F22: 235.08 | G22: 230.07 | H22: 256.17 | I22: 261.18 | J22: 269.22 | K22: 253.15 | L22: 240.1 | M22: 4.42979
A23: 13 | B23: ADVENZYMES | C23: 163.95 | D23: 164.75 | E23: 162.45 | F23: 160.95 | G23: 158.65 | H23: 166.25 | I23: 168.55 | J23: 170.05 | K23: 167.05 | L23: 163.25 | M23: 0.88967
A24: 14 | B24: AEGISCHEM | C24: 186.65 | D24: 185.43 | E24: 180.87 | F24: 175.08 | G24: 170.52 | H24: 191.22 | I24: 195.78 | J24: 201.57 | K24: 190 | L24: 179.65 | M24: 6.24708
A25: 15 | B25: AFFLE | C25: 1707.95 | D25: 1739.65 | E25: 1669.30 | F25: 1630.65 | G25: 1560.30 | H25: 1778.30 | I25: 1848.65 | J25: 1887.30 | K25: 1810 | L25: 1701 | M25: 1.16042
A26: 16 | B26: AIAENG | C26: 1649.2 | D26: 1646.88 | E26: 1635.87 | F26: 1622.53 | G26: 1611.52 | H26: 1660.22 | I26: 1671.23 | J26: 1684.57 | K26: 1657.9 | L26: 1633.55 | M26: 0.22917
A27: 17 | B27: AJANTPHARM | C27: 1388.2 | D27: 1398.73 | E27: 1371.47 | F27: 1354.73 | G27: 1327.47 | H27: 1415.47 | I27: 1442.73 | J27: 1459.47 | K27: 1426 | L27: 1382 | M27: 1.44362
A28: 18 | B28: AKZOINDIA | C28: 1853.7 | D28: 1846.05 | E28: 1823.15 | F28: 1792.60 | G28: 1769.70 | H28: 1876.60 | I28: 1899.50 | J28: 1930.05 | K28: 1868.95 | L28: 1815.5 | M28: 0.07865
A29: 19 | B29: ALKEM | C29: 2407 | D29: 2400.98 | E29: 2357.02 | F29: 2307.03 | G29: 2263.07 | H29: 2450.97 | I29: 2494.93 | J29: 2544.92 | K29: 2444.95 | L29: 2351 | M29: 0.86902
A30: 20 | B30: ALLCARGO | C30: 95.25 | D30: 95.12 | E30: 92.53 | F30: 89.82 | G30: 87.23 | H30: 97.83 | I30: 100.42 | J30: 103.13 | K30: 97.7 | L30: 92.4 | M30: 2.5985
A31: 21 | B31: AMARAJABAT | C31: 698.2 | D31: 701.57 | E31: 690.73 | F31: 683.27 | G31: 672.43 | H31: 709.03 | I31: 719.87 | J31: 727.33 | K31: 712.4 | L31: 694.1 | M31: 7.92988
A32: 22 | B32: AMBER | C32: 1538.25 | D32: 1541.82 | E32: 1520.23 | F32: 1502.22 | G32: 1480.63 | H32: 1559.83 | I32: 1581.42 | J32: 1599.43 | K32: 1563.4 | L32: 1523.8 | M32: 0.33758
A33: 23 | B33: AMBUJACEM | C33: 198.45 | D33: 197.30 | E33: 194.90 | F33: 191.35 | G33: 188.95 | H33: 200.85 | I33: 203.25 | J33: 206.80 | K33: 199.7 | L33: 193.75 | M33: 52.13446
A34: 24 | B34: APLAPOLLO | C34: 1776.65 | D34: 1768.72 | E34: 1742.93 | F34: 1709.22 | G34: 1683.43 | H34: 1802.43 | I34: 1828.22 | J34: 1861.93 | K34: 1794.5 | L34: 1735 | M34: 0.30021
A35: 25 | B35: APLLTD | C35: 943.55 | D35: 949.68 | E35: 929.37 | F35: 915.18 | G35: 894.87 | H35: 963.87 | I35: 984.18 | J35: 998.37 | K35: 970 | L35: 935.5 | M35: 2.64209
A36: 26 | B36: APOLLOHOSP | C36: 1431.45 | D36: 1426.97 | E36: 1411.03 | F36: 1390.62 | G36: 1374.68 | H36: 1447.38 | I36: 1463.32 | J36: 1483.73 | K36: 1442.9 | L36: 1406.55 | M36: 7.69109
A37: 27 | B37: APOLLOTYRE | C37: 114.1 | D37: 113.87 | E37: 112.48 | F37: 110.87 | G37: 109.48 | H37: 115.48 | I37: 116.87 | J37: 118.48 | K37: 115.25 | L37: 112.25 | M37: 35.29042
A38: 28 | B38: ARVINDFASN | C38: 157.05 | D38: 160.30 | E38: 153.80 | F38: 150.55 | G38: 144.05 | H38: 163.55 | I38: 170.05 | J38: 173.30 | K38: 166.8 | L38: 157.05 | M38: 1.99856
A39: 29 | B39: ASAHIINDIA | C39: 173 | D39: 173.60 | E39: 171.75 | F39: 170.50 | G39: 168.65 | H39: 174.85 | I39: 176.70 | J39: 177.95 | K39: 175.45 | L39: 172.35 | M39: 0.10787
A40: 30 | B40: ASHOKA | C40: 62.1 | D40: 62.40 | E40: 61.50 | F40: 60.90 | G40: 60.00 | H40: 63.00 | I40: 63.90 | J40: 64.50 | K40: 63.3 | L40: 61.8 | M40: 7.47023
A41: 31 | B41: ASHOKLEY | C41: 50.8 | D41: 51.28 | E41: 50.12 | F41: 49.43 | G41: 48.27 | H41: 51.97 | I41: 53.13 | J41: 53.82 | K41: 52.45 | L41: 50.6 | M41: 229.19466
A42: 32 | B42: ASIANPAINT | C42: 1705.65 | D42: 1712.85 | E42: 1692.80 | F42: 1679.95 | G42: 1659.90 | H42: 1725.70 | I42: 1745.75 | J42: 1758.60 | K42: 1732.9 | L42: 1700 | M42: 12.89791
A43: 33 | B43: ASTERDM | C43: 123.25 | D43: 123.57 | E43: 122.38 | F43: 121.52 | G43: 120.33 | H43: 124.43 | I43: 125.62 | J43: 126.48 | K43: 124.75 | L43: 122.7 | M43: 1.07819
A44: 34 | B44: ASTRAL | C44: 932.75 | D44: 932.28 | E44: 920.57 | F44: 908.38 | G44: 896.67 | H44: 944.47 | I44: 956.18 | J44: 968.37 | K44: 944 | L44: 920.1 | M44: 0.94524
A45: 35 | B45: ASTRAZEN | C45: 3340.95 | D45: 3374.02 | E45: 3297.03 | F45: 3253.12 | G45: 3176.13 | H45: 3417.93 | I45: 3494.92 | J45: 3538.83 | K45: 3451 | L45: 3330.1 | M45: 0.35351
A46: 36 | B46: ATUL | C46: 4606.65 | D46: 4633.88 | E46: 4572.77 | F46: 4538.88 | G46: 4477.77 | H46: 4667.77 | I46: 4728.88 | J46: 4762.77 | K46: 4695 | L46: 4600 | M46: 0.12815
A47: 37 | B47: AUBANK | C47: 624.55 | D47: 629.18 | E47: 612.37 | F47: 600.18 | G47: 583.37 | H47: 641.37 | I47: 658.18 | J47: 670.37 | K47: 646 | L47: 617 | M47: 6.9628
A48: 38 | B48: AUROPHARMA | C48: 809.5 | D48: 814.60 | E48: 801.50 | F48: 793.50 | G48: 780.40 | H48: 822.60 | I48: 835.70 | J48: 843.70 | K48: 827.7 | L48: 806.6 | M48: 30.76468
A49: 39 | B49: AVANTIFEED | C49: 468.95 | D49: 473.18 | E49: 460.77 | F49: 452.58 | G49: 440.17 | H49: 481.37 | I49: 493.78 | J49: 501.97 | K49: 485.6 | L49: 465 | M49: 3.49151
A50: 40 | B50: AXISBANK | C50: 440.05 | D50: 439.73 | E50: 433.07 | F50: 426.08 | G50: 419.42 | H50: 446.72 | I50: 453.38 | J50: 460.37 | K50: 446.4 | L50: 432.75 | M50: 213.26996
A51: 41 | B51: BAJAJ-AUTO | C51: 2900 | D51: 2895.60 | E51: 2881.20 | F51: 2862.40 | G51: 2848.00 | H51: 2914.40 | I51: 2928.80 | J51: 2947.60 | K51: 2910 | L51: 2876.8 | M51: 4.81614
A52: 42 | B52: BAJAJCON | C52: 157.3 | D52: 153.48 | E52: 147.07 | F52: 136.83 | G52: 130.42 | H52: 163.72 | I52: 170.13 | J52: 180.37 | K52: 159.9 | L52: 143.25 | M52: 42.41508
A53: 43 | B53: BAJAJELEC | C53: 395.35 | D53: 398.20 | E53: 390.40 | F53: 385.45 | G53: 377.65 | H53: 403.15 | I53: 410.95 | J53: 415.90 | K53: 406 | L53: 393.25 | M53: 1.15712
A54: 44 | B54: BAJAJFINSV | C54: 6461.45 | D54: 6484.62 | E54: 6376.83 | F54: 6292.22 | G54: 6184.43 | H54: 6569.23 | I54: 6677.02 | J54: 6761.63 | K54: 6592.4 | L54: 6400 | M54: 8.10726
A55: 45 | B55: BAJAJHLDNG | C55: 2723.25 | D55: 2723.15 | E55: 2681.30 | F55: 2639.35 | G55: 2597.50 | H55: 2765.10 | I55: 2806.95 | J55: 2848.90 | K55: 2765 | L55: 2681.2 | M55: 1.28517
A56: 46 | B56: BAJFINANCE | C56: 3234.6 | D56: 3276.27 | E56: 3174.53 | F56: 3114.47 | G56: 3012.73 | H56: 3336.33 | I56: 3438.07 | J56: 3498.13 | K56: 3378 | L56: 3216.2 | M56: 131.36482
A57: 47 | B57: BALKRISIND | C57: 1277.45 | D57: 1278.13 | E57: 1260.32 | F57: 1243.18 | G57: 1225.37 | H57: 1295.27 | I57: 1313.08 | J57: 1330.22 | K57: 1295.95 | L57: 1261 | M57: 10.14046
A58: 48 | B58: BALMLAWRIE | C58: 109.35 | D58: 110.03 | E58: 108.12 | F58: 106.88 | G58: 104.97 | H58: 111.27 | I58: 113.18 | J58: 114.42 | K58: 111.95 | L58: 108.8 | M58: 2.01089
A59: 49 | B59: BALRAMCHIN | C59: 126.15 | D59: 127.20 | E59: 124.60 | F59: 123.05 | G59: 120.45 | H59: 128.75 | I59: 131.35 | J59: 132.90 | K59: 129.8 | L59: 125.65 | M59: 11.54111
A60: 50 | B60: BANDHANBNK | C60: 370.1 | D60: 373.40 | E60: 364.05 | F60: 358.00 | G60: 348.65 | H60: 379.45 | I60: 388.80 | J60: 394.85 | K60: 382.75 | L60: 367.35 | M60: 101.49824
A61: 51 | B61: BANKBARODA | C61: 50.55 | D61: 51.05 | E61: 49.65 | F61: 48.75 | G61: 47.35 | H61: 51.95 | I61: 53.35 | J61: 54.25 | K61: 52.45 | L61: 50.15 | M61: 313.68155
A62: 52 | B62: BANKINDIA | C62: 48.25 | D62: 48.72 | E62: 47.53 | F62: 46.82 | G62: 45.63 | H62: 49.43 | I62: 50.62 | J62: 51.33 | K62: 49.9 | L62: 48 | M62: 18.88289
A63: 53 | B63: BASF | C63: 1325.85 | D63: 1290.90 | E63: 1237.50 | F63: 1149.15 | G63: 1095.75 | H63: 1379.25 | I63: 1432.65 | J63: 1521.00 | K63: 1344.3 | L63: 1202.55 | M63: 4.7092
A64: 54 | B64: BATAINDIA | C64: 1251.85 | D64: 1259.37 | E64: 1237.78 | F64: 1223.72 | G64: 1202.13 | H64: 1273.43 | I64: 1295.02 | J64: 1309.08 | K64: 1280.95 | L64: 1245.3 | M64: 12.66076
A65: 55 | B65: BAYERCROP | C65: 5712.15 | D65: 5764.40 | E65: 5627.75 | F65: 5543.35 | G65: 5406.70 | H65: 5848.80 | I65: 5985.45 | J65: 6069.85 | K65: 5901.05 | L65: 5680 | M65: 0.15322
A66: 56 | B66: BBTC | C66: 1231.1 | D66: 1240.70 | E66: 1211.40 | F66: 1191.70 | G66: 1162.40 | H66: 1260.40 | I66: 1289.70 | J66: 1309.40 | K66: 1270 | L66: 1221 | M66: 5.96133
A67: 57 | B67: BDL | C67: 398.35 | D67: 402.95 | E67: 390.90 | F67: 383.45 | G67: 371.40 | H67: 410.40 | I67: 422.45 | J67: 429.90 | K67: 415 | L67: 395.5 | M67: 14.26942
A68: 58 | B68: BEL | C68: 98.5 | D68: 99.18 | E68: 97.02 | F68: 95.53 | G68: 93.37 | H68: 100.67 | I68: 102.83 | J68: 104.32 | K68: 101.35 | L68: 97.7 | M68: 107.91094
A69: 59 | B69: BEML | C69: 639.85 | D69: 641.32 | E69: 634.63 | F69: 629.42 | G69: 622.73 | H69: 646.53 | I69: 653.22 | J69: 658.43 | K69: 648 | L69: 636.1 | M69: 3.94808
A70: 60 | B70: BERGEPAINT | C70: 499.75 | D70: 501.73 | E70: 495.52 | F70: 491.28 | G70: 485.07 | H70: 505.97 | I70: 512.18 | J70: 516.42 | K70: 507.95 | L70: 497.5 | M70: 8.58326
A71: 61 | B71: BHARATFORG | C71: 369.05 | D71: 368.42 | E71: 358.93 | F71: 348.82 | G71: 339.33 | H71: 378.53 | I71: 388.02 | J71: 398.13 | K71: 377.9 | L71: 358.3 | M71: 86.21256
A72: 62 | B72: BHARTIARTL | C72: 586.8 | D72: 581.93 | E72: 574.87 | F72: 562.93 | G72: 555.87 | H72: 593.87 | I72: 600.93 | J72: 612.87 | K72: 589 | L72: 570 | M72: 163.53967
A73: 63 | B73: BHEL | C73: 42.6 | D73: 42.47 | E73: 41.93 | F73: 41.27 | G73: 40.73 | H73: 43.13 | I73: 43.67 | J73: 44.33 | K73: 43 | L73: 41.8 | M73: 448.13674
A74: 64 | B74: BIOCON | C74: 414.85 | D74: 424.85 | E74: 402.75 | F74: 390.65 | G74: 368.55 | H74: 436.95 | I74: 459.05 | J74: 471.15 | K74: 446.95 | L74: 412.75 | M74: 201.81221
A75: 65 | B75: BIRLACORPN | C75: 594.75 | D75: 596.23 | E75: 588.52 | F75: 582.28 | G75: 574.57 | H75: 602.47 | I75: 610.18 | J75: 616.42 | K75: 603.95 | L75: 590 | M75: 2.63967
A76: 66 | B76: BLISSGVS | C76: 106.5 | D76: 107.68 | E76: 104.17 | F76: 101.83 | G76: 98.32 | H76: 110.02 | I76: 113.53 | J76: 115.87 | K76: 111.2 | L76: 105.35 | M76: 10.3571
A77: 67 | B77: BLUEDART | C77: 2009.25 | D77: 2013.73 | E77: 1995.52 | F77: 1981.78 | G77: 1963.57 | H77: 2027.47 | I77: 2045.68 | J77: 2059.42 | K77: 2031.95 | L77: 2000 | M77: 0.0972
A78: 68 | B78: BLUESTARCO | C78: 480.2 | D78: 484.40 | E78: 474.80 | F78: 469.40 | G78: 459.80 | H78: 489.80 | I78: 499.40 | J78: 504.80 | K78: 494 | L78: 479 | M78: 0.61217
A79: 69 | B79: BOMDYEING | C79: 75.65 | D79: 75.88 | E79: 74.02 | F79: 72.38 | G79: 70.52 | H79: 77.52 | I79: 79.38 | J79: 81.02 | K79: 77.75 | L79: 74.25 | M79: 25.39687
A80: 70 | B80: BOSCHLTD | C80: 13858.9 | D80: 13717.97 | E80: 13475.93 | F80: 13092.97 | G80: 12850.93 | H80: 14100.93 | I80: 14342.97 | J80: 14725.93 | K80: 13960 | L80: 13335 | M80: 0.6139
A81: 71 | B81: BPCL | C81: 379.95 | D81: 379.87 | E81: 375.53 | F81: 371.12 | G81: 366.78 | H81: 384.28 | I81: 388.62 | J81: 393.03 | K81: 384.2 | L81: 375.45 | M81: 51.39428
A82: 72 | B82: BRIGADE | C82: 140.95 | D82: 141.03 | E82: 139.17 | F82: 137.38 | G82: 135.52 | H82: 142.82 | I82: 144.68 | J82: 146.47 | K82: 142.9 | L82: 139.25 | M82: 1.42159
A83: 73 | B83: BRITANNIA | C83: 3796.8 | D83: 3794.02 | E83: 3753.03 | F83: 3709.27 | G83: 3668.28 | H83: 3837.78 | I83: 3878.77 | J83: 3922.53 | K83: 3835 | L83: 3750.25 | M83: 11.08644
A84: 74 | B84: BSE | C84: 504.75 | D84: 507.38 | E84: 500.37 | F84: 495.98 | G84: 488.97 | H84: 511.77 | I84: 518.78 | J84: 523.17 | K84: 514.4 | L84: 503 | M84: 2.07335
A85: 75 | B85: BSOFT | C85: 103.45 | D85: 102.25 | E85: 98.80 | F85: 94.15 | G85: 90.70 | H85: 106.90 | I85: 110.35 | J85: 115.00 | K85: 105.7 | L85: 97.6 | M85: 47.32272
A86: 76 | B86: CADILAHC | C86: 358.1 | D86: 358.08 | E86: 356.02 | F86: 353.93 | G86: 351.87 | H86: 360.17 | I86: 362.23 | J86: 364.32 | K86: 360.15 | L86: 356 | M86: 18.69088
A87: 77 | B87: CANBK | C87: 103.4 | D87: 104.10 | E87: 102.05 | F87: 100.70 | G87: 98.65 | H87: 105.45 | I87: 107.50 | J87: 108.85 | K87: 106.15 | L87: 102.75 | M87: 156.07691
A88: 78 | B88: CANFINHOME | C88: 360.3 | D88: 361.78 | E88: 356.57 | F88: 352.83 | G88: 347.62 | H88: 365.52 | I88: 370.73 | J88: 374.47 | K88: 367 | L88: 358.05 | M88: 2.0681
A89: 79 | B89: CAPLIPOINT | C89: 372.1 | D89: 364.52 | E89: 350.23 | F89: 328.37 | G89: 314.08 | H89: 386.38 | I89: 400.67 | J89: 422.53 | K89: 378.8 | L89: 342.65 | M89: 19.69133
A90: 80 | B90: CARBORUNIV | C90: 249.75 | D90: 252.58 | E90: 246.27 | F90: 242.78 | G90: 236.47 | H90: 256.07 | I90: 262.38 | J90: 265.87 | K90: 258.9 | L90: 249.1 | M90: 1.01695
A91: 81 | B91: CARERATING | C91: 425.3 | D91: 426.27 | E91: 417.58 | F91: 409.87 | G91: 401.18 | H91: 433.98 | I91: 442.67 | J91: 450.38 | K91: 434.95 | L91: 418.55 | M91: 0.66519
A92: 82 | B92: CASTROLIND | C92: 121.95 | D92: 122.55 | E92: 121.10 | F92: 120.25 | G92: 118.80 | H92: 123.40 | I92: 124.85 | J92: 125.70 | K92: 124 | L92: 121.7 | M92: 6.78797
A93: 83 | B93: CCL | C93: 243.2 | D93: 242.00 | E93: 238.65 | F93: 234.10 | G93: 230.75 | H93: 246.55 | I93: 249.90 | J93: 254.45 | K93: 245.35 | L93: 237.45 | M93: 1.39606
A94: 84 | B94: CDSL | C94: 287.3 | D94: 290.40 | E94: 282.40 | F94: 277.50 | G94: 269.50 | H94: 295.30 | I94: 303.30 | J94: 308.20 | K94: 298.4 | L94: 285.5 | M94: 4.30379
A95: 85 | B95: CEATLTD | C95: 889.65 | D95: 893.15 | E95: 878.30 | F95: 866.95 | G95: 852.10 | H95: 904.50 | I95: 919.35 | J95: 930.70 | K95: 908 | L95: 881.8 | M95: 2.00221
A96: 86 | B96: CENTRALBK | C96: 17.25 | D96: 17.35 | E96: 17.05 | F96: 16.85 | G96: 16.55 | H96: 17.55 | I96: 17.85 | J96: 18.05 | K96: 17.65 | L96: 17.15 | M96: 10.29358
A97: 87 | B97: CENTURYPLY | C97: 130.85 | D97: 131.68 | E97: 129.47 | F97: 128.08 | G97: 125.87 | H97: 133.07 | I97: 135.28 | J97: 136.67 | K97: 133.9 | L97: 130.3 | M97: 6.56959
A98: 88 | B98: CERA | C98: 2212.15 | D98: 2219.05 | E98: 2203.10 | F98: 2194.05 | G98: 2178.10 | H98: 2228.10 | I98: 2244.05 | J98: 2253.10 | K98: 2235 | L98: 2210 | M98: 0.02334
A99: 89 | B99: CESC | C99: 655.15 | D99: 648.43 | E99: 634.87 | F99: 614.58 | G99: 601.02 | H99: 668.72 | I99: 682.28 | J99: 702.57 | K99: 662 | L99: 628.15 | M99: 3.9607
A100: 90 | B100: CGCL | C100: 171.4 | D100: 171.42 | E100: 167.08 | F100: 162.77 | G100: 158.43 | H100: 175.73 | I100: 180.07 | J100: 184.38 | K100: 175.75 | L100: 167.1 | M100: 1.22763
A101: 91 | B101: CHALET | C101: 132.95 | D101: 134.65 | E101: 130.80 | F101: 128.65 | G101: 124.80 | H101: 136.80 | I101: 140.65 | J101: 142.80 | K101: 138.5 | L101: 132.5 | M101: 1.08987
A102: 92 | B102: CHAMBLFERT | C102: 154.5 | D102: 154.90 | E102: 152.60 | F102: 150.70 | G102: 148.40 | H102: 156.80 | I102: 159.10 | J102: 161.00 | K102: 157.2 | L102: 153 | M102: 6.86243
A103: 93 | B103: CHENNPETRO | C103: 80.15 | D103: 80.78 | E103: 79.37 | F103: 78.58 | G103: 77.17 | H103: 81.57 | I103: 82.98 | J103: 83.77 | K103: 82.2 | L103: 80 | M103: 4.44451
A104: 94 | B104: CHOLAFIN | C104: 205.25 | D104: 207.50 | E104: 202.10 | F104: 198.95 | G104: 193.55 | H104: 210.65 | I104: 216.05 | J104: 219.20 | K104: 212.9 | L104: 204.35 | M104: 56.81014
A105: 95 | B105: CHOLAHLDNG | C105: 333.85 | D105: 332.28 | E105: 329.57 | F105: 325.28 | G105: 322.57 | H105: 336.57 | I105: 339.28 | J105: 343.57 | K105: 335 | L105: 328 | M105: 0.47857
A106: 96 | B106: CIPLA | C106: 638.35 | D106: 640.32 | E106: 634.63 | F106: 630.92 | G106: 625.23 | H106: 644.03 | I106: 649.72 | J106: 653.43 | K106: 646 | L106: 636.6 | M106: 34.50074
A107: 97 | B107: COALINDIA | C107: 130.5 | D107: 131.08 | E107: 129.72 | F107: 128.93 | G107: 127.57 | H107: 131.87 | I107: 133.23 | J107: 134.02 | K107: 132.45 | L107: 130.3 | M107: 77.48616
A108: 98 | B108: COCHINSHIP | C108: 327.75 | D108: 326.32 | E108: 321.13 | F108: 314.52 | G108: 309.33 | H108: 332.93 | I108: 338.12 | J108: 344.73 | K108: 331.5 | L108: 319.7 | M108: 6.67952
A109: 99 | B109: COLPAL | C109: 1432.15 | D109: 1421.33 | E109: 1405.82 | F109: 1379.48 | G109: 1363.97 | H109: 1447.67 | I109: 1463.18 | J109: 1489.52 | K109: 1436.85 | L109: 1395 | M109: 16.12858
A110: 100 | B110: CONCOR | C110: 425.45 | D110: 428.57 | E110: 419.28 | F110: 413.12 | G110: 403.83 | H110: 434.73 | I110: 444.02 | J110: 450.18 | K110: 437.85 | L110: 422.4 | M110: 12.75777
A111: 101 | B111: COROMANDEL | C111: 750.75 | D111: 757.08 | E111: 739.67 | F111: 728.58 | G111: 711.17 | H111: 768.17 | I111: 785.58 | J111: 796.67 | K111: 774.5 | L111: 746 | M111: 6.28123
A112: 102 | B112: CREDITACC | C112: 569.35 | D112: 580.58 | E112: 556.17 | F112: 542.98 | G112: 518.57 | H112: 593.77 | I112: 618.18 | J112: 631.37 | K112: 605 | L112: 567.4 | M112: 0.60078
A113: 103 | B113: CRISIL | C113: 1786.55 | D113: 1784.40 | E113: 1759.10 | F113: 1731.65 | G113: 1706.35 | H113: 1811.85 | I113: 1837.15 | J113: 1864.60 | K113: 1809.7 | L113: 1756.95 | M113: 0.18366
A114: 104 | B114: CROMPTON | C114: 245.8 | D114: 246.23 | E114: 238.47 | F114: 231.13 | G114: 223.37 | H114: 253.57 | I114: 261.33 | J114: 268.67 | K114: 254 | L114: 238.9 | M114: 9.79806
A115: 105 | B115: CUB | C115: 127.75 | D115: 129.70 | E115: 125.40 | F115: 123.05 | G115: 118.75 | H115: 132.05 | I115: 136.35 | J115: 138.70 | K115: 134 | L115: 127.35 | M115: 20.93785
A116: 106 | B116: CUMMINSIND | C116: 388.4 | D116: 391.75 | E116: 383.65 | F116: 378.90 | G116: 370.80 | H116: 396.50 | I116: 404.60 | J116: 409.35 | K116: 399.85 | L116: 387 | M116: 15.22264
A117: 107 | B117: CYIENT | C117: 266.65 | D117: 261.95 | E117: 253.90 | F117: 241.15 | G117: 233.10 | H117: 274.70 | I117: 282.75 | J117: 295.50 | K117: 270 | L117: 249.2 | M117: 13.42141
A118: 108 | B118: DABUR | C118: 484.5 | D118: 481.70 | E118: 477.40 | F118: 470.30 | G118: 466.00 | H118: 488.80 | I118: 493.10 | J118: 500.20 | K118: 486 | L118: 474.6 | M118: 31.08357
A119: 109 | B119: DALBHARAT | C119: 697.45 | D119: 698.95 | E119: 689.90 | F119: 682.35 | G119: 673.30 | H119: 706.50 | I119: 715.55 | J119: 723.10 | K119: 708 | L119: 691.4 | M119: 2.19503
A120: 110 | B120: DBCORP | C120: 80.35 | D120: 81.57 | E120: 77.88 | F120: 75.42 | G120: 71.73 | H120: 84.03 | I120: 87.72 | J120: 90.18 | K120: 85.25 | L120: 79.1 | M120: 6.7692
A121: 111 | B121: DBL | C121: 286.25 | D121: 290.08 | E121: 281.17 | F121: 276.08 | G121: 267.17 | H121: 295.17 | I121: 304.08 | J121: 309.17 | K121: 299 | L121: 285 | M121: 4.42845
A122: 112 | B122: DCAL | C122: 154.95 | D122: 154.17 | E122: 150.08 | F122: 145.22 | G122: 141.13 | H122: 159.03 | I122: 163.12 | J122: 167.98 | K122: 158.25 | L122: 149.3 | M122: 8.83695
A123: 113 | B123: DCBBANK | C123: 82.8 | D123: 83.27 | E123: 82.03 | F123: 81.27 | G123: 80.03 | H123: 84.03 | I123: 85.27 | J123: 86.03 | K123: 84.5 | L123: 82.5 | M123: 12.97084
A124: 114 | B124: DCMSHRIRAM | C124: 306.25 | D124: 307.68 | E124: 303.57 | F124: 300.88 | G124: 296.77 | H124: 310.37 | I124: 314.48 | J124: 317.17 | K124: 311.8 | L124: 305 | M124: 0.44935
A125: 115 | B125: DEEPAKNTR | C125: 551.2 | D125: 543.47 | E125: 532.23 | F125: 513.27 | G125: 502.03 | H125: 562.43 | I125: 573.67 | J125: 592.63 | K125: 554.7 | L125: 524.5 | M125: 27.91837
A126: 116 | B126: DELTACORP | C126: 91.45 | D126: 91.70 | E126: 90.50 | F126: 89.55 | G126: 88.35 | H126: 92.65 | I126: 93.85 | J126: 94.80 | K126: 92.9 | L126: 90.75 | M126: 7.81122
A127: 117 | B127: DHFL | C127: 14.3 | D127: 14.42 | E127: 14.13 | F127: 13.97 | G127: 13.68 | H127: 14.58 | I127: 14.87 | J127: 15.03 | K127: 14.7 | L127: 14.25 | M127: 15.66397
A128: 118 | B128: DISHTV | C128: 7.75 | D128: 7.82 | E128: 7.63 | F128: 7.52 | G128: 7.33 | H128: 7.93 | I128: 8.12 | J128: 8.23 | K128: 8 | L128: 7.7 | M128: 29.61084
A129: 119 | B129: DIVISLAB | C129: 2235.15 | D129: 2224.12 | E129: 2208.23 | F129: 2181.32 | G129: 2165.43 | H129: 2251.03 | I129: 2266.92 | J129: 2293.83 | K129: 2240 | L129: 2197.2 | M129: 6.00585
A130: 120 | B130: DIXON | C130: 6467.8 | D130: 6399.43 | E130: 6298.87 | F130: 6129.93 | G130: 6029.37 | H130: 6568.37 | I130: 6668.93 | J130: 6837.87 | K130: 6500 | L130: 6230.5 | M130: 0.45626
A131: 121 | B131: DLF | C131: 142.9 | D131: 144.58 | E131: 139.97 | F131: 137.03 | G131: 132.42 | H131: 147.52 | I131: 152.13 | J131: 155.07 | K131: 149.2 | L131: 141.65 | M131: 136.87808
A132: 122 | B132: DMART | C132: 2233.95 | D132: 2239.63 | E132: 2174.32 | F132: 2114.68 | G132: 2049.37 | H132: 2299.27 | I132: 2364.58 | J132: 2424.22 | K132: 2304.95 | L132: 2180 | M132: 17.54347
A133: 123 | B133: DRREDDY | C133: 3899.55 | D133: 3900.83 | E133: 3872.72 | F133: 3845.88 | G133: 3817.77 | H133: 3927.67 | I133: 3955.78 | J133: 3982.62 | K133: 3928.95 | L133: 3874 | M133: 5.3569
A134: 124 | B134: ECLERX | C134: 480.15 | D134: 482.77 | E134: 476.53 | F134: 472.92 | G134: 466.68 | H134: 486.38 | I134: 492.62 | J134: 496.23 | K134: 489 | L134: 479.15 | M134: 1.64073
A135: 125 | B135: EDELWEISS | C135: 56.8 | D135: 56.67 | E135: 55.73 | F135: 54.67 | G135: 53.73 | H135: 57.73 | I135: 58.67 | J135: 59.73 | K135: 57.6 | L135: 55.6 | M135: 18.36284
A136: 126 | B136: EICHERMOT | C136: 19655 | D136: 19611.33 | E136: 19493.67 | F136: 19332.33 | G136: 19214.67 | H136: 19772.67 | I136: 19890.33 | J136: 20051.67 | K136: 19729 | L136: 19450 | M136: 1.33183
A137: 127 | B137: EIDPARRY | C137: 270.75 | D137: 268.88 | E137: 262.87 | F137: 254.98 | G137: 248.97 | H137: 276.77 | I137: 282.78 | J137: 290.67 | K137: 274.9 | L137: 261 | M137: 7.91218
A138: 128 | B138: EIHOTEL | C138: 65.3 | D138: 65.78 | E138: 64.72 | F138: 64.13 | G138: 63.07 | H138: 66.37 | I138: 67.43 | J138: 68.02 | K138: 66.85 | L138: 65.2 | M138: 5.93096
A139: 129 | B139: ELGIEQUIP | C139: 156.4 | D139: 158.83 | E139: 152.77 | F139: 149.13 | G139: 143.07 | H139: 162.47 | I139: 168.53 | J139: 172.17 | K139: 164.9 | L139: 155.2 | M139: 1.63069
A140: 130 | B140: EMAMILTD | C140: 245.2 | D140: 240.42 | E140: 232.33 | F140: 219.47 | G140: 211.38 | H140: 253.28 | I140: 261.37 | J140: 274.23 | K140: 248.5 | L140: 227.55 | M140: 17.58932
A141: 131 | B141: ENDURANCE | C141: 913.25 | D141: 920.53 | E141: 895.77 | F141: 878.28 | G141: 853.52 | H141: 938.02 | I141: 962.78 | J141: 980.27 | K141: 945.3 | L141: 903.05 | M141: 0.86857
A142: 132 | B142: ENGINERSIN | C142: 72.2 | D142: 72.53 | E142: 71.67 | F142: 71.13 | G142: 70.27 | H142: 73.07 | I142: 73.93 | J142: 74.47 | K142: 73.4 | L142: 72 | M142: 12.08625
A143: 133 | B143: EQUITAS | C143: 58.35 | D143: 58.98 | E143: 56.97 | F143: 55.58 | G143: 53.57 | H143: 60.37 | I143: 62.38 | J143: 63.77 | K143: 61 | L143: 57.6 | M143: 150.13493
A144: 134 | B144: ERIS | C144: 456.4 | D144: 454.78 | E144: 446.67 | F144: 436.93 | G144: 428.82 | H144: 464.52 | I144: 472.63 | J144: 482.37 | K144: 462.9 | L144: 445.05 | M144: 1.27994
A145: 135 | B145: ESCORTS | C145: 1129.15 | D145: 1136.08 | E145: 1117.37 | F145: 1105.58 | G145: 1086.87 | H145: 1147.87 | I145: 1166.58 | J145: 1178.37 | K145: 1154.8 | L145: 1124.3 | M145: 19.42503
A146: 136 | B146: ESSELPACK | C146: 192.8 | D146: 195.43 | E146: 188.87 | F146: 184.93 | G146: 178.37 | H146: 199.37 | I146: 205.93 | J146: 209.87 | K146: 202 | L146: 191.5 | M146: 1.34528
A147: 137 | B147: EXIDEIND | C147: 156.2 | D147: 155.58 | E147: 154.47 | F147: 152.73 | G147: 151.62 | H147: 157.32 | I147: 158.43 | J147: 160.17 | K147: 156.7 | L147: 153.85 | M147: 17.9955
A148: 138 | B148: FCONSUMER | C148: 11.75 | D148: 11.42 | E148: 11.08 | F148: 10.42 | G148: 10.08 | H148: 12.08 | I148: 12.42 | J148: 13.08 | K148: 11.75 | L148: 10.75 | M148: 998.05158
A149: 139 | B149: FDC | C149: 239.95 | D149: 240.65 | E149: 237.30 | F149: 234.65 | G149: 231.30 | H149: 243.30 | I149: 246.65 | J149: 249.30 | K149: 244 | L149: 238 | M149: 3.96811
A150: 140 | B150: FEDERALBNK | C150: 53.05 | D150: 53.57 | E150: 52.23 | F150: 51.42 | G150: 50.08 | H150: 54.38 | I150: 55.72 | J150: 56.53 | K150: 54.9 | L150: 52.75 | M150: 209.19444
A151: 141 | B151: FINCABLES | C151: 286.15 | D151: 290.03 | E151: 281.12 | F151: 276.08 | G151: 267.17 | H151: 295.07 | I151: 303.98 | J151: 309.02 | K151: 298.95 | L151: 285 | M151: 0.87667
A152: 142 | B152: FINEORG | C152: 1987.55 | D152: 2004.18 | E152: 1963.37 | F152: 1939.18 | G152: 1898.37 | H152: 2028.37 | I152: 2069.18 | J152: 2093.37 | K152: 2045 | L152: 1980 | M152: 0.17976
A153: 143 | B153: FINPIPE | C153: 469.7 | D153: 473.43 | E153: 462.87 | F153: 456.03 | G153: 445.47 | H153: 480.27 | I153: 490.83 | J153: 497.67 | K153: 484 | L153: 466.6 | M153: 0.5052
A154: 144 | B154: FLFL | C154: 126.6 | D154: 123.52 | E154: 120.43 | F154: 114.27 | G154: 111.18 | H154: 129.68 | I154: 132.77 | J154: 138.93 | K154: 126.6 | L154: 117.35 | M154: 15.85596
A155: 145 | B155: FMGOETZE | C155: 365.25 | D155: 372.35 | E155: 355.30 | F155: 345.35 | G155: 328.30 | H155: 382.30 | I155: 399.35 | J155: 409.30 | K155: 389.4 | L155: 362.4 | M155: 0.05853
A156: 146 | B156: FORTIS | C156: 123.15 | D156: 123.12 | E156: 121.83 | F156: 120.52 | G156: 119.23 | H156: 124.43 | I156: 125.72 | J156: 127.03 | K156: 124.4 | L156: 121.8 | M156: 14.35724
A157: 147 | B157: FRETAIL | C157: 111.05 | D157: 109.03 | E157: 107.02 | F157: 102.98 | G157: 100.97 | H157: 113.07 | I157: 115.08 | J157: 119.12 | K157: 111.05 | L157: 105 | M157: 82.9513
A158: 148 | B158: FSL | C158: 42.75 | D158: 43.17 | E158: 42.08 | F158: 41.42 | G158: 40.33 | H158: 43.83 | I158: 44.92 | J158: 45.58 | K158: 44.25 | L158: 42.5 | M158: 60.4179
A159: 149 | B159: GAIL | C159: 101.1 | D159: 101.78 | E159: 99.62 | F159: 98.13 | G159: 95.97 | H159: 103.27 | I159: 105.43 | J159: 106.92 | K159: 103.95 | L159: 100.3 | M159: 103.92495
A160: 150 | B160: GALAXYSURF | C160: 1587.3 | D160: 1586.95 | E160: 1573.90 | F160: 1560.50 | G160: 1547.45 | H160: 1600.35 | I160: 1613.40 | J160: 1626.80 | K160: 1600 | L160: 1573.55 | M160: 0.12307
A161: 151 | B161: GARFIBRES | C161: 1518.4 | D161: 1529.47 | E161: 1498.93 | F161: 1479.47 | G161: 1448.93 | H161: 1548.93 | I161: 1579.47 | J161: 1598.93 | K161: 1560 | L161: 1510 | M161: 0.08994
A162: 152 | B162: GAYAPROJ | C162: 15.8 | D162: 16.02 | E162: 15.23 | F162: 14.67 | G162: 13.88 | H162: 16.58 | I162: 17.37 | J162: 17.93 | K162: 16.8 | L162: 15.45 | M162: 3.23782
A163: 153 | B163: GEPIL | C163: 510.25 | D163: 512.92 | E163: 503.28 | F163: 496.32 | G163: 486.68 | H163: 519.88 | I163: 529.52 | J163: 536.48 | K163: 522.55 | L163: 505.95 | M163: 0.29238
A164: 154 | B164: GESHIP | C164: 214.5 | D164: 213.38 | E164: 209.82 | F164: 205.13 | G164: 201.57 | H164: 218.07 | I164: 221.63 | J164: 226.32 | K164: 216.95 | L164: 208.7 | M164: 1.14096
A165: 155 | B165: GET&D | C165: 80.3 | D165: 80.90 | E165: 79.30 | F165: 78.30 | G165: 76.70 | H165: 81.90 | I165: 83.50 | J165: 84.50 | K165: 82.5 | L165: 79.9 | M165: 5.57513
A166: 156 | B166: GHCL | C166: 156.55 | D166: 158.05 | E166: 153.50 | F166: 150.45 | G166: 145.90 | H166: 161.10 | I166: 165.65 | J166: 168.70 | K166: 162.6 | L166: 155 | M166: 2.42083
A167: 157 | B167: GICRE | C167: 153.15 | D167: 154.40 | E167: 151.25 | F167: 149.35 | G167: 146.20 | H167: 156.30 | I167: 159.45 | J167: 161.35 | K167: 157.55 | L167: 152.5 | M167: 2.20311
A168: 158 | B168: GILLETTE | C168: 5057.65 | D168: 5075.88 | E168: 5031.77 | F168: 5005.88 | G168: 4961.77 | H168: 5101.77 | I168: 5145.88 | J168: 5171.77 | K168: 5120 | L168: 5050 | M168: 0.08028
A169: 159 | B169: GLAXO | C169: 1504.65 | D169: 1502.93 | E169: 1490.87 | F169: 1477.08 | G169: 1465.02 | H169: 1516.72 | I169: 1528.78 | J169: 1542.57 | K169: 1515 | L169: 1489.15 | M169: 0.44848
A170: 160 | B170: GLENMARK | C170: 415.5 | D170: 420.33 | E170: 408.67 | F170: 401.83 | G170: 390.17 | H170: 427.17 | I170: 438.83 | J170: 445.67 | K170: 432 | L170: 413.5 | M170: 31.09961
A171: 161 | B171: GMDCLTD | C171: 42.15 | D171: 42.15 | E171: 41.30 | F171: 40.45 | G171: 39.60 | H171: 43.00 | I171: 43.85 | J171: 44.70 | K171: 43 | L171: 41.3 | M171: 16.22211
A172: 162 | B172: GMRINFRA | C172: 19.95 | D172: 20.10 | E172: 19.75 | F172: 19.55 | G172: 19.20 | H172: 20.30 | I172: 20.65 | J172: 20.85 | K172: 20.45 | L172: 19.9 | M172: 75.80536
A173: 163 | B173: GNFC | C173: 171 | D173: 173.60 | E173: 167.45 | F173: 163.90 | G173: 157.75 | H173: 177.15 | I173: 183.30 | J173: 186.85 | K173: 179.75 | L173: 170.05 | M173: 30.07838
A174: 164 | B174: GODFRYPHLP | C174: 966.2 | D174: 968.67 | E174: 959.73 | F174: 953.27 | G174: 944.33 | H174: 975.13 | I174: 984.07 | J174: 990.53 | K174: 977.6 | L174: 962.2 | M174: 0.28869
A175: 165 | B175: GODREJAGRO | C175: 451.45 | D175: 453.65 | E175: 445.30 | F175: 439.15 | G175: 430.80 | H175: 459.80 | I175: 468.15 | J175: 474.30 | K175: 462 | L175: 447.5 | M175: 1.77784
A176: 166 | B176: GODREJCP | C176: 695.1 | D176: 696.68 | E176: 688.42 | F176: 681.73 | G176: 673.47 | H176: 703.37 | I176: 711.63 | J176: 718.32 | K176: 704.95 | L176: 690 | M176: 14.86087
A177: 167 | B177: GODREJIND | C177: 364.65 | D177: 369.02 | E177: 356.58 | F177: 348.52 | G177: 336.08 | H177: 377.08 | I177: 389.52 | J177: 397.58 | K177: 381.45 | L177: 360.95 | M177: 1.8538
A178: 168 | B178: GODREJPROP | C178: 894.2 | D178: 895.85 | E178: 883.75 | F178: 873.30 | G178: 861.20 | H178: 906.30 | I178: 918.40 | J178: 928.85 | K178: 907.95 | L178: 885.4 | M178: 5.77851
A179: 169 | B179: GPPL | C179: 82.75 | D179: 82.58 | E179: 81.67 | F179: 80.58 | G179: 79.67 | H179: 83.67 | I179: 84.58 | J179: 85.67 | K179: 83.5 | L179: 81.5 | M179: 5.12663
A180: 170 | B180: GRANULES | C180: 242.5 | D180: 240.80 | E180: 236.70 | F180: 230.90 | G180: 226.80 | H180: 246.60 | I180: 250.70 | J180: 256.50 | K180: 244.9 | L180: 235 | M180: 49.91607
A181: 171 | B181: GRAPHITE | C181: 177.75 | D181: 179.07 | E181: 175.68 | F181: 173.62 | G181: 170.23 | H181: 181.13 | I181: 184.52 | J181: 186.58 | K181: 182.45 | L181: 177 | M181: 3.29152
A182: 172 | B182: GRASIM | C182: 611.75 | D182: 612.42 | E182: 606.88 | F182: 602.02 | G182: 596.48 | H182: 617.28 | I182: 622.82 | J182: 627.68 | K182: 617.95 | L182: 607.55 | M182: 17.15549
A183: 173 | B183: GREAVESCOT | C183: 86.05 | D183: 86.75 | E183: 84.70 | F183: 83.35 | G183: 81.30 | H183: 88.10 | I183: 90.15 | J183: 91.50 | K183: 88.8 | L183: 85.4 | M183: 2.38458
A184: 174 | B184: GRINDWELL | C184: 521.4 | D184: 517.85 | E184: 508.20 | F184: 495.00 | G184: 485.35 | H184: 531.05 | I184: 540.70 | J184: 553.90 | K184: 527.5 | L184: 504.65 | M184: 0.98502
A185: 175 | B185: GSFC | C185: 61.7 | D185: 62.18 | E185: 60.57 | F185: 59.43 | G185: 57.82 | H185: 63.32 | I185: 64.93 | J185: 66.07 | K185: 63.8 | L185: 61.05 | M185: 21.57851
A186: 176 | B186: GSPL | C186: 207.5 | D186: 210.15 | E186: 203.35 | F186: 199.20 | G186: 192.40 | H186: 214.30 | I186: 221.10 | J186: 225.25 | K186: 216.95 | L186: 206 | M186: 5.24501
A187: 177 | B187: GUJALKALI | C187: 339.4 | D187: 341.35 | E187: 335.45 | F187: 331.50 | G187: 325.60 | H187: 345.30 | I187: 351.20 | J187: 355.15 | K187: 347.25 | L187: 337.4 | M187: 0.57521
A188: 178 | B188: GUJGASLTD | C188: 309.6 | D188: 309.43 | E188: 304.17 | F188: 298.73 | G188: 293.47 | H188: 314.87 | I188: 320.13 | J188: 325.57 | K188: 314.7 | L188: 304 | M188: 11.50732
A189: 179 | B189: GULFOILLUB | C189: 592.25 | D189: 598.75 | E189: 583.50 | F189: 574.75 | G189: 559.50 | H189: 607.50 | I189: 622.75 | J189: 631.50 | K189: 614 | L189: 590 | M189: 0.13923
A190: 180 | B190: HAL | C190: 929.5 | D190: 939.47 | E190: 913.93 | F190: 898.37 | G190: 872.83 | H190: 955.03 | I190: 980.57 | J190: 996.13 | K190: 965 | L190: 923.9 | M190: 3.28109
A191: 181 | B191: HATSUN | C191: 674.25 | D191: 671.42 | E191: 662.83 | F191: 651.42 | G191: 642.83 | H191: 682.83 | I191: 691.42 | J191: 702.83 | K191: 680 | L191: 660 | M191: 0.28959
A192: 182 | B192: HAVELLS | C192: 587.1 | D192: 584.45 | E192: 579.65 | F192: 572.20 | G192: 567.40 | H192: 591.90 | I192: 596.70 | J192: 604.15 | K192: 589.25 | L192: 577 | M192: 9.39648
A193: 183 | B193: HCLTECH | C193: 602.6 | D193: 596.98 | E193: 588.97 | F193: 575.33 | G193: 567.32 | H193: 610.62 | I193: 618.63 | J193: 632.27 | K193: 605 | L193: 583.35 | M193: 54.43995
A194: 184 | B194: HDFC | C194: 1845.55 | D194: 1864.25 | E194: 1821.30 | F194: 1797.05 | G194: 1754.10 | H194: 1888.50 | I194: 1931.45 | J194: 1955.70 | K194: 1907.2 | L194: 1840 | M194: 34.03604
A195: 185 | B195: HDFCAMC | C195: 2445.7 | D195: 2447.58 | E195: 2416.42 | F195: 2387.13 | G195: 2355.97 | H195: 2476.87 | I195: 2508.03 | J195: 2537.32 | K195: 2478.75 | L195: 2418.3 | M195: 2.99121
A196: 186 | B196: HDFCBANK | C196: 1080.25 | D196: 1088.18 | E196: 1063.37 | F196: 1046.48 | G196: 1021.67 | H196: 1105.07 | I196: 1129.88 | J196: 1146.77 | K196: 1113 | L196: 1071.3 | M196: 149.61695
A197: 187 | B197: HDFCLIFE | C197: 600.3 | D197: 596.02 | E197: 588.28 | F197: 576.27 | G197: 568.53 | H197: 608.03 | I197: 615.77 | J197: 627.78 | K197: 603.75 | L197: 584 | M197: 28.54269
A198: 188 | B198: HEG | C198: 774.4 | D198: 783.40 | E198: 761.35 | F198: 748.30 | G198: 726.25 | H198: 796.45 | I198: 818.50 | J198: 831.55 | K198: 805.45 | L198: 770.35 | M198: 2.24556
A199: 189 | B199: HEIDELBERG | C199: 177.5 | D199: 178.50 | E199: 175.10 | F199: 172.70 | G199: 169.30 | H199: 180.90 | I199: 184.30 | J199: 186.70 | K199: 181.9 | L199: 176.1 | M199: 2.88238
A200: 190 | B200: HERITGFOOD | C200: 251.4 | D200: 253.72 | E200: 247.68 | F200: 243.97 | G200: 237.93 | H200: 257.43 | I200: 263.47 | J200: 267.18 | K200: 259.75 | L200: 250 | M200: 0.24817
A201: 191 | B201: HEROMOTOCO | C201: 2689.7 | D201: 2691.47 | E201: 2668.58 | F201: 2647.47 | G201: 2624.58 | H201: 2712.58 | I201: 2735.47 | J201: 2756.58 | K201: 2714.35 | L201: 2670.35 | M201: 7.1359
A202: 192 | B202: HEXAWARE | C202: 346.1 | D202: 345.85 | E202: 343.30 | F202: 340.50 | G202: 337.95 | H202: 348.65 | I202: 351.20 | J202: 354.00 | K202: 348.4 | L202: 343.05 | M202: 9.12782
A203: 193 | B203: HFCL | C203: 13.5 | D203: 13.70 | E203: 13.15 | F203: 12.80 | G203: 12.25 | H203: 14.05 | I203: 14.60 | J203: 14.95 | K203: 14.25 | L203: 13.35 | M203: 21.86346
A204: 194 | B204: HIMATSEIDE | C204: 58.5 | D204: 59.02 | E204: 57.78 | F204: 57.07 | G204: 55.83 | H204: 59.73 | I204: 60.97 | J204: 61.68 | K204: 60.25 | L204: 58.3 | M204: 1.18163
A205: 195 | B205: HINDALCO | C205: 169.25 | D205: 167.95 | E205: 165.40 | F205: 161.55 | G205: 159.00 | H205: 171.80 | I205: 174.35 | J205: 178.20 | K205: 170.5 | L205: 164.1 | M205: 218.94781
A206: 196 | B206: HINDCOPPER | C206: 39.45 | D206: 39.82 | E206: 38.88 | F206: 38.32 | G206: 37.38 | H206: 40.38 | I206: 41.32 | J206: 41.88 | K206: 40.75 | L206: 39.25 | M206: 21.59246
... 321 more rows

Sheet Bulk Deals
E6: Back To Main Page
A7: Subject : | B7: BULK DEAL | D7: =Main!B10 -> 2020-07-14
A9: Date | B9: Scrip code | C9: Scrip Name | D9: Client Name | E9: Buy / Sell | F9: Quantity Traded | G9: Trade Price / Wt.Avg.trade price | H9: Exchange
A10: 2020-07-13 | B10: 540697 | C10: AMFL | D10: NAVEEN GUPTA | E10: BUY | F10: 58,203 | G10: 4.91 | H10: BSE
A11: 2020-07-13 | B11: 540697 | C11: AMFL | D11: NAVEEN GUPTA | E11: SELL | F11: 79,207 | G11: 4.85 | H11: BSE
A12: 2020-07-13 | B12: 540697 | C12: AMFL | D12: CONSORTIUM CAPITAL PRIVATE LIMITED | E12: BUY | F12: 230,000 | G12: 5.02 | H12: BSE
A13: 2020-07-13 | B13: 540697 | C13: AMFL | D13: DEVABHAI NAGJIBHAI DESAI | E13: SELL | F13: 105,006 | G13: 4.93 | H13: BSE
A14: 2020-07-13 | B14: 505690 | C14: BRADYM | D14: TRANSPARENT AGRO PVT LTD | E14: SELL | F14: 157,500 | G14: 80.3 | H14: BSE
A15: 2020-07-13 | B15: 505690 | C15: BRADYM | D15: R K S DISTRIBUTORS PRIVATE LIMITED | E15: BUY | F15: 157,500 | G15: 80.3 | H15: BSE
A16: 2020-07-13 | B16: 542934 | C16: CBPL | D16: RAMESHCHANDRA PRABHUDAS SAGAR | E16: BUY | F16: 40,000 | G16: 50 | H16: BSE
A17: 2020-07-13 | B17: 542934 | C17: CBPL | D17: ABHISHEK RAMESHCHANDRA PARMAR | E17: BUY | F17: 40,000 | G17: 49.87 | H17: BSE
A18: 2020-07-13 | B18: 542934 | C18: CBPL | D18: JIYA PRASHANTBHAI UKANI | E18: SELL | F18: 40,000 | G18: 50 | H18: BSE
A19: 2020-07-13 | B19: 542934 | C19: CBPL | D19: PRASHANT GHANSHYAMBHAI UKANI | E19: SELL | F19: 60,000 | G19: 50 | H19: BSE
A20: 2020-07-13 | B20: 526546 | C20: CHOKSILA | D20: PRATAP SINGH HARDIA | E20: SELL | F20: 39,802 | G20: 9.9 | H20: BSE
A21: 2020-07-13 | B21: 526546 | C21: CHOKSILA | D21: SACHIN SETH | E21: BUY | F21: 48,200 | G21: 9.87 | H21: BSE
A22: 2020-07-13 | B22: 540134 | C22: IISL | D22: KESAR TRACOM INDIA LLP | E22: BUY | F22: 45,000 | G22: 12.28 | H22: BSE
A23: 2020-07-13 | B23: 542446 | C23: JONJUA | D23: VISHWADEEP SHARMA | E23: BUY | F23: 5,200 | G23: 50.15 | H23: BSE
A24: 2020-07-13 | B24: 542446 | C24: JONJUA | D24: VISHWADEEP SHARMA | E24: SELL | F24: 36,400 | G24: 56.4 | H24: BSE
A25: 2020-07-13 | B25: 542446 | C25: JONJUA | D25: SUKARMA COMMERCE PRIVATE LIMITED | E25: BUY | F25: 41,600 | G25: 56.3 | H25: BSE
A26: 2020-07-13 | B26: 530219 | C26: NUTRICIRCLE | D26: NEETAA SANDIP MODI | E26: SELL | F26: 1,501 | G26: 50 | H26: BSE
A27: 2020-07-13 | B27: 530219 | C27: NUTRICIRCLE | D27: VISHNU MARUTI RAMANE | E27: SELL | F27: 6,627 | G27: 50 | H27: BSE
A28: 2020-07-13 | B28: 530219 | C28: NUTRICIRCLE | D28: VADDEPALLI ANJANEYULU | E28: SELL | F28: 14,629 | G28: 50 | H28: BSE
A29: 2020-07-13 | B29: 530219 | C29: NUTRICIRCLE | D29: VIPUL MOHAN PATEL | E29: BUY | F29: 23,597 | G29: 50 | H29: BSE
A30: 2020-07-13 | B30: 539561 | C30: ROXY | D30: KISHORE KUMAR PATKI | E30: BUY | F30: 70,000 | G30: 19.05 | H30: BSE
A31: 2020-07-13 | B31: 539222 | C31: VMV | D31: NAMRATA KAUSHIK VYAS | E31: SELL | F31: 30,000 | G31: 27.86 | H31: BSE
A32: 2020-07-13 | B32: 541445 | C32: WAA | D32: NU HEIGHTS AGENCY PRIVATE LIMITED | E32: BUY | F32: 148,800 | G32: 20.01 | H32: BSE
A33: 2020-07-13 | B33: 541445 | C33: WAA | D33: MONOTYPE INDIA LIMITED | E33: SELL | F33: 148,000 | G33: 20 | H33: BSE
A34: 2020-07-13 | B34: 501391 | C34: WHBRADY | D34: ORIGIN ENGINEERS PRIVATE LIMITED | E34: BUY | F34: 87,732 | G34: 132.65 | H34: BSE
A35: 2020-07-13 | B35: 501391 | C35: WHBRADY | D35: SPARK ON LINE P LTD | E35: BUY | F35: 87,733 | G35: 132.65 | H35: BSE
A36: 2020-07-13 | B36: 501391 | C36: WHBRADY | D36: TRANSPARENT AGRO PVT LTD | E36: SELL | F36: 175,465 | G36: 132.65 | H36: BSE
A37: 2020-07-13 | B37: CLNINDIA | C37: Clariant Chemicals (I)Ltd | D37: VAIBHAV STOCK AND DERIVATIVES BROKING PRIVATE LIMITED | E37: BUY | F37: 187,551 | G37: 559.54 | H37: NSE
A38: 2020-07-13 | B38: CLNINDIA | C38: Clariant Chemicals (I)Ltd | D38: CHANDARANA INTERMEDIARIES BROKERS PRIVATE LIMITED | E38: BUY | F38: 123,348 | G38: 560.12 | H38: NSE
A39: 2020-07-13 | B39: EQUITAS | C39: Equitas Holdings Limited | D39: HRTI PRIVATE LIMITED | E39: BUY | F39: 1,851,579 | G39: 58.85 | H39: NSE
A40: 2020-07-13 | B40: IBULHSGFIN | C40: Indiabulls Hsg Fin Ltd | D40: SHADOWFAX ADVERTISERS PRIVATE LIMITED | E40: BUY | F40: 2,348,647 | G40: 244.32 | H40: NSE
A41: 2020-07-13 | B41: IBULHSGFIN | C41: Indiabulls Hsg Fin Ltd | D41: TOWER RESEARCH CAPITAL MARKETS INDIA PRIVATE LIMITED | E41: BUY | F41: 3,719,430 | G41: 244.13 | H41: NSE
A42: 2020-07-13 | B42: NECCLTD | C42: North East Carry Corp Ltd | D42: SILVERTOSS SHOPPERS PVT LTD | E42: BUY | F42: 300,000 | G42: 16 | H42: NSE
A43: 2020-07-13 | B43: RIIL | C43: Reliance Indl Infra Ltd | D43: GRAVITON RESEARCH CAPITAL LLP | E43: BUY | F43: 170,223 | G43: 458 | H43: NSE
A44: 2020-07-13 | B44: RIIL | C44: Reliance Indl Infra Ltd | D44: ALPHAGREP SECURITIES PRIVATE LIMITED | E44: BUY | F44: 78,470 | G44: 452.07 | H44: NSE
A45: 2020-07-13 | B45: RIIL | C45: Reliance Indl Infra Ltd | D45: N.K.SECURITIES | E45: BUY | F45: 80,727 | G45: 458.35 | H45: NSE
A46: 2020-07-13 | B46: RMDRIP | C46: R M Drip & Sprink Sys Ltd | D46: GAUTAM CHAMPALAL VAISHNAV | E46: BUY | F46: 38,000 | G46: 60.84 | H46: NSE
A47: 2020-07-13 | B47: SUPRAJIT | C47: Suprajit Engineering Limi | D47: HRTI PRIVATE LIMITED | E47: BUY | F47: 893,939 | G47: 160.82 | H47: NSE
A48: 2020-07-13 | B48: SUPRAJIT | C48: Suprajit Engineering Limi | D48: RS SECURITIES | E48: BUY | F48: 724,436 | G48: 160.05 | H48: NSE
A49: 2020-07-13 | B49: TNPL | C49: Tamil Nadu Newsprint | D49: HRTI PRIVATE LIMITED | E49: BUY | F49: 347,392 | G49: 117.58 | H49: NSE
A50: 2020-07-13 | B50: UNITEDPOLY | C50: United Polyfab Guj. Ltd. | D50: VISHWAKARMA TRADING HOUSE | E50: BUY | F50: 87,000 | G50: 10.15 | H50: NSE
A51: 2020-07-13 | B51: ARVINDF-RE | C51: Arvind Fashions RE | D51: KOTAK STANDARD MULTICAP FUND | E51: SELL | F51: 483,404 | G51: 36.26 | H51: NSE
A52: 2020-07-13 | B52: CLNINDIA | C52: Clariant Chemicals (I)Ltd | D52: NIHAR NANDAN NILEKANI | E52: SELL | F52: 192,012 | G52: 558.29 | H52: NSE
A53: 2020-07-13 | B53: CLNINDIA | C53: Clariant Chemicals (I)Ltd | D53: VAIBHAV STOCK AND DERIVATIVES BROKING PRIVATE LIMITED | E53: SELL | F53: 187,551 | G53: 559.8 | H53: NSE
A54: 2020-07-13 | B54: CLNINDIA | C54: Clariant Chemicals (I)Ltd | D54: CHANDARANA INTERMEDIARIES BROKERS PRIVATE LIMITED | E54: SELL | F54: 121,374 | G54: 559.1 | H54: NSE
A55: 2020-07-13 | B55: CLNINDIA | C55: Clariant Chemicals (I)Ltd | D55: ROHINI NILEKANI | E55: SELL | F55: 200,000 | G55: 546.17 | H55: NSE
A56: 2020-07-13 | B56: CLNINDIA | C56: Clariant Chemicals (I)Ltd | D56: JANHAVI NILEKANI | E56: SELL | F56: 226,000 | G56: 551.35 | H56: NSE
A57: 2020-07-13 | B57: EQUITAS | C57: Equitas Holdings Limited | D57: HRTI PRIVATE LIMITED | E57: SELL | F57: 1,851,579 | G57: 58.84 | H57: NSE
A58: 2020-07-13 | B58: IBULHSGFIN | C58: Indiabulls Hsg Fin Ltd | D58: SHADOWFAX ADVERTISERS PRIVATE LIMITED | E58: SELL | F58: 2,348,647 | G58: 244.43 | H58: NSE
A59: 2020-07-13 | B59: IBULHSGFIN | C59: Indiabulls Hsg Fin Ltd | D59: TOWER RESEARCH CAPITAL MARKETS INDIA PRIVATE LIMITED | E59: SELL | F59: 3,898,876 | G59: 244.37 | H59: NSE
A60: 2020-07-13 | B60: RIIL | C60: Reliance Indl Infra Ltd | D60: GRAVITON RESEARCH CAPITAL LLP | E60: SELL | F60: 170,223 | G60: 458.41 | H60: NSE
A61: 2020-07-13 | B61: RIIL | C61: Reliance Indl Infra Ltd | D61: N.K.SECURITIES | E61: SELL | F61: 80,727 | G61: 458.62 | H61: NSE
A62: 2020-07-13 | B62: RIIL | C62: Reliance Indl Infra Ltd | D62: ALPHAGREP SECURITIES PRIVATE LIMITED | E62: SELL | F62: 78,481 | G62: 451.97 | H62: NSE
A63: 2020-07-13 | B63: RMDRIP | C63: R M Drip & Sprink Sys Ltd | D63: PUSHKAR VINAY DATE | E63: SELL | F63: 40,000 | G63: 60 | H63: NSE
A64: 2020-07-13 | B64: SUPRAJIT | C64: Suprajit Engineering Limi | D64: HRTI PRIVATE LIMITED | E64: SELL | F64: 893,939 | G64: 159.96 | H64: NSE
A65: 2020-07-13 | B65: SUPRAJIT | C65: Suprajit Engineering Limi | D65: RS SECURITIES | E65: SELL | F65: 724,436 | G65: 160.65 | H65: NSE
A66: 2020-07-13 | B66: TNPL | C66: Tamil Nadu Newsprint | D66: HRTI PRIVATE LIMITED | E66: SELL | F66: 347,392 | G66: 117.31 | H66: NSE

Sheet Call Tracker (Equity & F&O)
M5: Back To Main Page
A6: Retail Research Technical Calls & Fundamental Performance Report for the month of July-2020
M7: =Main!B10 -> 2020-07-14
B8: Positional Call
A9: Sr.no | B9: Date | D9: Company | E9: Rec | F9: Rec Price | G9: Stop Loss*** | H9: Call Closed At | I9: Target | J9: Remark | K9: Profit / Loss per Share | L9: All charges | M9: Net Gain / Loss % | N9: Status | O9: Closed Date
A10: 1 | B10: 2020-05-29 | D10: PGHH | E10: Buy | F10: 9,900.00 | G10: 9400 | H10: 10,440.00 | I10: 10700-10800 | J10: Profit of Rs.540/- | K10: =H10-F10 -> 540 | L10: =(F10*-0.8)/100 -> -79 | M10: =(K10+L10)/F10 -> 4.65% | N10: Successful | O10: 2020-07-08 | R10: H
A11: 2 | B11: 2020-06-08 | D11: CROMPTON | E11: Buy | F11: 229.00 | G11: 217 | H11: 241.50 | I11: 250-255 | J11: Profit of Rs.12.5/- | K11: 12.5 | L11: =(F11*-0.8)/100 -> -2 | M11: =(K11+L11)/F11 -> 4.66% | N11: Successful | O11: 2020-07-03 | R11: N
A12: 3 | B12: 2020-06-19 | D12: EXIDEIND | E12: Buy | F12: 150 | G12: 140.00 | H12: 159.00 | I12: 165-170 | J12: Profit of Rs.9/- | K12: =H12-F12 -> 9 | L12: -1 | M12: 5.20% | N12: Successful | O12: 2020-07-07 | R12: N
A13: 4 | B13: 2020-06-22 | D13: CADILAHC | E13: Buy | F13: 358.50 | G13: 335 | H13: 378.50 | I13: 400-410 | J13: Profit of Rs.20/- | K13: =H13-F13 -> 20 | L13: -3 | M13: 4.78% | N13: Successful | O13: 2020-07-03 | R13: N
A14: 5 | B14: 2020-06-25 | D14: DIVISLAB | E14: Buy | F14: 2,340.00 | G14: 2200 | H14: 2,195.00 | I14: 2500-2550 | J14: Loss of Rs.145/- | K14: =H14-F14 -> -145 | L14: -19 | M14: -7.00% | N14: Unsuccessful | O14: 2020-07-02 | R14: N
A15: 6 | B15: 2020-06-25 | D15: ADANIPORTS | E15: Buy | F15: 342.50 | G15: 322 | H15: 365.00 | I15: 380 | J15: Profit of Rs.22.5/- | K15: 22.5 | L15: -3 | M15: 5.77% | N15: Successful | O15: 2020-07-03 | R15: N
A16: 7 | B16: 2020-06-26 | D16: BALKRISIND | E16: Sell | F16: 1,245.00 | G16: 1310 | H16: 1,310.00 | I16: 1160-1140 | J16: Loss of Rs.65/- | K16: =F16-H16 -> -65 | L16: -10 | M16: -6.02% | N16: Unsuccessful | O16: 2020-07-03 | R16: H
A17: 8 | B17: 2020-06-26 | D17: CDSL | E17: Buy | F17: 277 | G17: 261.00 | H17: 296.00 | I17: 310-315 | J17: Profit of Rs.19/- | K17: =H17-F17 -> 19 | L17: -2 | M17: 6.06% | N17: Successful | O17: 2020-07-07 | R17: N
A18: 9 | B18: 2020-06-26 | D18: GODREJPROP | E18: Buy | F18: 863.00 | G18: 815 | H18: 898.50 | I18: 930-950 | J18: Profit of Rs.35.5/- | K18: =H18-F18 -> 35.5 | L18: -7 | M18: 3.31% | N18: Successful | O18: 2020-07-08 | R18: H
A19: 10 | B19: 2020-06-29 | D19: BATAINDIA | E19: Buy | F19: 1300 | G19: 1,235.00 | H19: 1,346.00 | I19: 1400-1450 | J19: Part Profit of Rs.46/- | K19: =H19-F19 -> 46 | L19: -10.4 | M19: 2.74% | N19: Successful | O19: 2020-07-06 | R19: H
A20: 11 | B20: 2020-06-30 | D20: UPL | E20: Buy | F20: 426.5 | G20: 400.00 | H20: 452.5 | I20: 470-480 | J20: Profit of Rs.26/- | K20: =H20-F20 -> 26 | L20: -3 | M20: 5.30% | N20: Successful | O20: 2020-07-03 | R20: N
A21: 12 | B21: 2020-07-02 | D21: LT | E21: Buy | F21: 935-945 | G21: 874 | I21: 1030-1070 | J21: Open | R21: H
A22: 13 | B22: 2020-07-03 | D22: NESTLEIND | E22: Buy | F22: 16770-16800 | G22: 15900 | I22: 18000-18500 | J22: Open | R22: N
A23: 14 | B23: 2020-07-06 | D23: CADILAHC | E23: Buy | F23: 365-368 | G23: 344 | I23: 400-410 | J23: Open | R23: N
A24: 15 | B24: 2020-07-06 | D24: AKZOINDIA | E24: Buy | F24: 1810 | G24: 1,670.00 | H24: 1,875.00 | I24: 2000-2100 | J24: Part Profit of Rs.65/- | K24: =H24-F24 -> 65 | L24: -14.48 | M24: 2.79% | N24: Successful | O24: 2020-07-07 | R24: H
A25: 16 | B25: 2020-07-06 | D25: VINATIORGA | E25: Buy | F25: 1000 | G25: 935.00 | H25: 1,040.00 | I25: 1080-1120 | J25: Part Profit of Rs.40/- | K25: =H25-F25 -> 40 | L25: -8 | M25: 3.20% | N25: Successful | O25: 2020-07-08 | R25: N
A26: 17 | B26: 2020-07-06 | D26: TORNTPHARM | E26: Buy | F26: 2340-2350 | G26: 2210 | I26: 2550-2600 | J26: Open | R26: H
A27: 18 | B27: 2020-07-08 | D27: AARTIIND | E27: Buy | F27: 935-943 | G27: 880 | I27: 1020-1050 | J27: Open | R27: H
A28: 19 | B28: 2020-07-08 | D28: IRCON | E28: Buy | F28: 98.5-99.5 | G28: 92 | I28: 112-115 | J28: Open | R28: H
A29: 20 | B29: 2020-07-08 | D29: MARUTI | E29: Sell | F29: 6175 | G29: 6,550.00 | H29: 5,940.00 | I29: 5700-5500 | J29: Part Profit of Rs.235/- | K29: =F29-H29 -> 235 | L29: -49.4 | M29: 3.01% | N29: Successful | O29: 2020-07-09 | R29: H
A30: 21 | B30: 2020-07-08 | D30: CROMPTON | E30: Buy | F30: 237 | G30: 222.00 | H30: 250 | I30: 260-265 | J30: Profit of Rs.13/- | K30: =H30-F30 -> 13 | L30: -1.896 | M30: 4.69% | N30: Successful | O30: 2020-07-09 | R30: N
A31: 22 | B31: 2020-07-08 | D31: SUPREMEIND | E31: Buy | F31: 1130-1140 | G31: 1065 | I31: 1250-1270 | J31: Open | R31: N
A32: 23 | B32: 2020-07-09 | D32: EICHERMOT | E32: Sell | F32: 19400-19600 | G32: 20650 | I32: 18000-17500 | J32: Open | R32: H
A33: 24 | B33: 2020-07-10 | D33: CUMMINSIND | E33: Buy | F33: 394-398 | G33: 370 | I33: 440-450 | J33: Open | R33: N
A34: 25 | B34: 2020-07-13 | D34: TATACHEM | E34: Sell | F34: 300-304 | G34: 323 | I34: 265 | J34: Open | R34: N
A37: CLBS = Closing Basis ***
A38: Dividend adjusted <> | F38: Reinitiated $
A39: Part book {} | F39: Revised stoploss #
B41: Momentum Call
A42: Sr.no | B42: Date | D42: Company | E42: Rec | F42: Rec Price | G42: Stop Loss | H42: Call Closed At | I42: Target | J42: Remark | K42: Profit / Loss per Share/Lot | L42: All charges | M42: Net Gain / Loss % | N42: Status | O42: Closed Date
A43: 1 | B43: 2020-06-24 | D43: CIPLA | E43: Buy | F43: 646 | G43: 629 | H43: 625.5 | I43: 680-690 | J43: Loss of Rs.20.5/- | K43: =H43-F43 -> -20.5 | L43: =(F43*-0.8)/100 -> -5 | M43: =(K43+L43)/F43 -> -3.97% | N43: Unsuccessful | O43: 2020-07-01 | R43: H
A44: 2 | B44: 2020-06-24 | D44: LT | E44: Buy | F44: 957 | G44: 925 | H44: 925.5 | I44: 1025 | J44: Loss of Rs.31.5/- | K44: -31.5 | L44: =(F44*-0.8)/100 -> -8 | M44: =(K44+L44)/F44 -> -4.09% | N44: Unsuccessful | O44: 2020-07-01 | R44: N
A45: 3 | B45: 2020-06-26 | D45: AUROPHARMA | E45: Buy | F45: 782 | G45: 758 | H45: 803 | I45: 825 | J45: Profit of Rs.21/- | K45: 21 | L45: -6 | M45: 1.89% | N45: Successful | O45: 2020-07-08 | R45: N
A46: 4 | B46: 2020-06-29 | D46: EXIDEIND | E46: Buy | F46: 147 | G46: 142.5 | H46: 151 | I46: 156-158 | J46: Profit of Rs.4/- | K46: =H46-F46 -> 4 | L46: -1 | M46: 1.92% | N46: Successful | O46: 2020-07-02 | R46: H
A47: 5 | B47: 2020-06-30 | D47: INFY | E47: Buy | F47: 726.5 | G47: 714 | H47: 744.5 | I47: 750-760 | J47: Profit of Rs.18/- | K47: 18 | L47: -6 | M47: 1.68% | N47: Successful | O47: 2020-07-02 | R47: H
A48: 6 | B48: 2020-07-01 | D48: DIVISLAB | E48: Buy | F48: 2255 | G48: 2200 | H48: 2195 | I48: 2350 | J48: Loss of Rs.60/- | K48: =H48-F48 -> -60 | L48: =(F48*-0.8)/100 -> -18 | M48: =(K48+L48)/F48 -> -3.46% | N48: Unsuccessful | O48: 2020-07-02 | R48: H
A49: 7 | B49: 2020-07-02 | D49: AMBUJACEM | E49: Sell | F49: 194 | G49: 200 | H49: 194 | I49: 185-182 | J49: Neutral | K49: 0 | L49: =(F49*-0.8)/100 -> -2 | M49: =(K49+L49)/F49 -> -0.80% | N49: Unsuccessful | O49: 2020-07-03 | R49: H
A50: 8 | B50: 2020-07-03 | D50: CIPLA | E50: Buy | F50: 640-643 | G50: 615 | I50: 670-680 | J50: Open | R50: H
A51: 9 | B51: 2020-07-08 | D51: BHARTIARTL | E51: Buy | F51: 567 | G51: 549 | H51: 585 | I51: 600-610 | J51: Profit of Rs.18/- | K51: =H51-F51 -> 18 | L51: =(F51*-0.8)/100 -> -5 | M51: =(K51+L51)/F51 -> 2.37% | N51: Successful | O51: 2020-07-13 | R51: H
A52: 10 | B52: 2020-07-09 | D52: HCLTECH | E52: Sell | F52: 577.5 | G52: 596 | H52: 596 | I52: 550-540 | J52: Loss of Rs.18.5/- | K52: =F52-H52 -> -18.5 | L52: =(F52*-0.8)/100 -> -5 | M52: =(K52+L52)/F52 -> -4.00% | N52: Unsuccessful | O52: 2020-07-13 | R52: H
A53: 11 | B53: 2020-07-10 | D53: ACC | E53: Sell | F53: 1310 | G53: 1352 | H53: 1344 | I53: 1260-1240 | J53: Loss of Rs.34/- | K53: =F53-H53 -> -34 | L53: =(F53*-0.8)/100 -> -10 | M53: =(K53+L53)/F53 -> -3.40% | N53: Unsuccessful | O53: 2020-07-13 | R53: H
A54: 12 | B54: 2020-07-13 | D54: SIEMENS | E54: Buy | F54: 1130 | G54: 1093 | H54: 1145 | I54: 1180-1200 | J54: Profit of Rs.15/- | K54: =H54-F54 -> 15 | L54: =(F54*-0.07)/100 -> -1 | M54: =(K54+L54)/F54 -> 1.26% | N54: Successful | O54: 2020-07-13 | R54: H
A56: CLBS = Closing Basis ***
A57: Dividend adjusted <> | F57: Reinitiated $
F58: Revised stoploss #
A60: Master Trade High Risk
A61: Sr.no | B61: Date | D61: Company | E61: Rec | F61: Rec Price | G61: Stop Loss | H61: Call Closed At | I61: Target | J61: Remark | K61: Profit / Loss per share | L61: All charges | M61: Gain / Loss per Lot | N61: Lot | O61: Status | P61: Closed Date
A62: 1 | B62: 2020-07-01 | D62: NIFTY JUL FUT | E62: Sell | F62: 10395 | G62: 10555 | H62: 10555 | I62: 10200 | J62: Loss of Rs.108/- | K62: -160 | L62: =(((F62*-0.06)/100)*N62)-100 -> -567.775 | M62: =-8100-568 -> -8668 | N62: 75 | O62: Unsuccessful | P62: 2020-07-02 | R62: H
D63: NIFTY 9-JUL 10200 PE | E63: Sell | F63: 88 | H63: 36 | K63: 52
A64: 2 | B64: 2020-07-09 | D64: NIFTY JUL FUT | E64: Sell | F64: 10760-10770 | G64: 11010 | I64: 10500-10400 | J64: Open | R64: H
D65: NIFTY 23-JUL 10200 PE | E65: Sell | F65: 94-98
A66: 3 | B66: 2020-07-13 | D66: BANKNIFTY JULY FUT | E66: Sell | F66: 22530 | G66: 23100 | H66: 22145 | I66: 21800 | J66: Profit of Rs.237.5/- | K66: 385 | L66: =(((-(F66*N66)*0.06))/100)-100 -> -370.36 | M66: 4380 | N66: 20 | O66: Successful | P66: 2020-07-13 | R66: H
D67: BANKNIFTY 23-JUL 22000 PE | E67: Sell | F67: 365 | H67: 512.5 | K67: -147.5
A73: Master Trade Medium Risk
A74: Sr.no | B74: Date | D74: Company | E74: Rec | F74: Rec Price | G74: Stop Loss | H74: Call Closed At | I74: Target | J74: Remark | K74: Profit/ Loss per lot | L74: All charges | M74: Gain / Loss per Lot | N74: Lot | O74: Status | P74: Closed Date
A75: 1 | B75: 2020-07-06 | D75: NIFTY 10600 PE 09-JUL | E75: Buy | F75: 58 | G75: 18 | H75: 18 | I75: 100-120 | J75: Loss of Rs.40/- | K75: =H75-F75 -> -40 | L75: -100 | M75: =(K75*N75)-L75 -> -2900 | N75: 75 | O75: Unsuccessful | P75: 2020-07-08 | R75: H
A76: 2 | B76: 2020-07-06 | D76: HINDUNILVR JULY 2180 CE | E76: Buy | F76: 56 | H76: 101 | J76: Profit of Rs. 8.5/- | K76: 45 | L76: -200 | M76: =8.5*300 -> 2550 | N76: 300 | O76: Successful | P76: 2020-07-13 | R76: H
D77: HINDUNILVR JULY 2220 CE | E77: Sell | F77: 41 | H77: 77.5 | K77: -36.5
A78: 3 | B78: 2020-07-07 | D78: BANKNIFTY 21500 PE 16-JUL | E78: Buy | F78: 300 | G78: 60 | H78: 70 | I78: 600-700 | J78: Loss of Rs.230/- | K78: =H78-F78 -> -230 | L78: -100 | M78: =(K78*N78)-L78 -> -4500 | N78: 20 | O78: Unsuccessful | P78: 2020-07-09 | R78: H
A81: Techno -Funda (positional)
A82: Sr.no | B82: Date | D82: Company | E82: Rec | F82: Rec Price | G82: Stop Loss*** | H82: Call Closed At | I82: Target | J82: Remark | K82: Profit / Loss per Share | L82: Gain / Loss % | M82: Status | N82: Closed Date | O82: NSE Closed Price
A84: CLBS = Closing Basis *** | F84: Reinitiated $
A85: Dividend adjusted <> | F85: Revised stoploss #
B90: Investment Idea
A91: Sr.no | B91: Date | D91: Company | E91: Rec | F91: Rec Price | G91: Point of Review | H91: Close Rate | I91: Target | J91: Remark | K91: Profit / Loss per Share | L91: Gain / Loss % | M91: Status | N91: Closed Date
A92: 1 | B92: 2013-11-01 | D92: L&T Finance Holding | E92: Accu | F92: 82.00 | G92: - | H92: 100 | I92: 100.00 | J92: Target Achieved | K92: =H92-F92 -> 18.00 | L92: =K92/F92 -> 21.95% | M92: Successful | N92: 2016-10-14
A93: 2 | B93: 2014-06-04 | D93: Finolex Inds | E93: Buy | F93: 257.00 | G93: - | H93: 300 | I93: 300.00 | J93: Target Achieved | K93: 43.00 | L93: 16.73% | M93: Successful | N93: 2014-07-02
A94: 3 | B94: 2014-07-08 | D94: JK Cement | E94: Buy | F94: 393.00 | G94: - | H94: 468 | I94: 468.00 | J94: Target Achieved | K94: 75.00 | L94: 19.08% | M94: Successful | N94: 2014-08-12
A95: 4 | B95: 2014-08-06 | D95: Finolex Cables | E95: Buy | F95: 205.00 | G95: - | H95: 275 | I95: 250.00 | J95: Target Achieved | K95: 70.00 | L95: 34.15% | M95: Successful | N95: 2014-11-19
A96: 5 | B96: 2014-09-04 | D96: Exide Inds | E96: Buy | F96: 162.00 | G96: - | H96: 190 | I96: 190.00 | J96: Target Achieved | K96: 28.00 | L96: 17.28% | M96: Successful | N96: 2015-01-02
A97: 6 | B97: 2014-09-04 | D97: Deepak Nitrite | E97: Buy | F97: 75.00 | G97: - | H97: 91.5 | I97: 95-100 | J97: Profit of Rs.16.50/- | K97: 16.50 | L97: 22.00% | M97: Successful | N97: 2014-11-11
A98: 7 | B98: 2014-10-01 | D98: Mercks | E98: Buy | F98: 850.00 | G98: - | H98: 982.5 | I98: 1050.00 | J98: Profit of Rs.132.50/- | K98: 132.50 | L98: 15.59% | M98: Successful | N98: 2015-02-04
A99: 8 | B99: 2014-10-01 | D99: Grindwell Norton | E99: Buy | F99: 475.00 | G99: - | H99: 515 | I99: 600.00 | J99: Profit of Rs.40/- | K99: 40.00 | L99: 8.42% | M99: Successful | N99: 2014-10-27
A100: 9 | B100: 2014-10-01 | D100: Snowman Logistics | E100: Buy | F100: 86.00 | G100: - | H100: 99 | I100: 140.00 | J100: Profit of Rs.13.00/- | K100: 13.00 | L100: 15.12% | M100: Successful | N100: 2014-10-27
A101: 10 | B101: 2014-10-14 | D101: Birla Corp | E101: Buy | F101: 496.60 | G101: - | H101: 621 | I101: 580.00 | J101: Target Achieved | K101: 124.40 | L101: 25.05% | M101: Successful | N101: 2016-08-23
A102: 11 | B102: 2014-10-14 | D102: Ultratech Cem | E102: Buy | F102: 2481.90 | G102: - | H102: 2840 | I102: 2870.00 | J102: Profit of Rs.358.10/- | K102: 358.10 | L102: 14.43% | M102: Successful | N102: 2015-01-13
A103: 12 | B103: 2014-10-16 | D103: Sintex Inds | E103: Buy | F103: 84.50 | G103: - | H103: 93 | I103: 110.00 | J103: Profit of Rs.8.50/- | K103: 8.50 | L103: 10.06% | M103: Successful | N103: 2014-10-27
A104: 13 | B104: 2014-10-16 | D104: HSIL | E104: Buy | F104: 401.00 | G104: - | H104: 428 | I104: 450.00 | J104: Profit of Rs.27.00/- | K104: 27.00 | L104: 6.73% | M104: Successful | N104: 2015-01-16
A105: 14 | B105: 2014-10-16 | D105: Eveready Inds | E105: Buy | F105: 101.00 | G105: - | H105: 112 | I105: 120.00 | J105: Profit of Rs.11.00/- | K105: 11.00 | L105: 10.89% | M105: Successful | N105: 2014-10-27
A106: 15 | B106: 2014-11-11 | D106: Pennar Inds | E106: Buy | F106: 59.00 | G106: - | H106: 76 | I106: 76.00 | J106: Target Achieved | K106: 17.00 | L106: 28.81% | M106: Successful | N106: 2017-10-24
A107: 16 | B107: 2014-11-11 | D107: Snowman Logistics | E107: Buy | F107: 99.00 | G107: - | H107: 120 | I107: 120.00 | J107: Profit of Rs.21/- | K107: 21.00 | L107: 21.21% | M107: Successful | N107: 2014-11-17
A108: 17 | B108: 2014-11-13 | D108: Dharamsi Morarji Chem | E108: Buy | F108: 22.00 | G108: - | H108: 33.55 | I108: 32.00 | J108: Profit of Rs 11.55/- | K108: 11.55 | L108: 52.50% | M108: Successful | N108: 2015-07-03
A109: 18 | B109: 2014-12-03 | D109: Tatachem | E109: Buy | F109: 440.00 | G109: - | H109: 520 | I109: 520.00 | J109: Profit of Rs 80.00/- | K109: 80.00 | L109: 18.18% | M109: Successful | N109: 2015-07-23
A110: 19 | B110: 2014-12-03 | D110: Advanta | E110: Buy | F110: 360.00 | G110: - | H110: 427 | I110: 425.00 | J110: Profit of Rs.67.00/- | K110: 67.00 | L110: 18.61% | M110: Successful | N110: 2015-02-23
A111: 20 | B111: 2015-01-08 | D111: GDL | E111: Buy | F111: 360.00 | G111: - | H111: 455 | I111: 420.00 | J111: Profit of Rs.95.00/- | K111: 95.00 | L111: 26.39% | M111: Successful | N111: 2015-01-20
A112: 21 | B112: 2015-01-08 | D112: NRB Bearing | E112: Buy | F112: 130.00 | H112: 175.5 | I112: 165.00 | J112: Profit of Rs 45.50/- | K112: 45.50 | L112: 35.00% | M112: Successful | N112: 2017-12-19
A113: 22 | B113: 2015-02-05 | D113: GSFC | E113: Accu | F113: 98.00 | H113: 120 | I113: 120.00 | J113: Target Achieved | K113: 22.00 | L113: 22.45% | M113: Successful | N113: 2017-01-18
A114: 23 | B114: 2015-02-05 | D114: Sundrmfast | E114: Accu | F114: 196.00 | H114: 262 | I114: 255.00 | J114: Target Achieved | K114: 66.00 | L114: 33.67% | M114: Successful | N114: 2016-08-17
A115: 24 | B115: 2015-03-04 | D115: GPPL | E115: Accu | F115: 235 | H115: 77.00 | I115: 280-285 | J115: Loss of Rs.158/- | K115: -158.00 | L115: -67.23% | M115: Unsuccessful | N115: 2019-02-26
A116: 25 | B116: 2015-03-04 | D116: ORIENTCEM | E116: Accu | F116: 185.00 | H116: 224 | I116: 220-225 | J116: Target Achieved | K116: 39.00 | L116: 21.08% | M116: Successful | N116: 2016-10-04
A117: 26 | B117: 2015-03-27 | D117: PFS | E117: Accu | F117: 49.5 | H117: 15.85 | I117: 67.00 | J117: Loss of Rs.33.65/- | K117: -33.65 | L117: -68% | M117: Unsuccessful | N117: 2019-06-11
A118: 27 | B118: 2015-03-30 | D118: Walchandnagar Ind Ltd | E118: Accu | F118: 183.50 | H118: 219 | I118: 218.00 | J118: Profit of Rs.35.50/- | K118: 35.50 | L118: 19.35% | M118: Successful | N118: 2015-04-09
A119: 28 | B119: 2015-04-20 | D119: Kalpataru Power Transmission Ltd | E119: Accu | F119: =(227+237)/2 -> 232.00 | H119: 298 | I119: 298.00 | J119: Target Achieved | K119: 66.00 | L119: 28.45% | M119: Successful | N119: 2017-03-29
A120: 29 | B120: 2015-05-04 | D120: Mastek Ltd | E120: Buy | F120: 385.00 | H120: =212.5+331 -> 543.5 | I120: 510.00 | J120: Profit of Rs 158.50/- | K120: 158.50 | L120: 41.17% | M120: Successful | N120: 2015-08-19
A121: 30 | B121: 2015-05-04 | D121: Suprajit Eng | E121: Buy | F121: 115.50 | H121: 146 | I121: 142.00 | J121: Profit of Rs 30.50/- | K121: 30.50 | L121: 26.41% | M121: Successful | N121: 2015-07-17
A122: 31 | B122: 2015-05-27 | D122: TCI | E122: Buy | F122: 237.50 | H122: 279.5 | I122: 278.00 | J122: Target Achieved | K122: 42.00 | L122: 17.68% | M122: Successful | N122: 2015-08-06
A123: 32 | B123: 2015-06-19 | D123: HSIL | E123: Accu | F123: 340.00 | H123: 448 | I123: 448.00 | J123: Target Achieved | K123: 108.00 | L123: 31.76% | M123: Successful | N123: 2017-10-10
A124: 33 | B124: 2015-07-06 | D124: Capital First | E124: Accu | F124: 390.00 | H124: 460 | I124: 460.00 | J124: Target Achieved | K124: =H124-F124 -> 70.00 | L124: =K124/F124 -> 17.95% | M124: Successful | N124: 2016-04-18
A125: 34 | B125: 2015-07-10 | D125: Dolphin OffShore | E125: Accu | F125: 122.5 | H125: 61.00 | I125: 172.00 | J125: Loss of Rs.61.50/- | K125: -61.50 | L125: -50.20% | M125: Unsuccessful | N125: 2018-08-21
A126: 35 | B126: 2015-08-03 | D126: Allcargo logistics | E126: Accu | F126: 297.50 | H126: 350 | I126: 360.00 | J126: Profit of Rs 52.50/- | K126: 52.50 | L126: 17.65% | M126: Successful | N126: 2015-08-16
A127: 36 | B127: 2015-08-03 | D127: Camline Fine | E127: Accu | F127: 115.50 | H127: 149 | I127: 140.00 | J127: Profit of Rs 33.50/- | K127: 33.50 | L127: 29.00% | M127: Successful | N127: 2017-01-05
A128: 37 | B128: 2015-09-04 | D128: TCI | E128: Accu | F128: 226.00 | H128: 292 | I128: 292.00 | J128: Target Achieved | K128: 66.00 | L128: 29.20% | M128: Successful | N128: 2015-10-09
A129: 38 | B129: 2015-09-07 | D129: Kalpataru Power Transmission Ltd | E129: Accu | F129: 232.50 | H129: 312.5 | I129: 310.00 | J129: Target Achieved | K129: 80.00 | L129: 34.41% | M129: Successful | N129: 2017-03-29
A130: 39 | B130: 2015-09-21 | D130: LLOYD ELECTRIC & ENG LTD | E130: Accu | F130: 196.50 | H130: 238 | I130: 238.00 | J130: Target Achieved | K130: 41.50 | L130: 21.12% | M130: Successful | N130: 2015-10-14
A131: 40 | B131: 2015-09-24 | D131: L&T Finance Holding | E131: Accu | F131: 65.00 | H131: 82 | I131: 82.00 | J131: Target Achieved | K131: 17.00 | L131: 26.15% | M131: Successful | N131: 2016-07-27
A132: 41 | B132: 2015-10-14 | D132: KEC International ltd | E132: Accu | F132: 144.00 | H132: 182.5 | I132: 181.00 | J132: Target Achieved | K132: 38.50 | L132: 26.74% | M132: Successful | N132: 2017-03-23
A133: 42 | B133: 2015-10-14 | D133: Gruh Finance | E133: Accu | F133: 264.00 | H133: 311 | I133: 311.00 | J133: Target Achieved | K133: 47.00 | L133: 17.80% | M133: Successful | N133: 2016-08-22
A134: 43 | B134: 2015-11-10 | D134: Pidilitind | E134: Buy | F134: 549.50 | H134: 630 | I134: 630.00 | J134: Target Achieved | K134: 80.50 | L134: 14.65% | M134: Successful | N134: 2016-02-19
A135: 44 | B135: 2015-12-04 | D135: Zensar Technology | E135: Accu | F135: 1027.50 | H135: 1315 | I135: 1250.00 | J135: Target Achieved | K135: 287.50 | L135: 27.98% | M135: Successful | N135: 2018-05-24
A136: 45 | B136: 2015-12-29 | D136: Vinati Organics Ltd | E136: Accu | F136: 465.00 | H136: 540 | I136: 540.00 | J136: Target Achieved | K136: 75.00 | L136: 16.13% | M136: Successful | N136: 2016-06-09
A137: 46 | B137: 2016-01-11 | D137: GSFC | E137: Buy | F137: 81.00 | H137: 110 | I137: 110.00 | J137: Target Achieved | K137: 29.00 | L137: 35.80% | M137: Successful | N137: 2017-01-10
A138: 47 | B138: 2016-01-13 | D138: SSWL | E138: Buy | F138: 417.50 | H138: 547 | I138: 535.00 | J138: Target Achieved | K138: 129.50 | L138: 31.02% | M138: Successful | N138: 2016-07-27
A139: 48 | B139: 2016-02-08 | D139: Persistent System Ltd | E139: Accu | F139: 650.00 | H139: 800 | I139: 800.00 | J139: Target Achieved | K139: 150.00 | L139: 23.08% | M139: Successful | N139: 2018-02-23
A140: 49 | B140: 2016-03-04 | D140: UPL | E140: Accu | F140: 437.50 | H140: 504.5 | I140: 522.00 | J140: Profit of Rs.67/- | K140: 67.00 | L140: 15.31% | M140: Successful | N140: 2016-04-20
A141: 50 | B141: 2016-03-09 | D141: Ashoka Buildcon Ltd | E141: Accu | F141: 189.50 | H141: 218 | I141: 218.00 | J141: Target Achieved | K141: 28.50 | L141: 15.04% | M141: Successful | N141: 2017-10-26
A142: 51 | B142: 2016-04-11 | D142: PTC INDIA FIN SERV LTD | E142: Accu | F142: 36.5 | H142: 15.85 | I142: 60.00 | J142: Loss of Rs.20.65/- | K142: -20.65 | L142: -56.58% | M142: Unsuccessful | N142: 2019-06-11
A143: 52 | B143: 2016-04-12 | D143: CAMLINFINE $ | E143: Accu | F143: 93.00 | H143: 149 | I143: 140.00 | J143: Profit of Rs 56/- | K143: 56.00 | L143: 60.22% | M143: Successful | N143: 2017-01-05
A144: 53 | B144: 2016-04-12 | D144: Greaves Cotton Ltd. | E144: Accu | F144: 130.00 | H144: 150 | I144: 150-155 | J144: Target Achieved | K144: 20.00 | L144: 15.38% | M144: Successful | N144: 2016-07-13
A145: 54 | B145: 2016-04-13 | D145: DHFL | E145: Accu | F145: 196.00 | H145: 299 | I145: 299.00 | J145: Target Achieved | K145: 103.00 | L145: 52.55% | M145: Successful | N145: 2016-09-07
A146: 55 | B146: 2016-04-13 | D146: Magma | E146: Accu | F146: 88.00 | H146: 103 | I146: 103.00 | J146: Target Achieved | K146: 15.00 | L146: 17.05% | M146: Successful | N146: 2016-06-09
A147: 56 | B147: 2016-05-02 | D147: KEC International ltd $ | E147: Accu | F147: 127.50 | H147: 148 | I147: 148-150 | J147: Target Achieved | K147: =H147-F147 -> 20.50 | L147: =K147/F147 -> 16.08% | M147: Successful | N147: 2016-07-13
A148: 57 | B148: 2016-05-03 | D148: Mindtree | E148: Accu | F148: 675.00 | H148: 815 | I148: 790-800 | J148: Target Achieved | K148: =H148-F148 -> 140.00 | L148: =K148/F148 -> 20.74% | M148: Successful | N148: 2018-02-23
A149: 58 | B149: 2016-06-01 | D149: Atulauto | E149: Accu | F149: 500 | H149: 232.50 | I149: 565-570 | J149: Loss of Rs.267.50 /- | K149: =H149-F149 -> -267.50 | L149: =K149/F149 -> -53.50% | M149: Unsuccessful | N149: 2019-09-27
A150: 59 | B150: 2016-06-06 | D150: TRITURBINE | E150: Accu | F150: 110.00 | H150: 126.5 | I150: 125.00 | J150: Profit of Rs.16.50/- | K150: =H150-F150 -> 16.50 | L150: =K150/F150 -> 15.00% | M150: Successful | N150: 2016-07-01
A151: 60 | B151: 2016-06-17 | D151: Pennar Industries Ltd | E151: Accu | F151: 44.00 | H151: 69.5 | I151: 69.50 | J151: Profit of Rs.25.50/- | K151: =H151-F151 -> 25.50 | L151: =K151/F151 -> 57.95% | M151: Successful | N151: 2017-08-30
A152: 61 | B152: 2016-06-28 | D152: EVEREADY | E152: Accu | F152: 262.50 | H152: 340 | I152: 333.00 | J152: Profit of Rs.77.50/- | K152: 77.50 | L152: 29.52% | M152: Successful | N152: 2017-10-09
A153: 62 | B153: 2016-06-28 | D153: FIEMIND | E153: Accu | F153: 840.00 | H153: 1230 | I153: 1230.00 | J153: Target Achieved | K153: 390.00 | L153: 46.43% | M153: Successful | N153: 2016-10-06
A154: 63 | B154: 2016-07-05 | D154: Bajaj Corp Ltd | E154: Accu | F154: 395 | H154: =(468.5+342.5)/2 -> 405.50 | I154: 510.00 | J154: Profit of Rs.10.50/- | K154: =H154-F154 -> 10.50 | L154: =K154/F154 -> 3% | M154: Neutral | N154: 2019-05-21
A155: 64 | B155: 2016-08-02 | D155: GPPL $ | E155: Buy | F155: =169.5-12.8 -> 156.7 | H155: 77.00 | I155: 198-200 | J155: Loss of Rs.79.7/- | K155: -79.70 | L155: -50.86% | M155: Unsuccessful | N155: 2019-02-26
A156: 65 | B156: 2016-08-04 | D156: WONDERLA HOLIDAYS LTD | E156: Accu | F156: 400 | H156: 305.00 | I156: 475.00 | J156: Loss of Rs.95/- | K156: -95.00 | L156: -23.75% | M156: Unsuccessful | N156: 2019-05-21
A157: 66 | B157: 2016-08-11 | D157: CAMLINFINE | E157: Accu | F157: 86.50 | H157: 130 | I157: 130.00 | J157: Profit of Rs.43.50/- | K157: 43.50 | L157: 50.29% | M157: Successful | N157: 2017-12-22
A158: 67 | B158: 2016-08-18 | D158: GRANULES | E158: Accu | F158: 133.5 | H158: 126.50 | I158: 178.00 | J158: Exit | K158: -7.00 | L158: -5.24% | M158: Unsuccessful | N158: 2016-09-02
A159: 68 | B159: 2016-08-31 | D159: VA TECH WABAG | E159: Accu | F159: 560.00 | H159: 725 | I159: 725.00 | J159: Target Achieved | K159: 165.00 | L159: 29.46% | M159: Successful | N159: 2016-03-27
A160: 69 | B160: 2016-09-01 | D160: SKIPPER LIMITED | E160: Accu | F160: 160.50 | H160: 210 | I160: 210.00 | J160: Target Achieved | K160: 49.50 | L160: 30.84% | M160: Successful | N160: 2017-05-16
A161: 70 | B161: 2016-10-03 | D161: IFBIND | E161: Accu | F161: 430.00 | H161: 596 | I161: 575.00 | J161: Profit of Rs.166/- | K161: 166.00 | L161: 38.60% | M161: Successful | N161: 2017-02-03
A162: 71 | B162: 2016-10-14 | D162: ASIANTILES | E162: Accu | F162: 280.00 | H162: 345 | I162: 345.00 | J162: Target Achieved | K162: =H162-F162 -> 65.00 | L162: =K162/F162 -> 23.21% | M162: Successful | N162: 2017-03-20
A163: 72 | B163: 2016-10-14 | D163: DEEPIND | E163: Accu | F163: 245.00 | H163: 325.5 | I163: 330.00 | J163: Profit of Rs.80.5/- | K163: 80.50 | L163: =K163/F163 -> 32.86% | M163: Successful | N163: 2017-02-03
A164: 73 | B164: 2016-10-17 | D164: DCBBANK | E164: Accu | F164: 125.00 | H164: 160 | I164: 160.00 | J164: Target Achieved | K164: 35.00 | L164: 28.00% | M164: Successful | N164: 2017-03-09
A165: 74 | B165: 2016-10-17 | D165: ORIENTREF | E165: Accu | F165: 114.00 | H165: 145 | I165: 145.00 | J165: Target Achieved | K165: 31.00 | L165: =K165/F165 -> 27.19% | M165: Successful | N165: 2017-05-04
A166: 75 | B166: 2016-10-17 | D166: GANECOS | E166: Accu | F166: 212.00 | H166: 280 | I166: 276.00 | J166: Profit of Rs.68/- | K166: 68.00 | L166: =K166/F166 -> 32.08% | M166: Successful | N166: 2017-05-03
A167: 76 | B167: 2016-11-04 | D167: NBCC | E167: Accu | F167: 155.00 | H167: 210 | I167: 210.00 | J167: Profit of Rs.55/- | K167: 55.00 | L167: =K167/F167 -> 35.48% | M167: Successful | N167: 2017-07-28
A168: 77 | B168: 2016-12-06 | D168: PRECAM | E168: Accu | F168: 150.5 | H168: 72.50 | I168: 174.00 | J168: Loss of Rs.78/- | K168: -78.00 | L168: -51.83% | M168: Unsuccessful | N168: 2018-08-21
A169: 78 | B169: 2016-12-08 | D169: INFRATEL | E169: Accu | F169: 380.00 | H169: 478 | I169: 468.00 | J169: Target Achieved | K169: =H169-F169 -> 98.00 | L169: =K169/F169 -> 25.79% | M169: Successful | N169: 2017-10-17
A170: 79 | B170: 2016-12-30 | D170: GODREJPROP | E170: Accu | F170: 305.00 | H170: 375 | I170: 375.00 | J170: Target Achieved | K170: =H170-F170 -> 70.00 | L170: =K170/F170 -> 22.95% | M170: Successful | N170: 2017-02-02
A171: 80 | B171: 2017-01-04 | D171: DEEPAKNTR | E171: Accu | F171: 99.50 | H171: 158 | I171: 158.00 | J171: Target Achieved | K171: =H171-F171 -> 58.50 | L171: =K171/F171 -> 58.79% | M171: Successful | N171: 2017-06-12
A172: 81 | B172: 2017-01-04 | D172: DEEPAKNTR | E172: Accu | F172: 99.50 | H172: 158 | I172: 158.00 | J172: Target Achieved | K172: 58.50 | L172: 58.79% | M172: Successful | N172: 2017-06-12
A173: 82 | B173: 2017-02-20 | D173: RECLTD | E173: Accu | F173: 140.50 | H173: 220 | I173: 220.00 | J173: Target Achieved | K173: =H173-F173 -> 79.50 | L173: =K173/F173 -> 56.58% | M173: Successful | N173: 2017-05-09
A174: 83 | B174: 2017-02-20 | D174: SUBROS | E174: Accu | F174: 202.50 | H174: 234 | I174: 234.00 | J174: Target Achieved | K174: 31.50 | L174: 15.56% | M174: Successful | N174: 2017-04-11
A175: 84 | B175: 2017-03-24 | D175: VRLLOG | E175: Accu | F175: 300.50 | H175: 417.5 | I175: 420.00 | J175: Profit of Rs.117/- | K175: =H175-F175 -> 117.00 | L175: =K175/F175 -> 38.94% | M175: Successful | N175: 2017-12-01
A176: 85 | B176: 2017-03-24 | D176: FIEMIND | E176: Accu | F176: 850.00 | H176: 1042.5 | I176: 1023.00 | J176: Profit of Rs 192.50/- | K176: 192.50 | L176: 22.65% | M176: Successful | N176: 2017-04-05
A177: 86 | B177: 2017-04-05 | D177: RATNAMANI | E177: Accu | F177: 785.00 | H177: 930 | I177: 920.00 | J177: Profit of Rs.145/- | K177: =H177-F177 -> 145.00 | L177: =K177/F177 -> 18.47% | M177: Successful | N177: 2017-08-29
A178: 87 | B178: 2017-04-06 | D178: ZEEMEDIA | E178: Accu | F178: 40 | H178: 13.10 | I178: 60.00 | J178: Loss of Rs.26.9/- | K178: -26.90 | L178: -67.25% | M178: Unsuccessful | N178: 2018-02-07
A179: 88 | B179: 2017-04-12 | D179: DABUR | E179: Accu | F179: 289.50 | H179: 354 | I179: 360.00 | J179: Profit of Rs.64.5/- | K179: =H179-F179 -> 64.50 | L179: =K179/F179 -> 22.28% | M179: Successful | N179: 2017-11-01
A180: 89 | B180: 2017-04-20 | D180: KPRMILL | E180: Accu | F180: 700.00 | H180: 840 | I180: 840.00 | J180: Profit of Rs.140/- | K180: 140.00 | L180: 20.00% | M180: Successful | N180: 2017-06-07
A181: 90 | B181: 2017-06-01 | D181: ESSELPACK | E181: Accu | F181: 130.00 | H181: 144.25 | I181: 170.00 | J181: Profit of Rs.14.25/- | K181: 14.25 | L181: 10.96% | M181: Successful | N181: 2019-07-29
A182: 91 | B182: 2017-06-15 | D182: KEI | E182: Accu | F182: 214.50 | H182: 262 | I182: 262.00 | J182: Profit of Rs.47.5/- | K182: 47.50 | L182: 22.14% | M182: Successful | N182: 2017-08-30
A183: 92 | B183: 2017-07-17 | D183: MAYURUNIQ | E183: Accu | F183: 370.00 | H183: 447.5 | I183: 450.00 | J183: Target Achieved | K183: 77.50 | L183: 20.95% | M183: Successful | N183: 2017-10-27
A184: 93 | B184: 2017-07-27 | D184: RAMCOCEM | E184: Accu | F184: 657.50 | H184: 825 | I184: 820.00 | J184: Target Achieved | K184: 167.50 | L184: 25.48% | M184: Successful | N184: 2017-12-21
A185: 94 | B185: 2017-08-17 | D185: FINPIPE | E185: Accu | F185: 605.00 | H185: 750 | I185: 750.00 | J185: Profit of Rs.145/- | K185: 145.00 | L185: 23.97% | M185: Successful | N185: 2017-10-19
A186: 95 | B186: 2017-09-01 | D186: SHK | E186: Accu | F186: 255 | H186: 217.25 | I186: 320.00 | J186: Loss of Rs.37.75/- | K186: -37.75 | L186: -15% | M186: Unsuccessful | N186: 2019-07-15
A187: 96 | B187: 2017-09-19 | D187: SKIPPER | E187: Accu | F187: 215.00 | H187: 258 | I187: 258.00 | J187: Target Achieved | K187: 43.00 | L187: 20.00% | M187: Successful | N187: 2017-11-01
A188: 97 | B188: 2017-09-19 | D188: SKIPPER | E188: Accu | F188: 215.00 | H188: 258 | I188: 258.00 | J188: Target Achieved | K188: 43.00 | L188: 20.00% | M188: Successful | N188: 2017-11-01
A189: 98 | B189: 2017-09-20 | D189: CAMLINFINE$ | E189: Accu | F189: 75.00 | H189: 90 | I189: 90.00 | J189: Profit of Rs.15.00/- | K189: =H189-F189 -> 15.00 | L189: =K189/F189 -> 20.00% | M189: Successful | N189: 2017-10-11
A190: 99 | B190: 2017-10-03 | D190: GNA | E190: Accu | F190: 315.00 | H190: 392 | I190: 384.00 | J190: Profit of Rs.77/- | K190: 77.00 | L190: 24.44% | M190: Successful | N190: 2017-10-09
A191: 100 | B191: 2017-10-05 | D191: NOCIL | E191: Accu | F191: 145.00 | H191: 179 | I191: 180.00 | J191: Profit of Rs.34/- | K191: 34.00 | L191: 23.45% | M191: Successful | N191: 2017-10-17
A192: 101 | B192: 2017-10-06 | D192: CENTURYPLY | E192: Accu | F192: 256.00 | H192: 323 | I192: 320.00 | J192: Target Achieved | K192: 67.00 | L192: 26.17% | M192: Successful | N192: 2017-11-28
A193: 102 | B193: 2017-10-09 | D193: EIHOTEL | E193: Accu | F193: 137.50 | H193: 184 | I193: 183.00 | J193: Profit of Rs.46.5/- | K193: 46.50 | L193: 33.82% | M193: Successful | N193: 2018-01-08
A194: 103 | B194: 2017-10-10 | D194: NRBBEARING | E194: Accu | F194: 125.50 | H194: 158 | I194: 155.00 | J194: Profit of Rs.32.5/- | K194: 32.50 | L194: 25.90% | M194: Successful | N194: 2017-11-28
A195: 104 | B195: 2017-10-10 | D195: BOROSIL | E195: Accu | F195: 895.00 | H195: 1122.5 | I195: 1078.00 | J195: Profit of Rs.227.5/- | K195: 227.50 | L195: 25.42% | M195: Successful | N195: 2018-01-17
A196: 105 | B196: 2017-10-12 | D196: CYIENT | E196: Accu | F196: 525.00 | H196: 629 | I196: 629.00 | J196: Target Achieved | K196: 104.00 | L196: 19.81% | M196: Successful | N196: 2018-01-19
A197: 106 | B197: 2017-11-07 | D197: HATSUN | E197: Accu | F197: 740.00 | H197: 892.5 | I197: 900.00 | J197: Profit of Rs.152.5/- | K197: =H197-F197 -> 152.50 | L197: =K197/F197 -> 20.61% | M197: Successful | N197: 2017-11-13
A198: 107 | B198: 2017-12-04 | D198: SANGHIIND | E198: Accu | F198: 118.50 | H198: 143.5 | I198: 145.00 | J198: Profit of Rs.25/- | K198: =H198-F198 -> 25.00 | L198: =K198/F198 -> 21.10% | M198: Successful | N198: 2017-12-28
A199: 108 | B199: 2017-12-21 | D199: KAJARIACER | E199: Accu | F199: 715 | H199: 500.00 | I199: 872.00 | J199: Loss of Rs.215/- | K199: =H199-F199 -> -215.00 | L199: =K199/F199 -> -30.07% | M199: Unsuccessful | N199: 2019-07-24
A200: 109 | B200: 2017-12-29 | D200: GNA | E200: Accu | F200: 435.00 | H200: 542.5 | I200: 539.00 | J200: Target Achieved | K200: 107.50 | L200: 24.71% | M200: Successful | N200: 2018-04-16
A201: 110 | B201: 2017-12-29 | D201: ZENSARTECH | E201: Accu | F201: 885.00 | H201: 1090 | I201: 1084.00 | J201: Target Achieved | K201: 205.00 | L201: 23.16% | M201: Successful | N201: 2018-04-23
A202: 111 | B202: 2018-04-02 | D202: EVERESTIND | E202: Accu | F202: 478.50 | H202: 442 | I202: 613.00 | J202: Loss of Rs.36.50 /- | K202: =H202-F202 -> -36.50 | L202: =K202/F202 -> -7.63% | M202: Unsuccessful | N202: 2019-10-24
A203: 112 | B203: 2018-04-04 | D203: GPPL$ | E203: Accu | F203: =141.5-7.3 -> 134.2 | H203: 77.00 | I203: 180.00 | J203: Loss of Rs.57.2/- | K203: =H203-F203 -> -57.20 | L203: =K203/F203 -> -42.62% | M203: Unsuccessful | N203: 2019-02-26
A204: 113 | B204: 2018-04-19 | D204: MANPASAND | E204: Accu | F204: 430 | H204: 220.00 | I204: 537.00 | J204: Loss of Rs.210/- | K204: =H204-F204 -> -210.00 | L204: =K204/F204 -> -48.84% | M204: Unsuccessful | N204: 2018-06-01
A205: 114 | B205: 2018-04-30 | D205: HEIDELBERG | E205: Accu | F205: 153.50 | H205: 196.00 | I205: 196.00 | J205: Profit of Rs.42.50/- | K205: =H205-F205 -> 42.50 | L205: =K205/F205 -> 28% | M205: Successful | N205: 2019-05-20
A206: 115 | B206: 2018-07-25 | D206: ZEEMEDIA | E206: Accu | F206: 27.5 | H206: 13.10 | I206: 60.00 | J206: Loss of Rs.14.40/- | K206: -14.40 | L206: -52.36% | M206: Unsuccessful | N206: 2018-02-07
A207: 116 | B207: 2018-08-06 | D207: GABRIEL | E207: Accu | F207: 148.5 | H207: 102 | I207: 182.00 | J207: Loss of Rs.46.50/- | K207: =H207-F207 -> -46.50 | L207: =K207/F207 -> -31.31% | M207: Unsuccessful | N207: 2019-07-15
A208: 117 | B208: 2018-08-23 | D208: INDIANHUME | E208: Accu | F208: 285 | H208: 355 | I208: 364.00 | J208: Profit of Rs.70/- | K208: 70.00 | L208: 24.56% | M208: Successful | N208: 2018-12-21
A209: 118 | B209: 2018-08-29 | D209: GRINDWELL | E209: Accu | F209: 525 | H209: 585 | I209: 635.00 | J209: Profit of Rs.60- | K209: =H209-F209 -> 60.00 | L209: =K209/F209 -> 11.43% | M209: Successful | N209: 2019-07-16
A210: 119 | B210: 2018-10-22 | D210: FINPIPE | E210: Accu | F210: 475 | H210: 574 | I210: 570.00 | J210: Target Achieved | K210: 99.00 | L210: 20.84% | M210: Successful | N210: 2018-10-30
A211: 120 | B211: 2018-10-24 | D211: GULFOILLUB | E211: Accu | F211: 707.5 | H211: 872 | I211: 872.00 | J211: Target Achieved | K211: 164.50 | L211: 23.25% | M211: Successful | N211: 2019-01-17
A212: 121 | B212: 2018-10-25 | D212: DBCORP | E212: Accu | F212: 162 | H212: 204 | I212: 209.00 | J212: Profit of Rs.42/- | K212: 42.00 | L212: 25.93% | M212: Successful | N212: 2019-03-15
A213: 122 | B213: 2018-10-26 | D213: RITES | E213: Accu | F213: 240 | H213: 297 | I213: 297.00 | J213: Target Achieved | K213: 57.00 | L213: 23.75% | M213: Successful | N213: 2018-11-13
A214: 123 | B214: 2018-12-05 | D214: BRIGADE | E214: Accu | F214: 202.5 | H214: 255 | I214: 252.00 | J214: Target Achieved | K214: 52.50 | L214: 25.93% | M214: Successful | N214: 2019-03-18
A215: 124 | B215: 2018-12-31 | D215: JKCEMENT | E215: Accu | F215: 710 | H215: 866 | I215: 866.00 | J215: Target Achieved | K215: 156.00 | L215: 21.97% | M215: Successful | N215: 2019-03-29
A216: 125 | B216: 2019-02-26 | D216: MARICO | E216: Accu | F216: 337.25 | H216: 398.5 | I216: 411.00 | J216: Profit of Rs.61.25/- | K216: 61.25 | L216: 18.16% | M216: Successful | N216: 2019-10-22
A217: 126 | B217: 2019-04-04 | D217: ITDCEM | E217: Accu | F217: 130 | H217: 65 | I217: 158.00 | J217: Loss of Rs.65 /- | K217: -65.00 | L217: -50.00% | M217: Unsuccessful | N217: 2019-09-18
A218: 127 | B218: 2017-10-09 | D218: RECLTD | E218: Accu | F218: 141.5 | H218: 183.50 | I218: 210.00 | J218: Part Profit of Rs.42/- | K218: 42.00 | L218: 30% | M218: Successful | N218: 2017-11-03 | R218: V
A219: 128 | B219: 2017-12-05 | D219: ALLCARGO | E219: Accu | F219: 172.00 | H219: 155.25 | I219: 230.00 | J219: Loss of Rs.16.75/- | K219: =H219-F219 -> -16.75 | L219: =K219/F219 -> -9.74% | M219: Unsuccessful | N219: 2019-11-18 | R219: V
A220: 129 | B220: 2018-10-25 | D220: GODREJCP | E220: Accu | F220: 698.50 | H220: 850.00 | I220: 890.00 | J220: Part Profit of Rs.151.50/- | K220: 151.50 | L220: 22% | M220: Successful | N220: 2018-12-19 | R220: V
A221: 130 | B221: 2017-05-22 | D221: GREAVESCOT | E221: Accu | F221: 127.6 | H221: 138.00 | I221: 190.00 | J221: Profit of Rs.10.40 | K221: 10.40 | L221: 8% | M221: Successful | N221: 2019-11-05 | R221: K
... 24 more rows

Sheet Sheet2 (hidden)
A1: SYMBOL | B1: SERIES | C1: OPEN | D1: HIGH | E1: LOW | F1: CLOSE | G1: LAST | H1: PREVCLOSE | I1: TOTTRDQTY | J1: TOTTRDVAL | K1: TIMESTAMP | L1: TOTALTRADES | M1: ISIN | N1: ISIN
A2: 20MICRONS | B2: EQ | C2: 27.9 | D2: 29 | E2: 25.9 | F2: 26.2 | G2: 25.9 | H2: 27.5 | I2: 80527 | J2: 2193820.55 | K2: 2020-04-08 | L2: 1099 | M2: INE144J01027
A3: 21STCENMGM | B3: EQ | C3: 10.15 | D3: 10.5 | E3: 10.1 | F3: 10.4 | G3: 10.5 | H3: 10.3 | I3: 3205 | J3: 32728.25 | K3: 2020-04-08 | L3: 28 | M3: INE253B01015
A4: 3IINFOTECH | B4: EQ | C4: 1.35 | D4: 1.35 | E4: 1.2 | F4: 1.25 | G4: 1.25 | H4: 1.35 | I4: 2793301 | J4: 3578364.95 | K4: 2020-04-08 | L4: 46535 | M4: INE748C01020
A5: 3MINDIA | B5: EQ | C5: 18950 | D5: 19170 | E5: 18155.05 | F5: 18318.2 | G5: 18270 | H5: 18755.7 | I5: 9926 | J5: 183605811.2 | K5: 2020-04-08 | L5: 4453 | M5: INE470A01017
A6: 3PLAND | B6: EQ | C6: 3.7 | D6: 3.85 | E6: 3.7 | F6: 3.85 | G6: 3.85 | H6: 3.7 | I6: 406 | J6: 1557.85 | K6: 2020-04-08 | L6: 9 | M6: INE105C01023
A7: 5PAISA | B7: EQ | C7: 119.95 | D7: 134 | E7: 115 | F7: 123.35 | G7: 120.5 | H7: 116.4 | I7: 6500 | J7: 793277.05 | K7: 2020-04-08 | L7: 265 | M7: INE618L01018
A8: 63MOONS | B8: EQ | C8: 50.7 | D8: 55.45 | E8: 50.7 | F8: 53.7 | G8: 53.55 | H8: 50.7 | I8: 72221 | J8: 3890984.7 | K8: 2020-04-08 | L8: 3078 | M8: INE111B01023
A9: A2ZINFRA | B9: EQ | C9: 3.15 | D9: 3.25 | E9: 3.1 | F9: 3.15 | G9: 3.15 | H9: 3.15 | I9: 116011 | J9: 367778.85 | K9: 2020-04-08 | L9: 227 | M9: INE619I01012
A10: AARTIDRUGS | B10: EQ | C10: 627 | D10: 669.3 | E10: 605 | F10: 631.6 | G10: 625 | H10: 607.85 | I10: 75970 | J10: 48223549.15 | K10: 2020-04-08 | L10: 5720 | M10: INE767A01016
A11: AARTIIND | B11: EQ | C11: 839.95 | D11: 909.8 | E11: 818 | F11: 854.9 | G11: 864 | H11: 830.7 | I11: 477805 | J11: 419092386.9 | K11: 2020-04-08 | L11: 50045 | M11: INE769A01020
A12: AARVEEDEN | B12: EQ | C12: 8.95 | D12: 9.25 | E12: 7.85 | F12: 8.35 | G12: 8.45 | H12: 8.1 | I12: 9251 | J12: 77100.1 | K12: 2020-04-08 | L12: 94 | M12: INE273D01019
A13: AAVAS | B13: EQ | C13: 1101 | D13: 1183 | E13: 1101 | F13: 1135.2 | G13: 1137 | H13: 1142.35 | I13: 24179 | J13: 28073100.85 | K13: 2020-04-08 | L13: 3631 | M13: INE216P01012
A14: ABAN | B14: EQ | C14: 15.7 | D14: 16.2 | E14: 15.7 | F14: 16.2 | G14: 16.2 | H14: 15.45 | I14: 37609 | J14: 608439.6 | K14: 2020-04-08 | L14: 288 | M14: INE421A01028
A15: ABB | B15: EQ | C15: 935 | D15: 965 | E15: 910 | F15: 930.7 | G15: 928 | H15: 931.35 | I15: 87757 | J15: 82358527.9 | K15: 2020-04-08 | L15: 4699 | M15: INE117A01022
A16: ABBOTINDIA | B16: EQ | C16: 16799.45 | D16: 18250 | E16: 16750 | F16: 17481.1 | G16: 17488 | H16: 16699.7 | I16: 57991 | J16: 1023745502 | K16: 2020-04-08 | L16: 21022 | M16: INE358A01014
A17: ABCAPITAL | B17: EQ | C17: 45 | D17: 47.9 | E17: 44.25 | F17: 45.6 | G17: 45.7 | H17: 45.1 | I17: 1253267 | J17: 57952493.6 | K17: 2020-04-08 | L17: 7317 | M17: INE674K01013
A18: ABFRL | B18: EQ | C18: 148 | D18: 152.8 | E18: 146.75 | F18: 149 | G18: 148 | H18: 149.85 | I18: 416099 | J18: 62371769.1 | K18: 2020-04-08 | L18: 10148 | M18: INE647O01011
A19: ABSLNN50ET | B19: EQ | C19: 244 | D19: 248 | E19: 210 | F19: 235 | G19: 235 | H19: 244 | I19: 56 | J19: 12779.4 | K19: 2020-04-08 | L19: 13 | M19: INF209KB1B87
A20: ACC | B20: EQ | C20: 1000 | D20: 1029.9 | E20: 941.25 | F20: 956.05 | G20: 958 | H20: 1009.95 | I20: 2153627 | J20: 2101320389 | K20: 2020-04-08 | L20: 79728 | M20: INE012A01025
A21: ACCELYA | B21: EQ | C21: 874.3 | D21: 886 | E21: 862 | F21: 880.45 | G21: 879.95 | H21: 874.3 | I21: 10865 | J21: 9557704.55 | K21: 2020-04-08 | L21: 923 | M21: INE793A01012
A22: ACE | B22: EQ | C22: 32.75 | D22: 35.2 | E22: 32.55 | F22: 33.25 | G22: 33.35 | H22: 32.95 | I22: 244708 | J22: 8296578.4 | K22: 2020-04-08 | L22: 2925 | M22: INE731H01025
A23: ADANIENT | B23: EQ | C23: 136.85 | D23: 147.15 | E23: 134.9 | F23: 138.1 | G23: 137.5 | H23: 138.15 | I23: 3237290 | J23: 456492273.1 | K23: 2020-04-08 | L23: 23696 | M23: INE423A01024
A24: ADANIGAS | B24: EQ | C24: 93.9 | D24: 96.35 | E24: 90.5 | F24: 90.8 | G24: 90.65 | H24: 94 | I24: 1888606 | J24: 176837924.4 | K24: 2020-04-08 | L24: 14517 | M24: INE399L01023
A25: ADANIGREEN | B25: EQ | C25: 166.85 | D25: 166.85 | E25: 162 | F25: 166.45 | G25: 166.85 | H25: 158.95 | I25: 702014 | J25: 116248737 | K25: 2020-04-08 | L25: 10187 | M25: INE364U01010
A26: ADANIPORTS | B26: EQ | C26: 248 | D26: 255.85 | E26: 242.75 | F26: 250.85 | G26: 249.7 | H26: 248.1 | I26: 6897883 | J26: 1724830525 | K26: 2020-04-08 | L26: 81499 | M26: INE742F01042
A27: ADANIPOWER | B27: EQ | C27: 28.65 | D27: 31.15 | E27: 27.5 | F27: 28.95 | G27: 28.85 | H27: 28.8 | I27: 12308064 | J27: 361987996.9 | K27: 2020-04-08 | L27: 23153 | M27: INE814H01011
A28: ADANITRANS | B28: EQ | C28: 196.65 | D28: 202 | E28: 190 | F28: 193.65 | G28: 193.5 | H28: 198.3 | I28: 306320 | J28: 59783940.3 | K28: 2020-04-08 | L28: 4236 | M28: INE931S01010
A29: ADFFOODS | B29: EQ | C29: 187.85 | D29: 192.25 | E29: 184 | F29: 187.7 | G29: 187.3 | H29: 183.1 | I29: 22107 | J29: 4185556.05 | K29: 2020-04-08 | L29: 773 | M29: INE982B01019
A30: ADHUNIKIND | B30: EQ | C30: 13.3 | D30: 13.3 | E30: 13.3 | F30: 13.3 | G30: 13.3 | H30: 12.7 | I30: 5518 | J30: 73389.4 | K30: 2020-04-08 | L30: 21 | M30: INE452L01012
A31: ADLABS | B31: EQ | C31: 2.75 | D31: 2.85 | E31: 2.75 | F31: 2.85 | G31: 2.85 | H31: 2.75 | I31: 19360 | J31: 54965.35 | K31: 2020-04-08 | L31: 72 | M31: INE172N01012
A32: ADORWELD | B32: EQ | C32: 195.7 | D32: 201.9 | E32: 193.95 | F32: 195.1 | G32: 194.45 | H32: 196.75 | I32: 1438 | J32: 283768.75 | K32: 2020-04-08 | L32: 94 | M32: INE045A01017
A33: ADROITINFO | B33: EQ | C33: 5.5 | D33: 5.7 | E33: 5.45 | F33: 5.7 | G33: 5.7 | H33: 5.7 | I33: 691 | J33: 3857 | K33: 2020-04-08 | L33: 25 | M33: INE737B01033
A34: ADSL | B34: EQ | C34: 13.05 | D34: 13.2 | E34: 12.4 | F34: 12.5 | G34: 12.45 | H34: 12.7 | I34: 16203 | J34: 205559.25 | K34: 2020-04-08 | L34: 143 | M34: INE102I01027
A35: ADVANIHOTR | B35: EQ | C35: 30.1 | D35: 33 | E35: 30.1 | F35: 31.8 | G35: 31.5 | H35: 30.65 | I35: 5340 | J35: 169948.95 | K35: 2020-04-08 | L35: 193 | M35: INE199C01026
A36: ADVENZYMES | B36: EQ | C36: 140.2 | D36: 146.55 | E36: 137.95 | F36: 139.2 | G36: 139.75 | H36: 136.55 | I36: 77441 | J36: 11046136.15 | K36: 2020-04-08 | L36: 1990 | M36: INE837H01020
A37: AEGISCHEM | B37: EQ | C37: 150 | D37: 158.5 | E37: 147.1 | F37: 156.35 | G37: 156.05 | H37: 144.1 | I37: 175470 | J37: 27041093.9 | K37: 2020-04-08 | L37: 4268 | M37: INE208C01025
A38: AFFLE | B38: BE | C38: 1050 | D38: 1053.45 | E38: 1030 | F38: 1053.45 | G38: 1053.45 | H38: 1003.3 | I38: 8191 | J38: 8619737.5 | K38: 2020-04-08 | L38: 470 | M38: INE00WC01019
A39: AGARIND | B39: EQ | C39: 49.8 | D39: 52.85 | E39: 49.05 | F39: 52.25 | G39: 52.5 | H39: 49.95 | I39: 7826 | J39: 404450.25 | K39: 2020-04-08 | L39: 207 | M39: INE204E01012
A40: AGCNET | B40: BE | C40: 224.35 | D40: 235.55 | E40: 213.25 | F40: 234.7 | G40: 235.55 | H40: 224.35 | I40: 2524 | J40: 573063 | K40: 2020-04-08 | L40: 70 | M40: INE676A01019
A41: AGRITECH | B41: EQ | C41: 23.95 | D41: 23.95 | E41: 23.95 | F41: 23.95 | G41: 23.95 | H41: 22.85 | I41: 504 | J41: 12070.8 | K41: 2020-04-08 | L41: 18 | M41: INE449G01018
A42: AGROPHOS | B42: EQ | C42: 5.7 | D42: 5.7 | E42: 5.2 | F42: 5.7 | G42: 5.7 | H42: 5.45 | I42: 40596 | J42: 227201.55 | K42: 2020-04-08 | L42: 340 | M42: INE740V01019
A43: AHLEAST | B43: EQ | C43: 133.15 | D43: 141.85 | E43: 128.15 | F43: 131.55 | G43: 128.35 | H43: 131.5 | I43: 3303 | J43: 439718.1 | K43: 2020-04-08 | L43: 350 | M43: INE926K01017
A44: AHLUCONT | B44: EQ | C44: 145.95 | D44: 148 | E44: 136 | F44: 146.3 | G44: 148 | H44: 144.1 | I44: 153910 | J44: 21077811.2 | K44: 2020-04-08 | L44: 995 | M44: INE758C01029
A45: AHLWEST | B45: EQ | C45: 289.9 | D45: 289.9 | E45: 270.95 | F45: 275 | G45: 275 | H45: 277 | I45: 238 | J45: 67030 | K45: 2020-04-08 | L45: 91 | M45: INE915K01010
A46: AIAENG | B46: EQ | C46: 1259.45 | D46: 1291 | E46: 1229 | F46: 1255.85 | G46: 1268 | H46: 1249.9 | I46: 73842 | J46: 92756824.05 | K46: 2020-04-08 | L46: 10503 | M46: INE212H01026
A47: AIONJSW | B47: EQ | C47: 10.9 | D47: 11.1 | E47: 10.2 | F47: 11.1 | G47: 11.1 | H47: 10.6 | I47: 90347 | J47: 996144.95 | K47: 2020-04-08 | L47: 180 | M47: INE743C01021
A48: AIRAN | B48: EQ | C48: 9.8 | D48: 10.3 | E48: 9.75 | F48: 9.8 | G48: 9.75 | H48: 9.85 | I48: 1826 | J48: 18127.1 | K48: 2020-04-08 | L48: 25 | M48: INE645W01026
A49: AJANTPHARM | B49: EQ | C49: 1325.75 | D49: 1450 | E49: 1325 | F49: 1367.5 | G49: 1363 | H49: 1340.2 | I49: 166582 | J49: 233126032.5 | K49: 2020-04-08 | L49: 8748 | M49: INE031B01049
A50: AJMERA | B50: EQ | C50: 64.95 | D50: 70.5 | E50: 64.6 | F50: 68.4 | G50: 69.9 | H50: 64.65 | I50: 31766 | J50: 2167947.5 | K50: 2020-04-08 | L50: 909 | M50: INE298G01027
A51: AKASH | B51: BE | C51: 90 | D51: 90 | E51: 90 | F51: 90 | G51: 90 | H51: 90.95 | I51: 500 | J51: 45000 | K51: 2020-04-08 | L51: 1 | M51: INE737W01013
A52: AKSHARCHEM | B52: EQ | C52: 174.75 | D52: 177.6 | E52: 165.3 | F52: 169.7 | G52: 167.15 | H52: 165.25 | I52: 3130 | J52: 531878.25 | K52: 2020-04-08 | L52: 293 | M52: INE542B01011
A53: AKSHOPTFBR | B53: EQ | C53: 3.6 | D53: 3.6 | E53: 3.6 | F53: 3.6 | G53: 3.6 | H53: 3.45 | I53: 27750 | J53: 99900 | K53: 2020-04-08 | L53: 45 | M53: INE523B01011
A54: AKZOINDIA | B54: EQ | C54: 2084.95 | D54: 2133 | E54: 2030 | F54: 2047.9 | G54: 2040 | H54: 2086.75 | I54: 12835 | J54: 26789836.95 | K54: 2020-04-08 | L54: 2242 | M54: INE133A01011
A55: ALANKIT | B55: EQ | C55: 12.9 | D55: 12.9 | E55: 12.9 | F55: 12.9 | G55: 12.9 | H55: 12.3 | I55: 14247 | J55: 183786.3 | K55: 2020-04-08 | L55: 75 | M55: INE914E01040
A56: ALBERTDAVD | B56: EQ | C56: 338.8 | D56: 364.75 | E56: 338.8 | F56: 353.15 | G56: 352 | H56: 341.15 | I56: 24334 | J56: 8579416.55 | K56: 2020-04-08 | L56: 1220 | M56: INE155C01010
A57: ALCHEM | B57: BE | C57: 1.4 | D57: 1.4 | E57: 1.4 | F57: 1.4 | G57: 1.4 | H57: 1.35 | I57: 8608 | J57: 12051.2 | K57: 2020-04-08 | L57: 18 | M57: INE964B01033
A58: ALEMBICLTD | B58: EQ | C58: 43.7 | D58: 48.05 | E58: 39.7 | F58: 45.05 | G58: 45.5 | H58: 42.15 | I58: 695128 | J58: 31779132.75 | K58: 2020-04-08 | L58: 6991 | M58: INE426A01027
A59: ALICON | B59: EQ | C59: 195.95 | D59: 196 | E59: 181.05 | F59: 184.75 | G59: 184 | H59: 189.25 | I59: 3909 | J59: 722322.5 | K59: 2020-04-08 | L59: 123 | M59: INE062D01024
A60: ALKALI | B60: EQ | C60: 29.95 | D60: 31.75 | E60: 29.65 | F60: 31.75 | G60: 31.75 | H60: 28.9 | I60: 9346 | J60: 289594.95 | K60: 2020-04-08 | L60: 349 | M60: INE773I01017
A61: ALKEM | B61: EQ | C61: 2360 | D61: 2736.5 | E61: 2326.2 | F61: 2671.15 | G61: 2639 | H61: 2324.05 | I61: 371259 | J61: 967330461.6 | K61: 2020-04-08 | L61: 44106 | M61: INE540L01014
A62: ALKYLAMINE | B62: EQ | C62: 1236.6 | D62: 1398 | E62: 1222.2 | F62: 1334.05 | G62: 1334 | H62: 1232.45 | I62: 41501 | J62: 55061848.25 | K62: 2020-04-08 | L62: 3832 | M62: INE150B01021
A63: ALLCARGO | B63: EQ | C63: 63.05 | D63: 65.85 | E63: 63 | F63: 65.7 | G63: 65.85 | H63: 59.9 | I63: 300794 | J63: 19569467.05 | K63: 2020-04-08 | L63: 3098 | M63: INE418H01029
A64: ALLSEC | B64: EQ | C64: 131.7 | D64: 131.9 | E64: 129.35 | F64: 131.9 | G64: 131.9 | H64: 125.65 | I64: 1335 | J64: 175836.2 | K64: 2020-04-08 | L64: 37 | M64: INE835G01018
A65: ALOKINDS | B65: EQ | C65: 4.7 | D65: 4.7 | E65: 4.7 | F65: 4.7 | G65: 4.7 | H65: 4.5 | I65: 1698707 | J65: 7983922.9 | K65: 2020-04-08 | L65: 397 | M65: INE270A01029
A66: ALPA | B66: EQ | C66: 18.55 | D66: 20.15 | E66: 17.8 | F66: 20.15 | G66: 20.15 | H66: 16.8 | I66: 131233 | J66: 2593665.9 | K66: 2020-04-08 | L66: 858 | M66: INE385I01010
A67: ALPHAGEO | B67: EQ | C67: 126 | D67: 137.5 | E67: 126 | F67: 134.45 | G67: 133.3 | H67: 129.7 | I67: 22258 | J67: 2986986.5 | K67: 2020-04-08 | L67: 783 | M67: INE137C01018
A68: ALPSINDUS | B68: EQ | C68: 0.65 | D68: 0.75 | E68: 0.65 | F68: 0.75 | G68: 0.7 | H68: 0.7 | I68: 25369 | J68: 18108.8 | K68: 2020-04-08 | L68: 33 | M68: INE093B01015
A69: AMARAJABAT | B69: EQ | C69: 501.1 | D69: 513.65 | E69: 488.45 | F69: 502.05 | G69: 504.9 | H69: 501.1 | I69: 755312 | J69: 378881689.9 | K69: 2020-04-08 | L69: 18162 | M69: INE885A01032
A70: AMBER | B70: EQ | C70: 1189.9 | D70: 1199 | E70: 1072 | F70: 1108.05 | G70: 1109.25 | H70: 1189.9 | I70: 93512 | J70: 105805912.2 | K70: 2020-04-08 | L70: 14252 | M70: INE371P01015
A71: AMBIKCO | B71: EQ | C71: 539.25 | D71: 559 | E71: 531.05 | F71: 545.2 | G71: 536.4 | H71: 537.25 | I71: 3988 | J71: 2168349.4 | K71: 2020-04-08 | L71: 406 | M71: INE540G01014
A72: AMBUJACEM | B72: EQ | C72: 158.5 | D72: 159.5 | E72: 148.2 | F72: 149.7 | G72: 149.55 | H72: 159 | I72: 10421438 | J72: 1597618498 | K72: 2020-04-08 | L72: 84074 | M72: INE079A01024
A73: AMDIND | B73: EQ | C73: 9.9 | D73: 10.5 | E73: 9.5 | F73: 9.8 | G73: 9.55 | H73: 10 | I73: 17757 | J73: 177659.15 | K73: 2020-04-08 | L73: 707 | M73: INE005I01014
A74: AMJLAND | B74: EQ | C74: 14.3 | D74: 14.95 | E74: 13.7 | F74: 14 | G74: 14 | H74: 14.25 | I74: 12523 | J74: 176065.3 | K74: 2020-04-08 | L74: 106 | M74: INE606A01024
A75: AMRUTANJAN | B75: EQ | C75: 326 | D75: 352 | E75: 320.1 | F75: 345.45 | G75: 344.3 | H75: 324 | I75: 278725 | J75: 95586275.35 | K75: 2020-04-08 | L75: 9075 | M75: INE098F01031
A76: ANANTRAJ | B76: EQ | C76: 19.55 | D76: 20.15 | E76: 18.6 | F76: 18.75 | G76: 18.8 | H76: 19.55 | I76: 184694 | J76: 3509270.8 | K76: 2020-04-08 | L76: 1012 | M76: INE242C01024
A77: ANDHRACEMT | B77: EQ | C77: 1.8 | D77: 1.9 | E77: 1.7 | F77: 1.85 | G77: 1.9 | H77: 1.75 | I77: 105618 | J77: 196578.05 | K77: 2020-04-08 | L77: 227 | M77: INE666E01012
A78: ANDHRAPAP | B78: EQ | C78: 148.55 | D78: 148.55 | E78: 147 | F78: 148.55 | G78: 148.55 | H78: 141.5 | I78: 2622 | J78: 389210.05 | K78: 2020-04-08 | L78: 70 | M78: INE435A01028
A79: ANDHRSUGAR | B79: EQ | C79: 206.95 | D79: 212 | E79: 195 | F79: 206.05 | G79: 205.85 | H79: 203.55 | I79: 35494 | J79: 7286675.25 | K79: 2020-04-08 | L79: 1328 | M79: INE715B01013
A80: ANIKINDS | B80: EQ | C80: 7.25 | D80: 7.25 | E80: 6.65 | F80: 6.8 | G80: 6.8 | H80: 6.95 | I80: 4994 | J80: 34701.65 | K80: 2020-04-08 | L80: 35 | M80: INE087B01017
A81: ANKITMETAL | B81: EQ | C81: 0.4 | D81: 0.45 | E81: 0.35 | F81: 0.45 | G81: 0.45 | H81: 0.4 | I81: 64810 | J81: 27213.05 | K81: 2020-04-08 | L81: 29 | M81: INE106I01010
A82: ANSALAPI | B82: EQ | C82: 3.65 | D82: 3.8 | E82: 3.65 | F82: 3.8 | G82: 3.8 | H82: 3.65 | I82: 3974 | J82: 15023.75 | K82: 2020-04-08 | L82: 28 | M82: INE436A01026
A83: ANSALHSG | B83: EQ | C83: 3 | D83: 3 | E83: 2.8 | F83: 2.9 | G83: 2.9 | H83: 2.9 | I83: 31510 | J83: 91846.6 | K83: 2020-04-08 | L83: 64 | M83: INE880B01015
A84: ANUP | B84: EQ | C84: 304.75 | D84: 323.7 | E84: 303.1 | F84: 313.2 | G84: 313.05 | H84: 312.75 | I84: 11786 | J84: 3732090.6 | K84: 2020-04-08 | L84: 460 | M84: INE294Z01018
A85: APARINDS | B85: EQ | C85: 296.95 | D85: 300.35 | E85: 290.6 | F85: 295.85 | G85: 295.5 | H85: 296.05 | I85: 6051 | J85: 1806443.45 | K85: 2020-04-08 | L85: 427 | M85: INE372A01015
A86: APCL | B86: EQ | C86: 102.4 | D86: 102.4 | E86: 95.2 | F86: 97.35 | G86: 97 | H86: 98.5 | I86: 3739 | J86: 362867.6 | K86: 2020-04-08 | L86: 79 | M86: INE071F01012
A87: APCOTEXIND | B87: EQ | C87: 87.55 | D87: 94.85 | E87: 86 | F87: 87.5 | G87: 86.1 | H87: 87.45 | I87: 13115 | J87: 1175575.25 | K87: 2020-04-08 | L87: 323 | M87: INE116A01032
A88: APEX | B88: EQ | C88: 190 | D88: 201.65 | E88: 185.1 | F88: 201.65 | G88: 201.65 | H88: 183.35 | I88: 141806 | J88: 27768799.35 | K88: 2020-04-08 | L88: 3293 | M88: INE346W01013
A89: APLAPOLLO | B89: EQ | C89: 1245 | D89: 1274 | E89: 1220 | F89: 1259.5 | G89: 1258 | H89: 1231.75 | I89: 21152 | J89: 26442272.1 | K89: 2020-04-08 | L89: 3032 | M89: INE702C01019
A90: APLLTD | B90: EQ | C90: 630 | D90: 702.65 | E90: 615.5 | F90: 640.85 | G90: 626 | H90: 610.2 | I90: 540272 | J90: 353935242.1 | K90: 2020-04-08 | L90: 30323 | M90: INE901L01018
A91: APOLLO | B91: EQ | C91: 45.5 | D91: 56 | E91: 45.25 | F91: 54.3 | G91: 53.55 | H91: 46.7 | I91: 68951 | J91: 3631629.4 | K91: 2020-04-08 | L91: 1694 | M91: INE713T01010
A92: APOLLOHOSP | B92: EQ | C92: 1225.9 | D92: 1338.4 | E92: 1211 | F92: 1263.95 | G92: 1261 | H92: 1225.95 | I92: 2070270 | J92: 2654141027 | K92: 2020-04-08 | L92: 156926 | M92: INE437A01024
A93: APOLLOPIPE | B93: EQ | C93: 279.5 | D93: 304 | E93: 262.95 | F93: 281.3 | G93: 281 | H93: 280.1 | I93: 12940 | J93: 3607793.25 | K93: 2020-04-08 | L93: 543 | M93: INE126J01016
A94: APOLLOTYRE | B94: EQ | C94: 83.5 | D94: 87.15 | E94: 82 | F94: 83.4 | G94: 83.15 | H94: 83.5 | I94: 2950752 | J94: 248872037.1 | K94: 2020-04-08 | L94: 19408 | M94: INE438A01022
A95: APOLSINHOT | B95: EQ | C95: 460.35 | D95: 460.4 | E95: 421.1 | F95: 439.8 | G95: 436 | H95: 438.6 | I95: 694 | J95: 306874.65 | K95: 2020-04-08 | L95: 84 | M95: INE451F01024
A96: APTECHT | B96: EQ | C96: 85.3 | D96: 87.7 | E96: 83.55 | F96: 84.6 | G96: 84.3 | H96: 85.3 | I96: 106721 | J96: 9133416.7 | K96: 2020-04-08 | L96: 2385 | M96: INE266F01018
A97: ARCHIDPLY | B97: EQ | C97: 16.55 | D97: 17 | E97: 16.45 | F97: 16.85 | G97: 16.95 | H97: 16.75 | I97: 4083 | J97: 68300.2 | K97: 2020-04-08 | L97: 63 | M97: INE877I01016
A98: ARCHIES | B98: EQ | C98: 9.4 | D98: 9.5 | E98: 9 | F98: 9.05 | G98: 9.15 | H98: 9.45 | I98: 24343 | J98: 224667.6 | K98: 2020-04-08 | L98: 150 | M98: INE731A01020
A99: ARCOTECH | B99: EQ | C99: 0.9 | D99: 0.95 | E99: 0.85 | F99: 0.9 | G99: 0.9 | H99: 0.9 | I99: 51482 | J99: 47500.05 | K99: 2020-04-08 | L99: 77 | M99: INE574I01035
A100: ARENTERP | B100: EQ | C100: 12.65 | D100: 12.65 | E100: 12.05 | F100: 12.05 | G100: 12.05 | H100: 12.65 | I100: 63 | J100: 765.15 | K100: 2020-04-08 | L100: 4 | M100: INE610C01014
A101: ARIES | B101: EQ | C101: 44.4 | D101: 47.6 | E101: 42.65 | F101: 43.6 | G101: 44 | H101: 44.4 | I101: 50875 | J101: 2250478.25 | K101: 2020-04-08 | L101: 1080 | M101: INE298I01015
A102: ARIHANT | B102: EQ | C102: 12.05 | D102: 12.55 | E102: 11.6 | F102: 12.15 | G102: 12.5 | H102: 12.05 | I102: 964 | J102: 11418.15 | K102: 2020-04-08 | L102: 27 | M102: INE413D01011
A103: ARIHANTSUP | B103: EQ | C103: 21.4 | D103: 21.45 | E103: 19.45 | F103: 19.5 | G103: 21 | H103: 20.45 | I103: 4362 | J103: 85414.05 | K103: 2020-04-08 | L103: 80 | M103: INE643K01018
A104: ARMANFIN | B104: EQ | C104: 340 | D104: 373.2 | E104: 337.7 | F104: 373.05 | G104: 373.2 | H104: 355.45 | I104: 50867 | J104: 18465582.65 | K104: 2020-04-08 | L104: 911 | M104: INE109C01017
A105: AROGRANITE | B105: EQ | C105: 21.95 | D105: 24.5 | E105: 20.85 | F105: 24.2 | G105: 24.5 | H105: 22.35 | I105: 26052 | J105: 602565.3 | K105: 2020-04-08 | L105: 183 | M105: INE210C01013
A106: ARROWGREEN | B106: BE | C106: 33.55 | D106: 35 | E106: 33.45 | F106: 33.45 | G106: 33.45 | H106: 33.85 | I106: 5735 | J106: 195198.5 | K106: 2020-04-08 | L106: 32 | M106: INE570D01018
A107: ARSHIYA | B107: EQ | C107: 7.1 | D107: 7.6 | E107: 7.1 | F107: 7.6 | G107: 7.6 | H107: 7.25 | I107: 23178 | J107: 175819.45 | K107: 2020-04-08 | L107: 63 | M107: INE968D01022
A108: ARSSINFRA | B108: EQ | C108: 11.25 | D108: 12.3 | E108: 10.9 | F108: 11.8 | G108: 11.85 | H108: 11.15 | I108: 16388 | J108: 189874.85 | K108: 2020-04-08 | L108: 107 | M108: INE267I01010
A109: ARTEMISMED | B109: EQ | C109: 140 | D109: 147 | E109: 136.3 | F109: 138 | G109: 137 | H109: 139.15 | I109: 1729 | J109: 245138.4 | K109: 2020-04-08 | L109: 31 | M109: INE025R01013
A110: ARVIND | B110: EQ | C110: 23.5 | D110: 24.4 | E110: 22.45 | F110: 23.75 | G110: 23.75 | H110: 22.2 | I110: 2137547 | J110: 50521243.45 | K110: 2020-04-08 | L110: 7057 | M110: INE034A01011
A111: ARVINDFASN | B111: EQ | C111: 139.8 | D111: 141.9 | E111: 132.2 | F111: 133.8 | G111: 134.75 | H111: 139.85 | I111: 46445 | J111: 6387304.5 | K111: 2020-04-08 | L111: 1243 | M111: INE955V01021
A112: ARVSMART | B112: EQ | C112: 64.05 | D112: 67 | E112: 64 | F112: 65.4 | G112: 65.5 | H112: 65 | I112: 10000 | J112: 656036.65 | K112: 2020-04-08 | L112: 320 | M112: INE034S01021
A113: ASAHIINDIA | B113: EQ | C113: 152 | D113: 158 | E113: 147.05 | F113: 155.5 | G113: 152.35 | H113: 153.2 | I113: 5605 | J113: 858978.65 | K113: 2020-04-08 | L113: 218 | M113: INE439A01020
A114: ASAHISONG | B114: EQ | C114: 80.8 | D114: 88.95 | E114: 80.05 | F114: 85.25 | G114: 86 | H114: 80.9 | I114: 8055 | J114: 692533.2 | K114: 2020-04-08 | L114: 314 | M114: INE228I01012
A115: ASAL | B115: EQ | C115: 14.8 | D115: 14.9 | E115: 14.5 | F115: 14.5 | G115: 14.5 | H115: 14.25 | I115: 8037 | J115: 118819.3 | K115: 2020-04-08 | L115: 36 | M115: INE900C01027
A116: ASALCBR | B116: EQ | C116: 164.9 | D116: 175 | E116: 158 | F116: 165.7 | G116: 165 | H116: 162.9 | I116: 31033 | J116: 5116102.05 | K116: 2020-04-08 | L116: 970 | M116: INE073G01016
A117: ASHAPURMIN | B117: EQ | C117: 22.1 | D117: 22.1 | E117: 22.05 | F117: 22.1 | G117: 22.1 | H117: 21.05 | I117: 8770 | J117: 193792 | K117: 2020-04-08 | L117: 43 | M117: INE348A01023
A118: ASHIANA | B118: EQ | C118: 52.9 | D118: 52.9 | E118: 49.1 | F118: 49.95 | G118: 50 | H118: 50 | I118: 69042 | J118: 3480534.3 | K118: 2020-04-08 | L118: 621 | M118: INE365D01021
A119: ASHIMASYN | B119: EQ | C119: 3.9 | D119: 3.9 | E119: 3.9 | F119: 3.9 | G119: 3.9 | H119: 3.55 | I119: 28914 | J119: 112764.6 | K119: 2020-04-08 | L119: 46 | M119: INE440A01010
A120: ASHOKA | B120: EQ | C120: 38.35 | D120: 42.7 | E120: 37.8 | F120: 42.7 | G120: 42.7 | H120: 38.85 | I120: 1577514 | J120: 65134101.3 | K120: 2020-04-08 | L120: 8475 | M120: INE442H01029
A121: ASHOKLEY | B121: EQ | C121: 39.85 | D121: 47.8 | E121: 38.75 | F121: 43.85 | G121: 43.6 | H121: 39.85 | I121: 76817768 | J121: 3355417806 | K121: 2020-04-08 | L121: 169889 | M121: INE208A01029
A122: ASIANHOTNR | B122: EQ | C122: 70 | D122: 71.8 | E122: 66 | F122: 71.55 | G122: 71.5 | H122: 65.4 | I122: 4982 | J122: 349215.55 | K122: 2020-04-08 | L122: 198 | M122: INE363A01022
A123: ASIANPAINT | B123: EQ | C123: 1623.8 | D123: 1687.8 | E123: 1600 | F123: 1608.95 | G123: 1608 | H123: 1623.8 | I123: 2382216 | J123: 3911658954 | K123: 2020-04-08 | L123: 101146 | M123: INE021A01026
A124: ASIANTILES | B124: EQ | C124: 156 | D124: 162.9 | E124: 155 | F124: 157.6 | G124: 156.5 | H124: 157.65 | I124: 19917 | J124: 3151924.4 | K124: 2020-04-08 | L124: 431 | M124: INE022I01019
A125: ASPINWALL | B125: EQ | C125: 93 | D125: 98.7 | E125: 83.55 | F125: 93 | G125: 93 | H125: 90 | I125: 413 | J125: 38837.15 | K125: 2020-04-08 | L125: 20 | M125: INE991I01015
A126: ASTEC | B126: EQ | C126: 450.65 | D126: 465.05 | E126: 440 | F126: 460.05 | G126: 460.3 | H126: 443.9 | I126: 5283 | J126: 2392645.5 | K126: 2020-04-08 | L126: 494 | M126: INE563J01010
A127: ASTERDM | B127: EQ | C127: 96 | D127: 103.5 | E127: 93.8 | F127: 99.25 | G127: 99 | H127: 94.55 | I127: 996205 | J127: 98978623.7 | K127: 2020-04-08 | L127: 4570 | M127: INE914M01019
A128: ASTRAL | B128: EQ | C128: 962 | D128: 986 | E128: 952 | F128: 955.45 | G128: 954 | H128: 973.85 | I128: 59212 | J128: 57381672.65 | K128: 2020-04-08 | L128: 7623 | M128: INE006I01046
A129: ASTRAMICRO | B129: EQ | C129: 56.9 | D129: 62.55 | E129: 55.85 | F129: 61.7 | G129: 62.55 | H129: 56.9 | I129: 253097 | J129: 15146656.55 | K129: 2020-04-08 | L129: 1961 | M129: INE386C01029
A130: ASTRAZEN | B130: EQ | C130: 2700 | D130: 2830 | E130: 2544 | F130: 2561.6 | G130: 2549 | H130: 2693.65 | I130: 38510 | J130: 104113109 | K130: 2020-04-08 | L130: 6647 | M130: INE203A01020
A131: ASTRON | B131: EQ | C131: 26.15 | D131: 29.9 | E131: 25.3 | F131: 27.5 | G131: 27.8 | H131: 27.65 | I131: 61618 | J131: 1693449.45 | K131: 2020-04-08 | L131: 1743 | M131: INE646X01014
A132: ATFL | B132: EQ | C132: 479.65 | D132: 499 | E132: 475 | F132: 481.55 | G132: 475 | H132: 479.65 | I132: 6104 | J132: 2975754.9 | K132: 2020-04-08 | L132: 411 | M132: INE209A01019
A133: ATLANTA | B133: EQ | C133: 3 | D133: 3.15 | E133: 3 | F133: 3.15 | G133: 3.15 | H133: 3 | I133: 8624 | J133: 26936.35 | K133: 2020-04-08 | L133: 28 | M133: INE285H01022
A134: ATLASCYCLE | B134: BE | C134: 30 | D134: 31.5 | E134: 29.5 | F134: 30.7 | G134: 30.7 | H134: 30 | I134: 2000 | J134: 60118.65 | K134: 2020-04-08 | L134: 42 | M134: INE446A01025
A135: ATNINTER | B135: BE | C135: 0.1 | D135: 0.1 | E135: 0.1 | F135: 0.1 | G135: 0.1 | H135: 0.1 | I135: 12716 | J135: 1271.6 | K135: 2020-04-08 | L135: 5 | M135: INE803A01027
A136: ATUL | B136: EQ | C136: 3930 | D136: 4005 | E136: 3908.35 | F136: 3951.85 | G136: 3954.95 | H136: 3927.1 | I136: 76768 | J136: 304824820.4 | K136: 2020-04-08 | L136: 11635 | M136: INE100A01010
A137: ATULAUTO | B137: EQ | C137: 151.35 | D137: 154.05 | E137: 146.8 | F137: 153.45 | G137: 153.95 | H137: 146.75 | I137: 13699 | J137: 2093863.3 | K137: 2020-04-08 | L137: 810 | M137: INE951D01028
A138: AUBANK | B138: EQ | C138: 461.2 | D138: 490 | E138: 457 | F138: 480.3 | G138: 473 | H138: 478.4 | I138: 1791057 | J138: 837589012.6 | K138: 2020-04-08 | L138: 59410 | M138: INE949L01017
A139: AURIONPRO | B139: EQ | C139: 41.75 | D139: 43.7 | E139: 40 | F139: 42.9 | G139: 42.9 | H139: 40.95 | I139: 8828 | J139: 376649.05 | K139: 2020-04-08 | L139: 213 | M139: INE132H01018
A140: AUROPHARMA | B140: EQ | C140: 432.5 | D140: 476.3 | E140: 426.3 | F140: 438.15 | G140: 438.9 | H140: 445.7 | I140: 13186213 | J140: 5925576015 | K140: 2020-04-08 | L140: 205238 | M140: INE406A01037
A141: AUSOMENT | B141: EQ | C141: 26.1 | D141: 26.1 | E141: 26.1 | F141: 26.1 | G141: 26.1 | H141: 25 | I141: 100 | J141: 2610 | K141: 2020-04-08 | L141: 1 | M141: INE218C01016
A142: AUTOAXLES | B142: EQ | C142: 413 | D142: 423.5 | E142: 398.05 | F142: 413.45 | G142: 416 | H142: 399.3 | I142: 5448 | J142: 2244823.45 | K142: 2020-04-08 | L142: 638 | M142: INE449A01011
A143: AUTOIND | B143: EQ | C143: 11.3 | D143: 11.35 | E143: 11.1 | F143: 11.35 | G143: 11.35 | H143: 10.85 | I143: 9358 | J143: 105383.05 | K143: 2020-04-08 | L143: 68 | M143: INE718H01014
A144: AUTOLITIND | B144: EQ | C144: 13.2 | D144: 14.4 | E144: 13.2 | F144: 13.8 | G144: 13.9 | H144: 13.75 | I144: 4699 | J144: 65525.8 | K144: 2020-04-08 | L144: 68 | M144: INE448A01013
A145: AVADHSUGAR | B145: EQ | C145: 143.55 | D145: 143.55 | E145: 143.55 | F145: 143.55 | G145: 143.55 | H145: 136.75 | I145: 13174 | J145: 1891127.7 | K145: 2020-04-08 | L145: 157 | M145: INE349W01017
A146: AVANTIFEED | B146: EQ | C146: 311 | D146: 341.55 | E146: 310.5 | F146: 341.35 | G146: 341.55 | H146: 310.5 | I146: 748404 | J146: 246839085.1 | K146: 2020-04-08 | L146: 23272 | M146: INE871C01038
A147: AVTNPL | B147: EQ | C147: 25.45 | D147: 27.8 | E147: 24.25 | F147: 27.25 | G147: 27 | H147: 25.05 | I147: 213540 | J147: 5643644.4 | K147: 2020-04-08 | L147: 1601 | M147: INE488D01021
A148: AXISBANK | B148: EQ | C148: 383.75 | D148: 427.7 | E148: 373.5 | F148: 391.35 | G148: 391.4 | H148: 388.85 | I148: 64930772 | J148: 2.575974593e+10 | K148: 2020-04-08 | L148: 769506 | M148: INE238A01034
A149: AXISCADES | B149: EQ | C149: 30.9 | D149: 31.5 | E149: 28.65 | F149: 31.4 | G149: 31.5 | H149: 30 | I149: 39670 | J149: 1232336.75 | K149: 2020-04-08 | L149: 621 | M149: INE555B01013
A150: AXISGOLD | B150: EQ | C150: 3969.9 | D150: 3989 | E150: 3925 | F150: 3973.3 | G150: 3983 | H150: 3919.55 | I150: 701 | J150: 2769851.6 | K150: 2020-04-08 | L150: 206 | M150: INF846K01347
A151: AXISNIFTY | B151: EQ | C151: 1000.01 | D151: 1000.01 | E151: 1000.01 | F151: 1000.01 | G151: 1000.01 | H151: 1007 | I151: 2 | J151: 2000.02 | K151: 2020-04-08 | L151: 1 | M151: INF846K01ZL0
A152: AYMSYNTEX | B152: EQ | C152: 15.5 | D152: 16.8 | E152: 15.5 | F152: 16.5 | G152: 16.5 | H152: 16.1 | I152: 2637 | J152: 43548.55 | K152: 2020-04-08 | L152: 26 | M152: INE193B01039
A153: BAFNAPH | B153: EQ | C153: 16.05 | D153: 16.05 | E153: 16.05 | F153: 16.05 | G153: 16.05 | H153: 15.3 | I153: 272 | J153: 4365.6 | K153: 2020-04-08 | L153: 8 | M153: INE878I01022
A154: BAGFILMS | B154: BE | C154: 1.75 | D154: 1.8 | E154: 1.75 | F154: 1.8 | G154: 1.8 | H154: 1.75 | I154: 3861 | J154: 6912.3 | K154: 2020-04-08 | L154: 20 | M154: INE116D01028
A155: BAJAJ-AUTO | B155: EQ | C155: 2180 | D155: 2383.45 | E155: 2168.55 | F155: 2241.7 | G155: 2260 | H155: 2280.05 | I155: 840875 | J155: 1933266167 | K155: 2020-04-08 | L155: 59866 | M155: INE917I01010
A156: BAJAJCON | B156: EQ | C156: 136 | D156: 148.65 | E156: 135.1 | F156: 137.95 | G156: 138 | H156: 138.15 | I156: 1031633 | J156: 145711259.1 | K156: 2020-04-08 | L156: 26102 | M156: INE933K01021
A157: BAJAJELEC | B157: EQ | C157: 277.3 | D157: 294.5 | E157: 277.3 | F157: 287.8 | G157: 289 | H157: 277.3 | I157: 58251 | J157: 16797537.55 | K157: 2020-04-08 | L157: 3821 | M157: INE193E01025
A158: BAJAJFINSV | B158: EQ | C158: 4575 | D158: 4950 | E158: 4537.8 | F158: 4608.5 | G158: 4604 | H158: 4724.9 | I158: 1113057 | J158: 5259493342 | K158: 2020-04-08 | L158: 158158 | M158: INE918I01018
A159: BAJAJHIND | B159: EQ | C159: 3.05 | D159: 3.05 | E159: 3.05 | F159: 3.05 | G159: 3.05 | H159: 2.95 | I159: 80900 | J159: 246745 | K159: 2020-04-08 | L159: 110 | M159: INE306A01021
A160: BAJAJHLDNG | B160: EQ | C160: 2027.95 | D160: 2073.85 | E160: 1925 | F160: 2024.75 | G160: 2025 | H160: 1978.9 | I160: 25453 | J160: 51363834.45 | K160: 2020-04-08 | L160: 6198 | M160: INE118A01012
A161: BAJFINANCE | B161: EQ | C161: 2184 | D161: 2374 | E161: 2144.15 | F161: 2332.9 | G161: 2329 | H161: 2253.35 | I161: 9109346 | J161: 2.088826331e+10 | K161: 2020-04-08 | L161: 516967 | M161: INE296A01024
A162: BALAJITELE | B162: EQ | C162: 43 | D162: 45 | E162: 40.8 | F162: 41.9 | G162: 42.15 | H162: 43.75 | I162: 194912 | J162: 8414452.4 | K162: 2020-04-08 | L162: 1677 | M162: INE794B01026
A163: BALAMINES | B163: EQ | C163: 277 | D163: 296 | E163: 260.4 | F163: 283.65 | G163: 284.45 | H163: 271.2 | I163: 70594 | J163: 20058887.5 | K163: 2020-04-08 | L163: 2337 | M163: INE050E01027
A164: BALAXI | B164: BE | C164: 82.7 | D164: 82.7 | E164: 75.05 | F164: 79.9 | G164: 79.9 | H164: 79 | I164: 1047 | J164: 78761.9 | K164: 2020-04-08 | L164: 24 | M164: INE618N01014
A165: BALKRISHNA | B165: EQ | C165: 8.6 | D165: 8.8 | E165: 8.35 | F165: 8.8 | G165: 8.8 | H165: 8.4 | I165: 7860 | J165: 67624.35 | K165: 2020-04-08 | L165: 49 | M165: INE875R01011
A166: BALKRISIND | B166: EQ | C166: 822 | D166: 862 | E166: 815 | F166: 821.35 | G166: 818.3 | H166: 823.55 | I166: 444079 | J166: 371870250.3 | K166: 2020-04-08 | L166: 24462 | M166: INE787D01026
A167: BALLARPUR | B167: EQ | C167: 0.4 | D167: 0.4 | E167: 0.3 | F167: 0.35 | G167: 0.35 | H167: 0.35 | I167: 9769871 | J167: 3419941.15 | K167: 2020-04-08 | L167: 514 | M167: INE294A01037
A168: BALMLAWRIE | B168: EQ | C168: 84 | D168: 87.9 | E168: 81 | F168: 84.75 | G168: 85.65 | H168: 85.5 | I168: 202053 | J168: 17357055.25 | K168: 2020-04-08 | L168: 3105 | M168: INE164A01016
A169: BALPHARMA | B169: EQ | C169: 38.9 | D169: 41.7 | E169: 38.9 | F169: 41.7 | G169: 41.7 | H169: 37.95 | I169: 40933 | J169: 1688199.5 | K169: 2020-04-08 | L169: 518 | M169: INE083D01012
A170: BALRAMCHIN | B170: EQ | C170: 123.85 | D170: 126.4 | E170: 123 | F170: 126.4 | G170: 126.4 | H170: 120.4 | I170: 642515 | J170: 80884980.2 | K170: 2020-04-08 | L170: 7125 | M170: INE119A01028
A171: BANARBEADS | B171: EQ | C171: 30.25 | D171: 32.5 | E171: 29.6 | F171: 29.75 | G171: 29.75 | H171: 31.5 | I171: 160 | J171: 4873.85 | K171: 2020-04-08 | L171: 26 | M171: INE655B01011
A172: BANARISUG | B172: EQ | C172: 900 | D172: 925 | E172: 880 | F172: 886.1 | G172: 880 | H172: 893.1 | I172: 410 | J172: 368979.1 | K172: 2020-04-08 | L172: 94 | M172: INE459A01010
A173: BANCOINDIA | B173: EQ | C173: 65.45 | D173: 67.5 | E173: 64.1 | F173: 65.95 | G173: 66 | H173: 65.45 | I173: 40062 | J173: 2654130.6 | K173: 2020-04-08 | L173: 1013 | M173: INE213C01025
A174: BANDHANBNK | B174: EQ | C174: 167.95 | D174: 209.05 | E174: 167.5 | F174: 193.75 | G174: 195.25 | H174: 167.25 | I174: 30692919 | J174: 5833285762 | K174: 2020-04-08 | L174: 332020 | M174: INE545U01014
A175: BANG | B175: EQ | C175: 12.05 | D175: 13.1 | E175: 11.9 | F175: 13.1 | G175: 13.1 | H175: 12.5 | I175: 1590 | J175: 20489 | K175: 2020-04-08 | L175: 31 | M175: INE863I01016
A176: BANKBARODA | B176: EQ | C176: 48 | D176: 51.5 | E176: 47.3 | F176: 48.35 | G176: 48.45 | H176: 48.15 | I176: 27159204 | J176: 1340103716 | K176: 2020-04-08 | L176: 77070 | M176: INE028A01039
A177: BANKBEES | B177: EQ | C177: 190 | D177: 205.4 | E177: 186.06 | F177: 191.28 | G177: 191.4 | H177: 192.12 | I177: 676832 | J177: 131368353.2 | K177: 2020-04-08 | L177: 10023 | M177: INF204KB15I9
A178: BANKINDIA | B178: EQ | C178: 32.7 | D178: 34.75 | E178: 32.5 | F178: 33.35 | G178: 33.25 | H178: 32.95 | I178: 1236627 | J178: 41574499.75 | K178: 2020-04-08 | L178: 6257 | M178: INE084A01016
A179: BANSWRAS | B179: EQ | C179: 77.4 | D179: 77.4 | E179: 70.2 | F179: 71.15 | G179: 70.2 | H179: 73.75 | I179: 22922 | J179: 1667255.55 | K179: 2020-04-08 | L179: 137 | M179: INE629D01012
A180: BASF | B180: EQ | C180: 1154 | D180: 1154 | E180: 1105 | F180: 1119.95 | G180: 1120.5 | H180: 1138.25 | I180: 26139 | J180: 29425244.35 | K180: 2020-04-08 | L180: 2640 | M180: INE373A01013
A181: BASML | B181: EQ | C181: 74.05 | D181: 84 | E181: 74.05 | F181: 80 | G181: 80 | H181: 78.7 | I181: 1648 | J181: 135366.45 | K181: 2020-04-08 | L181: 154 | M181: INE186H01014
A182: BATAINDIA | B182: EQ | C182: 1246.5 | D182: 1339 | E182: 1228 | F182: 1240.05 | G182: 1238.95 | H182: 1246.4 | I182: 1346088 | J182: 1726485633 | K182: 2020-04-08 | L182: 66274 | M182: INE176A01028
A183: BAYERCROP | B183: EQ | C183: 3500 | D183: 3946.6 | E183: 3499.3 | F183: 3818.15 | G183: 3772.15 | H183: 3510 | I183: 32833 | J183: 125437264 | K183: 2020-04-08 | L183: 6737 | M183: INE462A01022
A184: BBL | B184: EQ | C184: 590 | D184: 621.25 | E184: 590 | F184: 613.05 | G184: 621.25 | H184: 589.55 | I184: 9335 | J184: 5684085.45 | K184: 2020-04-08 | L184: 804 | M184: INE464A01028
A185: BBTC | B185: EQ | C185: 810 | D185: 854.3 | E185: 774 | F185: 784.2 | G185: 787.95 | H185: 788.4 | I185: 76612 | J185: 62014517.65 | K185: 2020-04-08 | L185: 5281 | M185: INE050A01025
A186: BCG | B186: EQ | C186: 3.6 | D186: 3.65 | E186: 3.55 | F186: 3.65 | G186: 3.65 | H186: 3.5 | I186: 305718 | J186: 1113234.95 | K186: 2020-04-08 | L186: 149 | M186: INE425B01027
A187: BCP | B187: EQ | C187: 10.75 | D187: 10.75 | E187: 10.5 | F187: 10.75 | G187: 10.75 | H187: 10.25 | I187: 8192 | J187: 87934.6 | K187: 2020-04-08 | L187: 28 | M187: INE905P01028
A188: BDL | B188: EQ | C188: 191 | D188: 229 | E188: 188.2 | F188: 218.2 | G188: 216.4 | H188: 191.4 | I188: 448405 | J188: 97968192.25 | K188: 2020-04-08 | L188: 13672 | M188: INE171Z01018
A189: BEARDSELL | B189: EQ | C189: 6.7 | D189: 7.3 | E189: 6.7 | F189: 7.3 | G189: 7.3 | H189: 7.05 | I189: 1250 | J189: 8417 | K189: 2020-04-08 | L189: 4 | M189: INE520H01022
A190: BEDMUTHA | B190: EQ | C190: 12.8 | D190: 13.05 | E190: 12.45 | F190: 12.45 | G190: 12.45 | H190: 13.1 | I190: 19584 | J190: 245429.15 | K190: 2020-04-08 | L190: 32 | M190: INE844K01012
A191: BEL | B191: EQ | C191: 69 | D191: 71.3 | E191: 65.1 | F191: 66.4 | G191: 66.5 | H191: 69 | I191: 16699885 | J191: 1138705070 | K191: 2020-04-08 | L191: 69587 | M191: INE263A01024
A192: BEML | B192: EQ | C192: 492 | D192: 523.5 | E192: 492 | F192: 503.6 | G192: 503 | H192: 475.95 | I192: 890527 | J192: 458689246.6 | K192: 2020-04-08 | L192: 23670 | M192: INE258A01016
A193: BEPL | B193: EQ | C193: 31 | D193: 32.75 | E193: 30.3 | F193: 31.25 | G193: 31.6 | H193: 30.25 | I193: 333595 | J193: 10578641.1 | K193: 2020-04-08 | L193: 3321 | M193: INE922A01025
A194: BERGEPAINT | B194: EQ | C194: 479.9 | D194: 487.65 | E194: 460 | F194: 463.5 | G194: 462 | H194: 479.2 | I194: 1729062 | J194: 817908730.6 | K194: 2020-04-08 | L194: 32950 | M194: INE463A01038
A195: BFINVEST | B195: EQ | C195: 258 | D195: 268.8 | E195: 244.6 | F195: 246.3 | G195: 248.95 | H195: 257.45 | I195: 4938 | J195: 1236639.95 | K195: 2020-04-08 | L195: 244 | M195: INE878K01010
A196: BFUTILITIE | B196: EQ | C196: 158.35 | D196: 158.35 | E196: 151.05 | F196: 154.05 | G196: 153.7 | H196: 150.85 | I196: 138134 | J196: 21700813.75 | K196: 2020-04-08 | L196: 1649 | M196: INE243D01012
A197: BGRENERGY | B197: EQ | C197: 22.1 | D197: 22.85 | E197: 20.95 | F197: 21.1 | G197: 21.15 | H197: 22.2 | I197: 172282 | J197: 3763089.75 | K197: 2020-04-08 | L197: 1108 | M197: INE661I01014
A198: BHAGERIA | B198: EQ | C198: 85 | D198: 91.05 | E198: 80.65 | F198: 81.6 | G198: 82.3 | H198: 84.2 | I198: 34795 | J198: 2944870.7 | K198: 2020-04-08 | L198: 925 | M198: INE354C01027
A199: BHAGYANGR | B199: EQ | C199: 14.05 | D199: 15.2 | E199: 14 | F199: 14.4 | G199: 14.4 | H199: 14.4 | I199: 1338 | J199: 19622.25 | K199: 2020-04-08 | L199: 50 | M199: INE458B01036
A200: BHAGYAPROP | B200: EQ | C200: 18 | D200: 20 | E200: 18 | F200: 20 | G200: 20 | H200: 19 | I200: 999 | J200: 19011 | K200: 2020-04-08 | L200: 5 | M200: INE363W01018
... 1470 more rows

Sheet Sheet1 (hidden)

Sheet Sheet3 (hidden)

Sheet Sheet4 (hidden)

Sheet Sheet5 (hidden)
